{"text_format":"1","workbook":"xlsx","n_sheets":4,"sheets":["Datos","TD","Menu","INFORME"],"not_rendered":{"charts":0,"images":31,"macros":1,"external_links":0,"defined_names":8,"comments":0,"pivot_tables":4},"unopened":[],"bounds":{"document_bytes":16777216,"sheet_cells":100000,"rows_first":2000,"rows_last":500,"rows_between":2000,"halvings":0,"cell_chars":16384,"cell_head_chars":4096},"cells_cut":0,"cells_raw":0,"read":"whole","date_system":"1900"}

{"sheet":"Datos","index":0,"n_rows":446,"n_cols":36,"rows_kept":446,"cut":false,"hidden":true,"merged":[]}
[]
[]
[]
[]
[]
[]
[]
[]
[null,"ANO",null,"MESES",null,"COD_RED","DESC_RED","RED",null,"COD_RED","COD_MIC","DESC_MICRO","MICROREDES",null,"COD_ESTAB","DESC_ESTAB","COD_RED","COD_MIC","COD_PROV","COD_DIST","REDMIC","CONCATENAR",null,"COD_PROV","DESC_PROV","CONCATENAR",null,"COD_PROV","COD_DIST","DESC_DIST","PROVDIST","CONCATENAR",null,"UE"]
[null,2025,null,"01-Enero",null,"01","CUSCO SUR",{"$f":"CONCATENATE(F10,\" - \",G10)","v":"01 - CUSCO SUR"},null,"00","00","NO PERTENECE A NINGUNA MICRORED                                                                     ",{"$f":"CONCATENATE(J10,K10,\" - \",L10)","v":"0000 - NO PERTENECE A NINGUNA MICRORED                                                                     "},null,"000000000","(All)","07","00",null,null,{"$f":"CONCATENATE(Q10,R10)","v":"0700"},{"$f":"CONCATENATE(O10,\" - \",P10)","v":"000000000 - (All)"},null,"00","(All)",{"$f":"CONCATENATE(X10,\" - \",Y10)","v":"00 - (All)"},null,"01","00","(All)",{"$f":"CONCATENATE(AB10,AC10)","v":"0100"},{"$f":"CONCATENATE(AB10,AC10,\" - \",AD10)","v":"0100 - (All)"},null,"COD_RED","DESC_RED","CONCATENAR"]
[null,null,null,"02-Febrero",null,"02","CUSCO NORTE","02 - CUSCO NORTE",null,"00","99","(All)",{"$f":"CONCATENATE(J11,K11,\" - \",L11)","v":"0099 - (All)"},null,"000002289","HOSPITAL REGIONAL CUSCO","07","00","01","01",{"$f":"CONCATENATE(Q11,R11)","v":"0700"},"000002289 - HOSPITAL REGIONAL CUSCO",null,"01","CUSCO",{"$f":"CONCATENATE(X11,\" - \",Y11)","v":"01 - CUSCO"},null,"01","01","CUSCO",{"$f":"CONCATENATE(AB11,AC11)","v":"0101"},{"$f":"CONCATENATE(AB11,AC11,\" - \",AD11)","v":"0101 - CUSCO"},null,1129,"UE - SALUD CANAS - CANCHIS - ESPINAR",{"$f":"CONCATENATE(AH11,\" - \",AI11)","v":"1129 - UE - SALUD CANAS - CANCHIS - ESPINAR"}]
[null,null,null,"03-Marzo",null,"03","LA CONVENCION","03 - LA CONVENCION",null,"01","00","HOSPITAL","0100 - HOSPITAL",null,"000002305","HOSPITAL ANTONIO LORENA","07","00","01","06",{"$f":"CONCATENATE(Q12,R12)","v":"0700"},"000002305 - HOSPITAL ANTONIO LORENA",null,"02","ACOMAYO",{"$f":"CONCATENATE(X12,\" - \",Y12)","v":"02 - ACOMAYO"},null,"01","02","CCORCA","0102","0102 - CCORCA",null,1130,"UE - HOSPITAL REGIONAL CUSCO",{"$f":"CONCATENATE(AH12,\" - \",AI12)","v":"1130 - UE - HOSPITAL REGIONAL CUSCO"}]
[null,null,null,"04-Abril",null,"04","CANAS-CANCHIS-ESPINAR","04 - CANAS-CANCHIS-ESPINAR",null,"01","03","PARURO                                                                                              ","0103 - PARURO                                                                                              ",null,"999999999","(All)","07","99",null,null,{"$f":"CONCATENATE(Q13,R13)","v":"0799"},"999999999 - (All)",null,"03","ANTA","03 - ANTA",null,"01","03","POROY","0103","0103 - POROY",null,1169,"UE - HOSPITAL ANTONIO LORENA","1169 - UE - HOSPITAL ANTONIO LORENA"]
[null,null,null,"05-Mayo",null,"05","KIMBIRI PICHARI","05 - KIMBIRI PICHARI",null,"01","06","PAUCARTAMBO                                                                                         ","0106 - PAUCARTAMBO                                                                                         ",null,"000025210","TUPAC AMARU","01","00","01","05","0100","000025210 - TUPAC AMARU",null,"04","CALCA","04 - CALCA",null,"01","04","SAN JERONIMO","0104","0104 - SAN JERONIMO",null,1170,"UE - SALUD LA CONVENCION","1170 - UE - SALUD LA CONVENCION"]
[null,null,null,"06-Junio",null,"06","CHUMBIVILCAS","06 - CHUMBIVILCAS",null,"01","12","URCOS                                                                                               ","0112 - URCOS                                                                                               ",null,"000000000","(All)","01","16",null,null,{"$f":"CONCATENATE(Q15,R15)","v":"0116"},"000000000 - (All)",null,"05","CANAS","05 - CANAS",null,"01","05","SAN SEBASTIAN","0105","0105 - SAN SEBASTIAN",null,1322,"UE - SALUD CUSCO SUR","1322 - UE - SALUD CUSCO SUR"]
[null,null,null,"07-Julio",null,"07","HOSPITALES III",{"$f":"CONCATENATE(F16,\" - \",G16)","v":"07 - HOSPITALES III"},null,"01","13","ACOMAYO                                                                                             ","0113 - ACOMAYO                                                                                             ",null,"000002300","SAN JERONIMO                                                                                        ","01","16","01","04","0116","000002300 - SAN JERONIMO                                                                                        ",null,"06","CANCHIS","06 - CANCHIS",null,"01","06","SANTIAGO","0106","0106 - SANTIAGO",null,1347,"UE - SALUD KIMBIRI PICHARI","1347 - UE - SALUD KIMBIRI PICHARI"]
[null,null,null,"08-Agosto",null,"99","(All)",{"$f":"CONCATENATE(F17,\" - \",G17)","v":"99 - (All)"},null,"01","15","OCONGATE                                                                                            ","0115 - OCONGATE                                                                                            ",null,"000002301","SAN SEBASTIAN                                                                                       ","01","16","01","05","0116","000002301 - SAN SEBASTIAN                                                                                       ",null,"07","CHUMBIVILCAS","07 - CHUMBIVILCAS",null,"01","07","SAYLLA","0107","0107 - SAYLLA",null,1348,"UE - SALUD CUSCO NORTE","1348 - UE - SALUD CUSCO NORTE"]
[null,null,null,"09-Setiembre",null,null,null,null,null,"01","16","CUSCO","0116 - CUSCO",null,"000002303","SANTA ROSA                                                                                          ","01","16","01","05","0116","000002303 - SANTA ROSA                                                                                          ",null,"08","ESPINAR","08 - ESPINAR",null,"01","08","WANCHAQ","0108","0108 - WANCHAQ",null,1547,"UE - HOSPITAL ESPINAR","1547 - UE - HOSPITAL ESPINAR"]
[null,null,null,"10-Octubre",null,null,null,null,null,"01","99","(All)","0199 - (All)",null,"000002314","SAYLLA                                                                                              ","01","16","01","07","0116","000002314 - SAYLLA                                                                                              ",null,"09","LA CONVENCION","09 - LA CONVENCION",null,"02","00","(All)","0200","0200 - (All)",null,1625,"UE - HOSPITAL SICUANI","1625 - UE - HOSPITAL SICUANI"]
[null,null,null,"11-Noviembre",null,null,null,null,null,"02","01","BELEMPAMPA                                                                                          ","0201 - BELEMPAMPA                                                                                          ",null,"000002323","RONDOCAN                                                                                            ","01","16","02","06","0116","000002323 - RONDOCAN                                                                                            ",null,"10","PARURO","10 - PARURO",null,"02","01","ACOMAYO","0201","0201 - ACOMAYO",null,1626,"UE - HOSPITAL QUILLABAMBA","1626 - UE - HOSPITAL QUILLABAMBA"]
[null,null,null,"12-Diciembre",null,null,null,null,null,"02","02","WANCHAQ                                                                                             ","0202 - WANCHAQ                                                                                             ",null,"000007699","CONCHACALLE                                                                                         ","01","16","01","04","0116","000007699 - CONCHACALLE                                                                                         ",null,"11","PAUCARTAMBO","11 - PAUCARTAMBO",null,"02","02","ACOPIA","0202","0202 - ACOPIA",null,1666,"UE - SALUD CHUMBIVILCAS","1666 - UE - SALUD CHUMBIVILCAS"]
[null,null,null,null,null,null,null,null,null,"02","03","ANTA                                                                                                ","0203 - ANTA                                                                                                ",null,"000010065","ESSALUD-SAN SEBASTIAN","01","16","01","05","0116","000010065 - ESSALUD-SAN SEBASTIAN",null,"12","QUISPICANCHI","12 - QUISPICANCHI",null,"02","03","ACOS","0203","0203 - ACOS",null,"7777","(All)",{"$f":"CONCATENATE(AH22,\" - \",AI22)","v":"7777 - (All)"}]
[null,null,null,null,null,null,null,null,null,"02","04","LIMATAMBO                                                                                           ","0204 - LIMATAMBO                                                                                           ",null,"000011743","SANIDAD-SANTA ROSA PNP","01","16","01","05","0116","000011743 - SANIDAD-SANTA ROSA PNP",null,"13","URUBAMBA","13 - URUBAMBA",null,"02","04","MOSOC LLACTA","0204","0204 - MOSOC LLACTA"]
[null,null,null,null,null,null,null,null,null,"02","05","PISAC                                                                                               ","0205 - PISAC                                                                                               ",null,"000026181","MENTAL SAN SEBASTIAN","01","16","01","05","0116","000026181 - MENTAL SAN SEBASTIAN",null,null,null,null,null,"02","05","POMACANCHI","0205","0205 - POMACANCHI"]
[null,null,null,null,null,null,null,null,null,"02","06","CALCA                                                                                               ","0206 - CALCA                                                                                               ",null,"000030727","PATRÓN SAN SEBASTIAN","01","16","01","04",{"$f":"CONCATENATE(Q25,R25)","v":"0116"},"000030727 - PATRÓN SAN SEBASTIAN",null,null,null,null,null,"02","06","RONDOCAN","0206","0206 - RONDOCAN"]
[null,null,null,null,null,null,null,null,null,"02","07","URUBAMBA                                                                                            ","0207 - URUBAMBA                                                                                            ",null,"000000000","(All)","01","03",null,null,{"$f":"CONCATENATE(Q26,R26)","v":"0103"},"000000000 - (All)",null,null,null,null,null,"02","07","SANGARARA","0207","0207 - SANGARARA"]
[null,null,null,null,null,null,null,null,null,"02","08","YANATILE                                                                                            ","0208 - YANATILE                                                                                            ",null,"000002499","PARURO                                                                                              ","01","03",10,"01","0103","000002499 - PARURO                                                                                              ",null,null,null,null,null,"03","00","(All)","0300","0300 - (All)"]
[null,null,null,null,null,null,null,null,null,"02","09","SIETE CUARTONES                                                                                     ","0209 - SIETE CUARTONES                                                                                     ",null,"000002500","ACCHA                                                                                               ","01","03",10,"02","0103","000002500 - ACCHA                                                                                               ",null,null,null,null,null,"03","01","ANTA","0301","0301 - ANTA"]
[null,null,null,null,null,null,null,null,null,"02","99","(All)","0299 - (All)",null,"000002501","CCAPI                                                                                               ","01","03",10,"03","0103","000002501 - CCAPI                                                                                               ",null,null,null,null,null,"03","02","ANCAHUASI","0302","0302 - ANCAHUASI"]
[null,null,null,null,null,null,null,null,null,"03","00","HOSPITAL","0300 - HOSPITAL",null,"000002502","CCOYABAMBA                                                                                          ","01","03",10,"03","0103","000002502 - CCOYABAMBA                                                                                          ",null,null,null,null,null,"03","03","CACHIMAYO","0303","0303 - CACHIMAYO"]
[null,null,null,null,null,null,null,null,null,"03","01","SANTA ANA                                                                                           ","0301 - SANTA ANA                                                                                           ",null,"000002503","COLCHA                                                                                              ","01","03",10,"04","0103","000002503 - COLCHA                                                                                              ",null,null,null,null,null,"03","04","CHINCHAYPUJIO","0304","0304 - CHINCHAYPUJIO"]
[null,null,null,null,null,null,null,null,null,"03","02","MARANURA                                                                                            ","0302 - MARANURA                                                                                            ",null,"000002504","HUANOQUITE                                                                                          ","01","03",10,"05","0103","000002504 - HUANOQUITE                                                                                          ",null,null,null,null,null,"03","05","HUAROCONDO","0305","0305 - HUAROCONDO"]
[null,null,null,null,null,null,null,null,null,"03","03","QUELLOUNO                                                                                           ","0303 - QUELLOUNO                                                                                           ",null,"000002505","OMACHA                                                                                              ","01","03",10,"06","0103","000002505 - OMACHA                                                                                              ",null,null,null,null,null,"03","06","LIMATAMBO","0306","0306 - LIMATAMBO"]
[null,null,null,null,null,null,null,null,null,"03","04","KITENI                                                                                              ","0304 - KITENI                                                                                              ",null,"000002506","ANTAPALLPA                                                                                          ","01","03",10,"06","0103","000002506 - ANTAPALLPA                                                                                          ",null,null,null,null,null,"03","07","MOLLEPATA","0307","0307 - MOLLEPATA"]
[null,null,null,null,null,null,null,null,null,"03","05","KAMISEA                                                                                             ","0305 - KAMISEA                                                                                             ",null,"000002507","PACCARECTAMBO                                                                                       ","01","03",10,"07","0103","000002507 - PACCARECTAMBO                                                                                       ",null,null,null,null,null,"03","08","PUCYURA","0308","0308 - PUCYURA"]
[null,null,null,null,null,null,null,null,null,"03","06","PUCYURA                                                                                             ","0306 - PUCYURA                                                                                             ",null,"000002509","YAURISQUE                                                                                           ","01","03",10,"09","0103","000002509 - YAURISQUE                                                                                           ",null,null,null,null,null,"03","09","ZURITE","0309","0309 - ZURITE"]
[null,null,null,null,null,null,null,null,null,"03","99","(All)","0399 - (All)",null,"000006978","CCOCHIRIHUAY                                                                                        ","01","03",10,"04","0103","000006978 - CCOCHIRIHUAY                                                                                        ",null,null,null,null,null,"04","00","(All)","0400","0400 - (All)"]
[null,null,null,null,null,null,null,null,null,"04","00","HOSPITAL","0400 - HOSPITAL",null,"000007147","HUASQUILLAY                                                                                         ","01","03",10,"06","0103","000007147 - HUASQUILLAY                                                                                         ",null,null,null,null,null,"04","01","CALCA","0401","0401 - CALCA"]
[null,null,null,null,null,null,null,null,null,"04","01","YANAOCA                                                                                             ","0401 - YANAOCA                                                                                             ",null,"000012924","SAHUA SAHUA                                                                                         ","01","03",10,"06","0103","000012924 - SAHUA SAHUA                                                                                         ",null,null,null,null,null,"04","02","COYA","0402","0402 - COYA"]
[null,null,null,null,null,null,null,null,null,"04","02","EL DESCANSO                                                                                         ","0402 - EL DESCANSO                                                                                         ",null,"000000000","(All)","01","06",null,null,"0106","000000000 - (All)",null,null,null,null,null,"04","03","LAMAY","0403","0403 - LAMAY"]
[null,null,null,null,null,null,null,null,null,"04","03","COMBAPATA                                                                                           ","0403 - COMBAPATA                                                                                           ",null,"000002510","PAUCARTAMBO                                                                                         ","01","06",11,"01","0106","000002510 - PAUCARTAMBO                                                                                         ",null,null,null,null,null,"04","04","LARES","0404","0404 - LARES"]
[null,null,null,null,null,null,null,null,null,"04","04","TECHO OBRERO                                                                                        ","0404 - TECHO OBRERO                                                                                        ",null,"000002511","MOLLOMARCA                                                                                          ","01","06",11,"01","0106","000002511 - MOLLOMARCA                                                                                          ",null,null,null,null,null,"04","05","PISAC","0405","0405 - PISAC"]
[null,null,null,null,null,null,null,null,null,"04","05","PAMPAPHALLA                                                                                         ","0405 - PAMPAPHALLA                                                                                         ",null,"000002512","CAICAY                                                                                              ","01","06",11,"02","0106","000002512 - CAICAY                                                                                              ",null,null,null,null,null,"04","06","SAN SALVADOR","0406","0406 - SAN SALVADOR"]
[null,null,null,null,null,null,null,null,null,"04","06","YAURI                                                                                               ","0406 - YAURI                                                                                               ",null,"000002513","HUASAC                                                                                              ","01","06",11,"02","0106","000002513 - HUASAC                                                                                              ",null,null,null,null,null,"04","07","TARAY","0407","0407 - TARAY"]
[null,null,null,null,null,null,null,null,null,"04","99","(All)","0499 - (All)",null,"000002514","CHALLABAMBA                                                                                         ","01","06",11,"03","0106","000002514 - CHALLABAMBA                                                                                         ",null,null,null,null,null,"04","08","YANATILE","0408","0408 - YANATILE"]
[null,null,null,null,null,null,null,null,null,"05","00","HOSPITAL","0500 - HOSPITAL",null,"000002516","COLQUEPATA                                                                                          ","01","06",11,"04","0106","000002516 - COLQUEPATA                                                                                          ",null,null,null,null,null,"05","00","(All)","0500","0500 - (All)"]
[null,null,null,null,null,null,null,null,null,"05","01","KIMBIRI                                                                                             ","0501 - KIMBIRI                                                                                             ",null,"000002517","PICHIHUA COLQUEPATA                                                                                 ","01","06",11,"04","0106","000002517 - PICHIHUA COLQUEPATA                                                                                 ",null,null,null,null,null,"05","01","YANAOCA","0501","0501 - YANAOCA"]
[null,null,null,null,null,null,null,null,null,"05","02","PICHARI                                                                                             ","0502 - PICHARI                                                                                             ",null,"000002518","VIZCOCHONI                                                                                          ","01","06",11,"04","0106","000002518 - VIZCOCHONI                                                                                          ",null,null,null,null,null,"05","02","CHECCA","0502","0502 - CHECCA"]
[null,null,null,null,null,null,null,null,null,"05","99","(All)","0599 - (All)",null,"000002519","AYRE                                                                                                ","01","06",11,"04","0106","000002519 - AYRE                                                                                                ",null,null,null,null,null,"05","03","KUNTURKANKI","0503","0503 - KUNTURKANKI"]
[null,null,null,null,null,null,null,null,null,"06","00","HOSPITAL","0600 - HOSPITAL",null,"000002520","HUANCARANI                                                                                          ","01","06",11,"05","0106","000002520 - HUANCARANI                                                                                          ",null,null,null,null,null,"05","04","LANGUI","0504","0504 - LANGUI"]
[null,null,null,null,null,null,null,null,null,"06","09","SANTO TOMAS                                                                                         ","0609 - SANTO TOMAS                                                                                         ",null,"000002521","PILCOPATA                                                                                           ","01","06",11,"06","0106","000002521 - PILCOPATA                                                                                           ",null,null,null,null,null,"05","05","LAYO","0505","0505 - LAYO"]
[null,null,null,null,null,null,null,null,null,"06","01","LIVITACA                                                                                            ","0601 - LIVITACA                                                                                            ",null,"000002522","PATRIA                                                                                              ","01","06",11,"06","0106","000002522 - PATRIA                                                                                              ",null,null,null,null,null,"05","06","PAMPAMARCA","0506","0506 - PAMPAMARCA"]
[null,null,null,null,null,null,null,null,null,"06","99","(All)","0699 - (All)",null,"000006979","TOCRA                                                                                               ","01","06",11,"04","0106","000006979 - TOCRA                                                                                               ",null,null,null,null,null,"05","07","QUEHUE","0507","0507 - QUEHUE"]
[null,null,null,null,null,null,null,null,null,"07","00","HOSPITAL","0700 - HOSPITAL",null,"000010077","ESSALUD-PAUCARTAMBO","01","06",11,"01","0106","000010077 - ESSALUD-PAUCARTAMBO",null,null,null,null,null,"05","08","TUPAC AMARU","0508","0508 - TUPAC AMARU"]
[null,null,null,null,null,null,null,null,null,"99","99","(All)",{"$f":"CONCATENATE(J55,K55,\" - \",L55)","v":"9999 - (All)"},null,"000033777","MENTAL COMUNITARIO VIRGEN DEL ROSARIO","01","06",11,"01","0106","000033777 - MENTAL COMUNITARIO VIRGEN DEL ROSARIO",null,null,null,null,null,"06","00","(All)","0600","0600 - (All)"]
[null,null,null,null,null,null,null,null,null,null,null,null,null,null,"000000000","(All)","01","12",null,null,"0112","000000000 - (All)",null,null,null,null,null,"06","01","SICUANI","0601","0601 - SICUANI"]
[null,null,null,null,null,null,null,null,null,null,null,null,null,null,"000002523","URCOS                                                                                               ","01","12",12,"01","0112","000002523 - URCOS                                                                                               ",null,null,null,null,null,"06","02","CHECACUPE","0602","0602 - CHECACUPE"]
[null,null,null,null,null,null,null,null,null,null,null,null,null,null,"000002525","ANDAHUAYLILLAS                                                                                      ","01","12",12,"02","0112","000002525 - ANDAHUAYLILLAS                                                                                      ",null,null,null,null,null,"06","03","COMBAPATA","0603","0603 - COMBAPATA"]
[null,null,null,null,null,null,null,null,null,null,null,null,null,null,"000002530","CUSIPATA                                                                                            ","01","12",12,"06","0112","000002530 - CUSIPATA                                                                                            ",null,null,null,null,null,"06","04","MARANGANI","0604","0604 - MARANGANI"]
[null,null,null,null,null,null,null,null,null,null,null,null,null,null,"000002532","HUARO                                                                                               ","01","12",12,"07","0112","000002532 - HUARO                                                                                               ",null,null,null,null,null,"06","05","PITUMARCA","0605","0605 - PITUMARCA"]
[null,null,null,null,null,null,null,null,null,null,null,null,null,null,"000002533","URPAY                                                                                               ","01","12",12,"07","0112","000002533 - URPAY                                                                                               ",null,null,null,null,null,"06","06","SAN PABLO","0606","0606 - SAN PABLO"]
[null,null,null,null,null,null,null,null,null,null,null,null,null,null,"000002534","LUCRE                                                                                               ","01","12",12,"08","0112","000002534 - LUCRE                                                                                               ",null,null,null,null,null,"06","07","SAN PEDRO","0607","0607 - SAN PEDRO"]
[null,null,null,null,null,null,null,null,null,null,null,null,null,null,"000002537","OROPESA                                                                                             ","01","12",12,11,"0112","000002537 - OROPESA                                                                                             ",null,null,null,null,null,"06","08","TINTA","0608","0608 - TINTA"]
[null,null,null,null,null,null,null,null,null,null,null,null,null,null,"000002538","QUIQUIJANA                                                                                          ","01","12",12,12,"0112","000002538 - QUIQUIJANA                                                                                          ",null,null,null,null,null,"07","00","(All)","0700","0700 - (All)"]
[null,null,null,null,null,null,null,null,null,null,null,null,null,null,"000002539","CCOLCA","01","12",12,12,"0112","000002539 - CCOLCA",null,null,null,null,null,"07","01","SANTO TOMAS","0701","0701 - SANTO TOMAS"]
[null,null,null,null,null,null,null,null,null,null,null,null,null,null,"000006980","CHILLIHUANI                                                                                         ","01","12",12,"06","0112","000006980 - CHILLIHUANI                                                                                         ",null,null,null,null,null,"07","02","CAPACMARCA","0702","0702 - CAPACMARCA"]
[null,null,null,null,null,null,null,null,null,null,null,null,null,null,"000008911","HUARA HUARA                                                                                         ","01","12",12,"05","0112","000008911 - HUARA HUARA                                                                                         ",null,null,null,null,null,"07","03","CHAMACA","0703","0703 - CHAMACA"]
[null,null,null,null,null,null,null,null,null,null,null,null,null,null,"000011747","SANIDAD-PUCUTO PNP","01","12",12,"07","0112","000011747 - SANIDAD-PUCUTO PNP",null,null,null,null,null,"07","04","COLQUEMARCA","0704","0704 - COLQUEMARCA"]
[null,null,null,null,null,null,null,null,null,null,null,null,null,null,"000026385","ESSALUD-URCOS","01","12",12,"01","0112","000026385 - ESSALUD-URCOS",null,null,null,null,null,"07","05","LIVITACA","0705","0705 - LIVITACA"]
[null,null,null,null,null,null,null,null,null,null,null,null,null,null,"000030708","MENTAL COMUNITARIO HUARO","01","12",12,"07","0112","000030708 - MENTAL COMUNITARIO HUARO",null,null,null,null,null,"07","06","LLUSCO","0706","0706 - LLUSCO"]
[null,null,null,null,null,null,null,null,null,null,null,null,null,null,"000000000","(All)","01","13",null,null,"0113","000000000 - (All)",null,null,null,null,null,"07","07","QUIÑOTA","0707","0707 - QUIÑOTA"]
[null,null,null,null,null,null,null,null,null,null,null,null,null,null,"000002317","ACOMAYO                                                                                             ","01","13","02","01","0113","000002317 - ACOMAYO                                                                                             ",null,null,null,null,null,"07","08","VELILLE","0708","0708 - VELILLE"]
[null,null,null,null,null,null,null,null,null,null,null,null,null,null,"000002318","ACOPIA                                                                                              ","01","13","02","02","0113","000002318 - ACOPIA                                                                                              ",null,null,null,null,null,"08","00","(All)","0800","0800 - (All)"]
[null,null,null,null,null,null,null,null,null,null,null,null,null,null,"000002319","ACOS                                                                                                ","01","13","02","03","0113",{"$f":"CONCATENATE(O74,\" - \",P74)","v":"000002319 - ACOS                                                                                                "},null,null,null,null,null,"08","01","ESPINAR","0801","0801 - ESPINAR"]
[null,null,null,null,null,null,null,null,null,null,null,null,null,null,"000002321","CENTRO DE SALUD POMACANCHI","01","13","02","05","0113","000002321 - CENTRO DE SALUD POMACANCHI",null,null,null,null,null,"08","02","CONDOROMA",{"$f":"CONCATENATE(AB75,AC75)","v":"0802"},{"$f":"CONCATENATE(AB75,AC75,\" - \",AD75)","v":"0802 - CONDOROMA"}]
[null,null,null,null,null,null,null,null,null,null,null,null,null,null,"000002322","SAN JUAN DE POMACANCHI                                                                              ","01","13","02","05","0113","000002322 - SAN JUAN DE POMACANCHI                                                                              ",null,null,null,null,null,"08","03","COPORAQUE","0803","0803 - COPORAQUE"]
[null,null,null,null,null,null,null,null,null,null,null,null,null,null,"000002324","PUESTO DE SALUD SANGARARA","01","13","02","07","0113","000002324 - PUESTO DE SALUD SANGARARA",null,null,null,null,null,"08","04","OCORURO","0804","0804 - OCORURO"]
[null,null,null,null,null,null,null,null,null,null,null,null,null,null,"000002325","PUESTO DE SALUD MARCACONGA","01","13","02","07","0113","000002325 - PUESTO DE SALUD MARCACONGA",null,null,null,null,null,"08","05","PALLPATA","0805","0805 - PALLPATA"]
[null,null,null,null,null,null,null,null,null,null,null,null,null,null,"000002508","PILLPINTO                                                                                           ","01","13",10,"08","0113","000002508 - PILLPINTO                                                                                           ",null,null,null,null,null,"08","06","PICHIGUA","0806","0806 - PICHIGUA"]
[null,null,null,null,null,null,null,null,null,null,null,null,null,null,"000010076","ESSALUD-ACOMAYO","01","13","02","01","0113","000010076 - ESSALUD-ACOMAYO",null,null,null,null,null,"08","07","SUYCKUTAMBO","0807","0807 - SUYCKUTAMBO"]
[null,null,null,null,null,null,null,null,null,null,null,null,null,null,"000012926","SANTA  LUCIA                                                                                        ","01","13","02","05","0113","000012926 - SANTA  LUCIA                                                                                        ",null,null,null,null,null,"08","08","ALTO PICHIGUA","0808","0808 - ALTO PICHIGUA"]
[null,null,null,null,null,null,null,null,null,null,null,null,null,null,"000000000","(All)","01","15",null,null,"0115","000000000 - (All)",null,null,null,null,null,"09","00","(All)","0900","0900 - (All)"]
[null,null,null,null,null,null,null,null,null,null,null,null,null,null,"000002524","PAMPACAMARA                                                                                         ","01","15",12,"05","0115","000002524 - PAMPACAMARA                                                                                         ",null,null,null,null,null,"09","01","SANTA ANA","0901","0901 - SANTA ANA"]
[null,null,null,null,null,null,null,null,null,null,null,null,null,null,"000002526","QUINCE MIL","01","15",12,"03","0115","000002526 - QUINCE MIL",null,null,null,null,null,"09","02","ECHARATE","0902","0902 - ECHARATE"]
[null,null,null,null,null,null,null,null,null,null,null,null,null,null,"000002527","CCARHUAYO","01","15",12,"04","0115","000002527 - CCARHUAYO",null,null,null,null,null,"09","03","HUAYOPATA","0903","0903 - HUAYOPATA"]
[null,null,null,null,null,null,null,null,null,null,null,null,null,null,"000002528","CCATCCA                                                                                             ","01","15",12,"05","0115","000002528 - CCATCCA                                                                                             ",null,null,null,null,null,"09","04","MARANURA","0904","0904 - MARANURA"]
[null,null,null,null,null,null,null,null,null,null,null,null,null,null,"000002529","KCAURY                                                                                              ","01","15",12,"05","0115","000002529 - KCAURY                                                                                              ",null,null,null,null,null,"09","05","OCOBAMBA","0905","0905 - OCOBAMBA"]
[null,null,null,null,null,null,null,null,null,null,null,null,null,null,"000002535","MARCAPATA                                                                                           ","01","15",12,"09","0115","000002535 - MARCAPATA                                                                                           ",null,null,null,null,null,"09","06","QUELLOUNO","0906","0906 - QUELLOUNO"]
[null,null,null,null,null,null,null,null,null,null,null,null,null,null,"000002536","OCONGATE                                                                                            ","01","15",12,10,"0115","000002536 - OCONGATE                                                                                            ",null,null,null,null,null,"09","07","KIMBIRI","0907","0907 - KIMBIRI"]
[null,null,null,null,null,null,null,null,null,null,null,null,null,null,"000006977","TINKI                                                                                               ","01","15",12,10,{"$f":"CONCATENATE(Q90,R90)","v":"0115"},"000006977 - TINKI                                                                                               ",null,null,null,null,null,"09","08","SANTA TERESA","0908","0908 - SANTA TERESA"]
[null,null,null,null,null,null,null,null,null,null,null,null,null,null,"000007110","INCACANCHA                                                                                          ","01","15",12,"09","0115","000007110 - INCACANCHA                                                                                          ",null,null,null,null,null,"09","09","VILCABAMBA","0909","0909 - VILCABAMBA"]
[null,null,null,null,null,null,null,null,null,null,null,null,null,null,"000012931","CHICHINA                                                                                            ","01","15",12,"05","0115","000012931 - CHICHINA                                                                                            ",null,null,null,null,null,"09","10","PICHARI","0910","0910 - PICHARI"]
[null,null,null,null,null,null,null,null,null,null,null,null,null,null,"000016335","CCAPANA                                                                                             ","01","15",12,"05","0115","000016335 - CCAPANA                                                                                             ",null,null,null,null,null,"09","11","INKAWASI                                ","0911","0911 - INKAWASI                                "]
[null,null,null,null,null,null,null,null,null,null,null,null,null,null,"999999999","(All)","01","99",null,null,"0199","999999999 - (All)",null,null,null,null,null,"09","12","VILLA VIRGEN","0912","0912 - VILLA VIRGEN"]
[null,null,null,null,null,null,null,null,null,null,null,null,null,null,"000000000","(All)","02","01",null,null,"0201","000000000 - (All)",null,null,null,null,null,"09","13","VILLA KINTIARINA","0913","0913 - VILLA KINTIARINA"]
[null,null,null,null,null,null,null,null,null,null,null,null,null,null,"000002292","INDEPENDENCIA                                                                                       ","02","01","01","01","0201","000002292 - INDEPENDENCIA                                                                                       ",null,null,null,null,null,"09","14","MEGANTONI","0914","0914 - MEGANTONI"]
[null,null,null,null,null,null,null,null,null,null,null,null,null,null,"000002297","CCORCCA                                                                                             ","02","01","01","02","0201","000002297 - CCORCCA                                                                                             ",null,null,null,null,null,"09","15","KUMPIRUSHIATO","0915","0915 - KUMPIRUSHIATO"]
[null,null,null,null,null,null,null,null,null,null,null,null,null,null,"000002306","BELEMPAMPA                                                                                          ","02","01","01","06","0201","000002306 - BELEMPAMPA                                                                                          ",null,null,null,null,null,"09","16","CIELO PUNCO","0916","0916 - CIELO PUNCO"]
[null,null,null,null,null,null,null,null,null,null,null,null,null,null,"000002308","ZARZUELA ALTA                                                                                       ","02","01","01","06","0201","000002308 - ZARZUELA ALTA                                                                                       ",null,null,null,null,null,"09","17","MANITEA","0917","0917 - MANITEA"]
[null,null,null,null,null,null,null,null,null,null,null,null,null,null,"000002309","DIGNIDAD NACIONAL                                                                                   ","02","01","01","06","0201","000002309 - DIGNIDAD NACIONAL                                                                                   ",null,null,null,null,null,"09","18","UNION ASHANINKA","0918","0918 - UNION ASHANINKA"]
[null,null,null,null,null,null,null,null,null,null,null,null,null,null,"000002313","OCCOPATA                                                                                            ","02","01","01","06","0201","000002313 - OCCOPATA                                                                                            ",null,null,null,null,null,"10","00","(All)","1000","1000 - (All)"]
[null,null,null,null,null,null,null,null,null,null,null,null,null,null,"000010920","EJERCITO-QUINTA BRIGADA DE MONTAÑA","02","01","01","06","0201","000010920 - EJERCITO-QUINTA BRIGADA DE MONTAÑA",null,null,null,null,null,"10","01","PARURO","1001","1001 - PARURO"]
[null,null,null,null,null,null,null,null,null,null,null,null,null,null,"000026182","MENTAL SANTIAGO","02","01","01","06","0201","000026182 - MENTAL SANTIAGO",null,null,null,null,null,"10","02","ACCHA","1002","1002 - ACCHA"]
[null,null,null,null,null,null,null,null,null,null,null,null,null,null,"000034933","ESSALUD-SANTIAGO","02","01","01","06","0201","000034933 - ESSALUD-SANTIAGO",null,null,null,null,null,"10","03","CCAPI","1003","1003 - CCAPI"]
[null,null,null,null,null,null,null,null,null,null,null,null,null,null,"000000000","(All)","02","02",null,null,{"$f":"CONCATENATE(Q105,R105)","v":"0202"},"000000000 - (All)",null,null,null,null,null,"10","04","COLCHA","1004","1004 - COLCHA"]
[null,null,null,null,null,null,null,null,null,null,null,null,null,null,"000002302","CCORAO                                                                                              ","02","02","01","05","0202","000002302 - CCORAO                                                                                              ",null,null,null,null,null,"10","05","HUANOQUITE","1005","1005 - HUANOQUITE"]
[null,null,null,null,null,null,null,null,null,null,null,null,null,null,"000002307","MANCO CAPAC","02","02","01","06","0202","000002307 - MANCO CAPAC",null,null,null,null,null,"10","06","OMACHA","1006","1006 - OMACHA"]
[null,null,null,null,null,null,null,null,null,null,null,null,null,null,"000002310","CHOCCO                                                                                              ","02","02","01","06","0202","000002310 - CHOCCO                                                                                              ",null,null,null,null,null,"10","07","PACCARITAMBO","1007","1007 - PACCARITAMBO"]
[null,null,null,null,null,null,null,null,null,null,null,null,null,null,"000002315","WANCHAQ                                                                                             ","02","02","01","08","0202","000002315 - WANCHAQ                                                                                             ",null,null,null,null,null,"10","08","PILLPINTO","1008","1008 - PILLPINTO"]
[null,null,null,null,null,null,null,null,null,null,null,null,null,null,"000002316","TTIO                                                                                                ","02","02","01","08","0202","000002316 - TTIO                                                                                                ",null,null,null,null,null,"10","09","YAURISQUE","1009","1009 - YAURISQUE"]
[null,null,null,null,null,null,null,null,null,null,null,null,null,null,"000010041","ESSALUD-ADOLFO GUEVARA V.","02","02","01","08","0202","000010041 - ESSALUD-ADOLFO GUEVARA V.",null,null,null,null,null,"11","00","(All)","1100","1100 - (All)"]
[null,null,null,null,null,null,null,null,null,null,null,null,null,null,"000026183","ESSALUD-METROPOLITANO","02","02","01","08","0202","000026183 - ESSALUD-METROPOLITANO",null,null,null,null,null,"11","01","PAUCARTAMBO","1101","1101 - PAUCARTAMBO"]
[null,null,null,null,null,null,null,null,null,null,null,null,null,null,"000030730","PATRON SANTIAGO","02","02","01","08","0202","000030730 - PATRON SANTIAGO",null,null,null,null,null,"11","02","CAICAY","1102","1102 - CAICAY"]
[null,null,null,null,null,null,null,null,null,null,null,null,null,null,"000034419","MENTAL COMUNITARIO CUSCO","02","02","01","08","0202","000034419 - MENTAL COMUNITARIO CUSCO",null,null,null,null,null,"11","03","CHALLABAMBA","1103","1103 - CHALLABAMBA"]
[null,null,null,null,null,null,null,null,null,null,null,null,null,null,"000000000","(All)","02","03",null,null,{"$f":"CONCATENATE(Q115,R115)","v":"0203"},"000000000 - (All)",null,null,null,null,null,"11","04","COLQUEPATA","1104","1104 - COLQUEPATA"]
[null,null,null,null,null,null,null,null,null,null,null,null,null,null,"000002326","ANTA                                                                                                ","02","03","03","01","0203","000002326 - ANTA                                                                                                ",null,null,null,null,null,"11","05","HUANCARANI","1105","1105 - HUANCARANI"]
[null,null,null,null,null,null,null,null,null,null,null,null,null,null,"000002327","CHACAN                                                                                              ","02","03","03","01","0203","000002327 - CHACAN                                                                                              ",null,null,null,null,null,"11","06","KOSÑIPATA","1106","1106 - KOSÑIPATA"]
[null,null,null,null,null,null,null,null,null,null,null,null,null,null,"000002328","COMPONE                                                                                             ","02","03","03","01","0203","000002328 - COMPONE                                                                                             ",null,null,null,null,null,"12","00","(All)","1200","1200 - (All)"]
[null,null,null,null,null,null,null,null,null,null,null,null,null,null,"000002329","CONCHACALLA                                                                                         ","02","03","03","01","0203","000002329 - CONCHACALLA                                                                                         ",null,null,null,null,null,"12","01","URCOS","1201","1201 - URCOS"]
[null,null,null,null,null,null,null,null,null,null,null,null,null,null,"000002330","ANCAHUASI                                                                                           ","02","03","03","02","0203","000002330 - ANCAHUASI                                                                                           ",null,null,null,null,null,"12","02","ANDAHUAYLILLAS","1202","1202 - ANDAHUAYLILLAS"]
[null,null,null,null,null,null,null,null,null,null,null,null,null,null,"000002331","CACHIMAYO                                                                                           ","02","03","03","03","0203","000002331 - CACHIMAYO                                                                                           ",null,null,null,null,null,"12","03","CAMANTI","1203","1203 - CAMANTI"]
[null,null,null,null,null,null,null,null,null,null,null,null,null,null,"000002333","HUAROCONDO                                                                                          ","02","03","03","05","0203","000002333 - HUAROCONDO                                                                                          ",null,null,null,null,null,"12","04","CCARHUAYO","1204","1204 - CCARHUAYO"]
[null,null,null,null,null,null,null,null,null,null,null,null,null,null,"000002334","HUAYLLACOCHA                                                                                        ","02","03","03","05","0203","000002334 - HUAYLLACOCHA                                                                                        ",null,null,null,null,null,"12","05","CCATCA","1205","1205 - CCATCA"]
[null,null,null,null,null,null,null,null,null,null,null,null,null,null,"000002339","PUCYURA ANTA                                                                                        ","02","03","03","08","0203","000002339 - PUCYURA ANTA                                                                                        ",null,null,null,null,null,"12","06","CUSIPATA","1206","1206 - CUSIPATA"]
[null,null,null,null,null,null,null,null,null,null,null,null,null,null,"000002340","ZURITE                                                                                              ","02","03","03","09","0203","000002340 - ZURITE                                                                                              ",null,null,null,null,null,"12","07","HUARO","1207","1207 - HUARO"]
[null,null,null,null,null,null,null,null,null,null,null,null,null,null,"000006972","PANTIPATA                                                                                           ","02","03","03","04","0203","000006972 - PANTIPATA                                                                                           ",null,null,null,null,null,"12","08","LUCRE","1208","1208 - LUCRE"]
[null,null,null,null,null,null,null,null,null,null,null,null,null,null,"000027790","MENTAL COMUNITARIO ANTA","02","03","03","01","0203","000027790 - MENTAL COMUNITARIO ANTA",null,null,null,null,null,"12","09","MARCAPATA","1209","1209 - MARCAPATA"]
[null,null,null,null,null,null,null,null,null,null,null,null,null,null,"000029514","ESSALUD-ANTA","02","03","03","01","0203","000029514 - ESSALUD-ANTA",null,null,null,null,null,"12","10","OCONGATE","1210","1210 - OCONGATE"]
[null,null,null,null,null,null,null,null,null,null,null,null,null,null,"000035838","PARCCOTICA","02","03","03","04","0203","000035838 - PARCCOTICA",null,null,null,null,null,"12","11","OROPESA","1211","1211 - OROPESA"]
[null,null,null,null,null,null,null,null,null,null,null,null,null,null,"000002332","CHINCHAYPUJIO                                                                                       ","02","03","03","04","0203","000002332 - CHINCHAYPUJIO                                                                                       ",null,null,null,null,null,"12","12","QUIQUIJANA","1212","1212 - QUIQUIJANA"]
[null,null,null,null,null,null,null,null,null,null,null,null,null,null,"000000000","(All)","02","04",null,null,{"$f":"CONCATENATE(Q131,R131)","v":"0204"},"000000000 - (All)",null,null,null,null,null,"13","00","(All)","1300","1300 - (All)"]
[null,null,null,null,null,null,null,null,null,null,null,null,null,null,"000002336","LIMATAMBO                                                                                           ","02","04","03","06","0204","000002336 - LIMATAMBO                                                                                           ",null,null,null,null,null,"13","01","URUBAMBA","1301","1301 - URUBAMBA"]
[null,null,null,null,null,null,null,null,null,null,null,null,null,null,"000002337","PAMPACONGA                                                                                          ","02","04","03","06","0204","000002337 - PAMPACONGA                                                                                          ",null,null,null,null,null,"13","02","CHINCHERO","1302","1302 - CHINCHERO"]
[null,null,null,null,null,null,null,null,null,null,null,null,null,null,"000002338","MOLLEPATA                                                                                           ","02","04","03","07","0204","000002338 - MOLLEPATA                                                                                           ",null,null,null,null,null,"13","03","HUAYLLABAMBA","1303","1303 - HUAYLLABAMBA"]
[null,null,null,null,null,null,null,null,null,null,null,null,null,null,"000010761","URATARI                                                                                             ","02","04","03","06","0204","000010761 - URATARI                                                                                             ",null,null,null,null,null,"13","04","MACHUPICCHU","1304","1304 - MACHUPICCHU"]
[null,null,null,null,null,null,null,null,null,null,null,null,null,null,"000021061","HUAMANPATA                                                                                          ","02","04","03","07","0204","000021061 - HUAMANPATA                                                                                          ",null,null,null,null,null,"13","05","MARAS","1305","1305 - MARAS"]
[null,null,null,null,null,null,null,null,null,null,null,null,null,null,"000000000","(All)","02","05",null,null,"0205","000000000 - (All)",null,null,null,null,null,"13","06","OLLANTAYTAMBO","1306","1306 - OLLANTAYTAMBO"]
[null,null,null,null,null,null,null,null,null,null,null,null,null,null,"000002343","COYA                                                                                                ","02","05","04","02","0205",{"$f":"CONCATENATE(O138,\" - \",P138)","v":"000002343 - COYA                                                                                                "},null,null,null,null,null,"13","07","YUCAY","1307","1307 - YUCAY"]
[null,null,null,null,null,null,null,null,null,null,null,null,null,null,"000002344","LAMAY                                                                                               ","02","05","04","03","0205","000002344 - LAMAY                                                                                               ",null,null,null,null,null,"00","00","(All)",{"$f":"CONCATENATE(AB139,AC139)","v":"0000"},{"$f":"CONCATENATE(AB139,AC139,\" - \",AD139)","v":"0000 - (All)"}]
[null,null,null,null,null,null,null,null,null,null,null,null,null,null,"000002348","PISAC                                                                                               ","02","05","04","05","0205","000002348 - PISAC                                                                                               "]
[null,null,null,null,null,null,null,null,null,null,null,null,null,null,"000002349","CUYO CHICO                                                                                          ","02","05","04","05","0205","000002349 - CUYO CHICO                                                                                          "]
[null,null,null,null,null,null,null,null,null,null,null,null,null,null,"000002350","CUYO GRANDE                                                                                         ","02","05","04","05","0205","000002350 - CUYO GRANDE                                                                                         "]
[null,null,null,null,null,null,null,null,null,null,null,null,null,null,"000002351","QUELLO QUELLO                                                                                       ","02","05","04","05","0205","000002351 - QUELLO QUELLO                                                                                       "]
[null,null,null,null,null,null,null,null,null,null,null,null,null,null,"000002352","SAN SALVADOR                                                                                        ","02","05","04","06","0205","000002352 - SAN SALVADOR                                                                                        "]
[null,null,null,null,null,null,null,null,null,null,null,null,null,null,"000002353","TARAY                                                                                               ","02","05","04","07","0205","000002353 - TARAY                                                                                               "]
[null,null,null,null,null,null,null,null,null,null,null,null,null,null,"000002354","HUANCALLE                                                                                           ","02","05","04","07","0205","000002354 - HUANCALLE                                                                                           "]
[null,null,null,null,null,null,null,null,null,null,null,null,null,null,"000006975","SAYLLAFAYA                                                                                          ","02","05","04","03","0205","000006975 - SAYLLAFAYA                                                                                          "]
[null,null,null,null,null,null,null,null,null,null,null,null,null,null,"000007145","HUAMA                                                                                               ","02","05","04","03","0205","000007145 - HUAMA                                                                                               "]
[null,null,null,null,null,null,null,null,null,null,null,null,null,null,"000007146","POQUES                                                                                              ","02","05","04","03","0205","000007146 - POQUES                                                                                              "]
[null,null,null,null,null,null,null,null,null,null,null,null,null,null,"000036012","HUARQUI","02","05","04","03","0205","000036012 - HUARQUI"]
[null,null,null,null,null,null,null,null,null,null,null,null,null,null,"000036087","TIRACANCHA                                                                                          ","02","05","04","06","0205","000036087 - TIRACANCHA                                                                                          "]
[null,null,null,null,null,null,null,null,null,null,null,null,null,null,"000000000","(All)","02","06",null,null,{"$f":"CONCATENATE(Q152,R152)","v":"0206"},"000000000 - (All)"]
[null,null,null,null,null,null,null,null,null,null,null,null,null,null,"000002341","CALCA                                                                                               ","02","06","04","01","0206","000002341 - CALCA                                                                                               "]
[null,null,null,null,null,null,null,null,null,null,null,null,null,null,"000002342","AMPARAES                                                                                            ","02","06","04","04","0206","000002342 - AMPARAES                                                                                            "]
[null,null,null,null,null,null,null,null,null,null,null,null,null,null,"000002345","CCACHIN                                                                                             ","02","06","04","04","0206","000002345 - CCACHIN                                                                                             "]
[null,null,null,null,null,null,null,null,null,null,null,null,null,null,"000002346","CHOQUECANCHA                                                                                        ","02","06","04","04","0206","000002346 - CHOQUECANCHA                                                                                        "]
[null,null,null,null,null,null,null,null,null,null,null,null,null,null,"000002347","LARES                                                                                               ","02","06","04","04","0206","000002347 - LARES                                                                                               "]
[null,null,null,null,null,null,null,null,null,null,null,null,null,null,"000002361","SUYO                                                                                                ","02","06","04","04","0206","000002361 - SUYO                                                                                                "]
[null,null,null,null,null,null,null,null,null,null,null,null,null,null,"000002515","PAROBAMBA                                                                                           ","02","06",11,"03","0206","000002515 - PAROBAMBA                                                                                           "]
[null,null,null,null,null,null,null,null,null,null,null,null,null,null,"000007143","OTOCANI                                                                                             ","02","06",11,"03","0206","000007143 - OTOCANI                                                                                             "]
[null,null,null,null,null,null,null,null,null,null,null,null,null,null,"000007144","PATABAMBA                                                                                           ","02","06","04","07","0206","000007144 - PATABAMBA                                                                                           "]
[null,null,null,null,null,null,null,null,null,null,null,null,null,null,"000010069","ESSALUD-CALCA","02","06","04","01","0206","000010069 - ESSALUD-CALCA"]
[null,null,null,null,null,null,null,null,null,null,null,null,null,null,"000010759","HUARAN                                                                                              ","02","06","04","01","0206","000010759 - HUARAN                                                                                              "]
[null,null,null,null,null,null,null,null,null,null,null,null,null,null,"000010762","ACCHA ALTA - PAMPALLACTA                                                                            ","02","06","04","01","0206","000010762 - ACCHA ALTA - PAMPALLACTA                                                                            "]
[null,null,null,null,null,null,null,null,null,null,null,null,null,null,"000026273","MENTAL COMUNITARIO CALCA","02","06","04","01","0206","000026273 - MENTAL COMUNITARIO CALCA"]
[null,null,null,null,null,null,null,null,null,null,null,null,null,null,"000000000","(All)","02","07",null,null,"0207","000000000 - (All)"]
[null,null,null,null,null,null,null,null,null,null,null,null,null,null,"000002540","URUBAMBA                                                                                            ","02","07",13,"01","0207","000002540 - URUBAMBA                                                                                            "]
[null,null,null,null,null,null,null,null,null,null,null,null,null,null,"000002541","YANAHUARA                                                                                           ","02","07",13,"01","0207","000002541 - YANAHUARA                                                                                           "]
[null,null,null,null,null,null,null,null,null,null,null,null,null,null,"000002543","CHINCHERO                                                                                           ","02","07",13,"02","0207","000002543 - CHINCHERO                                                                                           "]
[null,null,null,null,null,null,null,null,null,null,null,null,null,null,"000002544","OCCOTUAN                                                                                            ","02","07",13,"02","0207","000002544 - OCCOTUAN                                                                                            "]
[null,null,null,null,null,null,null,null,null,null,null,null,null,null,"000002545","HUAYLLABAMBA                                                                                        ","02","07",13,"03","0207","000002545 - HUAYLLABAMBA                                                                                        "]
[null,null,null,null,null,null,null,null,null,null,null,null,null,null,"000002546","MACHUPICCHU                                                                                         ","02","07",13,"04","0207","000002546 - MACHUPICCHU                                                                                         "]
[null,null,null,null,null,null,null,null,null,null,null,null,null,null,"000002547","COLLPANI                                                                                            ","02","07",13,"04","0207","000002547 - COLLPANI                                                                                            "]
[null,null,null,null,null,null,null,null,null,null,null,null,null,null,"000002548","MARAS                                                                                               ","02","07",13,"05","0207","000002548 - MARAS                                                                                               "]
[null,null,null,null,null,null,null,null,null,null,null,null,null,null,"000002549","OLLANTAYTAMBO                                                                                       ","02","07",13,"06","0207","000002549 - OLLANTAYTAMBO                                                                                       "]
[null,null,null,null,null,null,null,null,null,null,null,null,null,null,"000002550","CHILLCA                                                                                            ","02","07",13,"06","0207","000002550 - CHILLCA                                                                                            "]
[null,null,null,null,null,null,null,null,null,null,null,null,null,null,"000002551","YUCAY                                                                                               ","02","07",13,"07","0207","000002551 - YUCAY                                                                                               "]
[null,null,null,null,null,null,null,null,null,null,null,null,null,null,"000006974","CAMINO INCA HUAYLLABAMBA                                                                            ","02","07",13,"04","0207","000006974 - CAMINO INCA HUAYLLABAMBA                                                                            "]
[null,null,null,null,null,null,null,null,null,null,null,null,null,null,"000010073","ESSALUD-MACHU PICCHU","02","07",13,"04","0207","000010073 - ESSALUD-MACHU PICCHU"]
[null,null,null,null,null,null,null,null,null,null,null,null,null,null,"000010758","CRUZPATA                                                                                            ","02","07",13,"05","0207","000010758 - CRUZPATA                                                                                            "]
[null,null,null,null,null,null,null,null,null,null,null,null,null,null,"000010760","PATACANCHA                                                                                          ","02","07",13,"06","0207","000010760 - PATACANCHA                                                                                          "]
[null,null,null,null,null,null,null,null,null,null,null,null,null,null,"000030666","MENTAL COMUNITARIO URUBAMBA","02","07",13,"01","0207","000030666 - MENTAL COMUNITARIO URUBAMBA"]
[null,null,null,null,null,null,null,null,null,null,null,null,null,null,"000035851","ESSALUD-URUBAMBA","02","07",13,"01","0207","000035851 - ESSALUD-URUBAMBA"]
[null,null,null,null,null,null,null,null,null,null,null,null,null,null,"000000000","(All)","02","08",null,null,{"$f":"CONCATENATE(Q184,R184)","v":"0208"},"000000000 - (All)"]
[null,null,null,null,null,null,null,null,null,null,null,null,null,null,"000002355","LA QUEBRADA                                                                                         ","02","08","04","08","0208","000002355 - LA QUEBRADA                                                                                         "]
[null,null,null,null,null,null,null,null,null,null,null,null,null,null,"000002356","CCORIMAYO                                                                                           ","02","08","04","08","0208","000002356 - CCORIMAYO                                                                                           "]
[null,null,null,null,null,null,null,null,null,null,null,null,null,null,"000002357","COLCCA YANATILE                                                                                     ","02","08","04","08","0208","000002357 - COLCCA YANATILE                                                                                     "]
[null,null,null,null,null,null,null,null,null,null,null,null,null,null,"000002358","MUYUPAY                                                                                             ","02","08","04","08","0208","000002358 - MUYUPAY                                                                                             "]
[null,null,null,null,null,null,null,null,null,null,null,null,null,null,"000002359","PUTUCUSI                                                                                            ","02","08","04","08","0208","000002359 - PUTUCUSI                                                                                            "]
[null,null,null,null,null,null,null,null,null,null,null,null,null,null,"000002360","QUESQUENTO                                                                                          ","02","08","04","08","0208","000002360 - QUESQUENTO                                                                                          "]
[null,null,null,null,null,null,null,null,null,null,null,null,null,null,"000002362","HUACHIBAMBA                                                                                         ","02","08","04","08","0208","000002362 - HUACHIBAMBA                                                                                         "]
[null,null,null,null,null,null,null,null,null,null,null,null,null,null,"000002464","VERSALLES                                                                                           ","02","08","09","05","0208","000002464 - VERSALLES                                                                                           "]
[null,null,null,null,null,null,null,null,null,null,null,null,null,null,"000002467","PUENTE SANTIAGO                                                                                     ","02","08","09","06","0208","000002467 - PUENTE SANTIAGO                                                                                     "]
[null,null,null,null,null,null,null,null,null,null,null,null,null,null,"000006971","COMBAPATA YANATILE                                                                                  ","02","08","04","08","0208","000006971 - COMBAPATA YANATILE                                                                                  "]
[null,null,null,null,null,null,null,null,null,null,null,null,null,null,"000006973","BELLAVISTA                                                                                          ","02","08","04","08","0208","000006973 - BELLAVISTA                                                                                          "]
[null,null,null,null,null,null,null,null,null,null,null,null,null,null,"000007142","CHANCAMAYO                                                                                          ","02","08","04","08","0208","000007142 - CHANCAMAYO                                                                                          "]
[null,null,null,null,null,null,null,null,null,null,null,null,null,null,"000000000","(All)","02","09",null,null,"0209","000000000 - (All)"]
[null,null,null,null,null,null,null,null,null,null,null,null,null,null,"000002290","SAN PEDRO CUSCO                                                                                     ","02","09","01","01","0209","000002290 - SAN PEDRO CUSCO                                                                                     "]
[null,null,null,null,null,null,null,null,null,null,null,null,null,null,"000002291","SIETE CUARTONES                                                                                     ","02","09","01","01","0209","000002291 - SIETE CUARTONES                                                                                     "]
[null,null,null,null,null,null,null,null,null,null,null,null,null,null,"000002293","MIRAFLORES                                                                                          ","02","09","01","01","0209","000002293 - MIRAFLORES                                                                                          "]
[null,null,null,null,null,null,null,null,null,null,null,null,null,null,"000002294","PICCHU LA RINCONADA                                                                                 ","02","09","01","01","0209","000002294 - PICCHU LA RINCONADA                                                                                 "]
[null,null,null,null,null,null,null,null,null,null,null,null,null,null,"000002295","BUENA VISTA                                                                                         ","02","09","01","01","0209",{"$f":"CONCATENATE(O202,\" - \",P202)","v":"000002295 - BUENA VISTA                                                                                         "}]
[null,null,null,null,null,null,null,null,null,null,null,null,null,null,"000002299","POROY                                                                                               ","02","09","01","03","0209","000002299 - POROY                                                                                               "]
[null,null,null,null,null,null,null,null,null,null,null,null,null,null,"999999999","(All)","02","99",null,null,"0299","999999999 - (All)"]
[null,null,null,null,null,null,null,null,null,null,null,null,null,null,"000002421","HOSPITAL QUILLABAMBA","03","00","09","01","0300","000002421 - HOSPITAL QUILLABAMBA"]
[null,null,null,null,null,null,null,null,null,null,null,null,null,null,"000000000","(All)","03","01",null,null,"0301","000000000 - (All)"]
[null,null,null,null,null,null,null,null,null,null,null,null,null,null,"000002422","HUAYANAY                                                                                            ","03","01","09","01","0301","000002422 - HUAYANAY                                                                                            "]
[null,null,null,null,null,null,null,null,null,null,null,null,null,null,"000002423","IDMA                                                                                                ","03","01","09","01","0301","000002423 - IDMA                                                                                                "]
[null,null,null,null,null,null,null,null,null,null,null,null,null,null,"000002424","POTRERO                                                                                             ","03","01","09","01","0301","000002424 - POTRERO                                                                                             "]
[null,null,null,null,null,null,null,null,null,null,null,null,null,null,"000002425","ECHARATE                                                                                            ","03","01","09","02","0301","000002425 - ECHARATE                                                                                            "]
[null,null,null,null,null,null,null,null,null,null,null,null,null,null,"000002429","CIRIALO                                                                                             ","03","01","09","02","0301","000002429 - CIRIALO                                                                                             "]
[null,null,null,null,null,null,null,null,null,null,null,null,null,null,"000002430","PAMPA CONCEPCION                                                                                    ","03","01","09","02","0301","000002430 - PAMPA CONCEPCION                                                                                    "]
[null,null,null,null,null,null,null,null,null,null,null,null,null,null,"000002433","KORIBENI                                                                                            ","03","01","09","02","0301","000002433 - KORIBENI                                                                                            "]
[null,null,null,null,null,null,null,null,null,null,null,null,null,null,"000002439","PALMA REAL                                                                                          ","03","01","09","02","0301","000002439 - PALMA REAL                                                                                          "]
[null,null,null,null,null,null,null,null,null,null,null,null,null,null,"000002446","CHACCO                                                                                              ","03","01","09","02","0301","000002446 - CHACCO                                                                                              "]
[null,null,null,null,null,null,null,null,null,null,null,null,null,null,"000002449","ICHIQUIATO                                                                                          ","03","01","09","02","0301","000002449 - ICHIQUIATO                                                                                          "]
[null,null,null,null,null,null,null,null,null,null,null,null,null,null,"000002450","SAN ANTONIO                                                                                         ","03","01","09","02","0301","000002450 - SAN ANTONIO                                                                                         "]
[null,null,null,null,null,null,null,null,null,null,null,null,null,null,"000002451","CHAHUARES                                                                                           ","03","01","09","02","0301","000002451 - CHAHUARES                                                                                           "]
[null,null,null,null,null,null,null,null,null,null,null,null,null,null,"000008910","SANTA ANA                                                                                           ","03","01","09","01","0301","000008910 - SANTA ANA                                                                                           "]
[null,null,null,null,null,null,null,null,null,null,null,null,null,null,"000010062","ESSALUD-QUILLABAMBA","03","01","09","01","0301","000010062 - ESSALUD-QUILLABAMBA"]
[null,null,null,null,null,null,null,null,null,null,null,null,null,null,"000011744","SANIDAD-QUILLABAMBA PNP","03","01","09","01","0301","000011744 - SANIDAD-QUILLABAMBA PNP"]
[null,null,null,null,null,null,null,null,null,null,null,null,null,null,"000015842","PAVAYOC                                                                                             ","03","01","09","01","0301","000015842 - PAVAYOC                                                                                             "]
[null,null,null,null,null,null,null,null,null,null,null,null,null,null,"000023721","EJERCITO-PERUANO","03","01","09","01","0301","000023721 - EJERCITO-PERUANO"]
[null,null,null,null,null,null,null,null,null,null,null,null,null,null,"000026386","MENTAL QUILLABAMBA","03","01","09","01","0301","000026386 - MENTAL QUILLABAMBA"]
[null,null,null,null,null,null,null,null,null,null,null,null,null,null,"000033273","SAN ISIDRO LABRADOR - ECHARATI","03","01","09","02","0301","000033273 - SAN ISIDRO LABRADOR - ECHARATI"]
[null,null,null,null,null,null,null,null,null,null,null,null,null,null,"000000000","(All)","03","02",null,null,"0302","000000000 - (All)"]
[null,null,null,null,null,null,null,null,null,null,null,null,null,null,"000002453","HUYRO                                                                                               ","03","02","09","03","0302","000002453 - HUYRO                                                                                               "]
[null,null,null,null,null,null,null,null,null,null,null,null,null,null,"000002454","ALFAMAYO                                                                                            ","03","02","09","03","0302","000002454 - ALFAMAYO                                                                                            "]
[null,null,null,null,null,null,null,null,null,null,null,null,null,null,"000002455","HUAYOPATA                                                                                           ","03","02","09","03","0302","000002455 - HUAYOPATA                                                                                           "]
[null,null,null,null,null,null,null,null,null,null,null,null,null,null,"000002456","AMAYBAMBA                                                                                           ","03","02","09","03","0302","000002456 - AMAYBAMBA                                                                                           "]
[null,null,null,null,null,null,null,null,null,null,null,null,null,null,"000002457","SAN PABLO HUAYOPATA                                                                                 ","03","02","09","03","0302","000002457 - SAN PABLO HUAYOPATA                                                                                 "]
[null,null,null,null,null,null,null,null,null,null,null,null,null,null,"000002458","MARANURA                                                                                            ","03","02","09","04","0302","000002458 - MARANURA                                                                                            "]
[null,null,null,null,null,null,null,null,null,null,null,null,null,null,"000002460","SANTA MARIA                                                                                         ","03","02","09","04","0302","000002460 - SANTA MARIA                                                                                         "]
[null,null,null,null,null,null,null,null,null,null,null,null,null,null,"000002461","UCHUMAYO                                                                                            ","03","02","09","04","0302","000002461 - UCHUMAYO                                                                                            "]
[null,null,null,null,null,null,null,null,null,null,null,null,null,null,"000002476","SANTA TERESA                                                                                        ","03","02","09","08","0302","000002476 - SANTA TERESA                                                                                        "]
[null,null,null,null,null,null,null,null,null,null,null,null,null,null,"000002477","SULLUCUYOC                                                                                          ","03","02","09","08","0302","000002477 - SULLUCUYOC                                                                                          "]
[null,null,null,null,null,null,null,null,null,null,null,null,null,null,"000002478","TOTORA                                                                                              ","03","02","09","08","0302","000002478 - TOTORA                                                                                              "]
[null,null,null,null,null,null,null,null,null,null,null,null,null,null,"000010075","ESSALUD-HUYRO","03","02","09","03","0302","000010075 - ESSALUD-HUYRO"]
[null,null,null,null,null,null,null,null,null,null,null,null,null,null,"000000000","(All)","03","03",null,null,"0303","000000000 - (All)"]
[null,null,null,null,null,null,null,null,null,null,null,null,null,null,"000002363","TUPAC AMARU QUELLOUNO                                                                               ","03","03","04","08","0303","000002363 - TUPAC AMARU QUELLOUNO                                                                               "]
[null,null,null,null,null,null,null,null,null,null,null,null,null,null,"000002462","OCCOBAMBA LACONVENCION                                                                              ","03","03","09","05","0303","000002462 - OCCOBAMBA LACONVENCION                                                                              "]
[null,null,null,null,null,null,null,null,null,null,null,null,null,null,"000002463","CHINGANILLA                                                                                         ","03","03","09","05","0303","000002463 - CHINGANILLA                                                                                         "]
[null,null,null,null,null,null,null,null,null,null,null,null,null,null,"000002465","QUELLOUNO                                                                                           ","03","03","09","06","0303","000002465 - QUELLOUNO                                                                                           "]
[null,null,null,null,null,null,null,null,null,null,null,null,null,null,"000002466","HUILLCAPAMPA                                                                                        ","03","03","09","06","0303","000002466 - HUILLCAPAMPA                                                                                        "]
[null,null,null,null,null,null,null,null,null,null,null,null,null,null,"000002468","SAN MARTIN                                                                                          ","03","03","09","06","0303","000002468 - SAN MARTIN                                                                                          "]
[null,null,null,null,null,null,null,null,null,null,null,null,null,null,"000008906","ESTRELLA                                                                                            ","03","03","09","06","0303","000008906 - ESTRELLA                                                                                            "]
[null,null,null,null,null,null,null,null,null,null,null,null,null,null,"000008907","MATORIATO                                                                                           ","03","03","09","06","0303","000008907 - MATORIATO                                                                                           "]
[null,null,null,null,null,null,null,null,null,null,null,null,null,null,"000008908","CHIRUMBIA                                                                                           ","03","03","09","06",{"$f":"CONCATENATE(Q248,R248)","v":"0303"},"000008908 - CHIRUMBIA                                                                                           "]
[null,null,null,null,null,null,null,null,null,null,null,null,null,null,"000008909","CHAPO BOYERO                                                                                        ","03","03","09","06","0303","000008909 - CHAPO BOYERO                                                                                        "]
[null,null,null,null,null,null,null,null,null,null,null,null,null,null,"000000000","(All)","03","04",null,null,"0304","000000000 - (All)"]
[null,null,null,null,null,null,null,null,null,null,null,null,null,null,"000002427","KITENI                                                                                              ","03","04","09","02","0304","000002427 - KITENI                                                                                              "]
[null,null,null,null,null,null,null,null,null,null,null,null,null,null,"000002431","IVOCHOTE                                                                                            ","03","04","09","02","0304","000002431 - IVOCHOTE                                                                                            "]
[null,null,null,null,null,null,null,null,null,null,null,null,null,null,"000002432","KEPASHIATO                                                                                          ","03","04","09","15","0304","000002432 - KEPASHIATO                                                                                          "]
[null,null,null,null,null,null,null,null,null,null,null,null,null,null,"000002434","MATERIATO                                                                                           ","03","04","09","15","0304","000002434 - MATERIATO                                                                                           "]
[null,null,null,null,null,null,null,null,null,null,null,null,null,null,"000002438","PACHIRI                                                                                             ","03","04","09","02","0304","000002438 - PACHIRI                                                                                             "]
[null,null,null,null,null,null,null,null,null,null,null,null,null,null,"000002440","PANGOA                                                                                              ","03","04","09","02","0304","000002440 - PANGOA                                                                                              "]
[null,null,null,null,null,null,null,null,null,null,null,null,null,null,"000002443","SANIRIATO                                                                                           ","03","04","09","02","0304","000002443 - SANIRIATO                                                                                           "]
[null,null,null,null,null,null,null,null,null,null,null,null,null,null,"000002447","KAMANQUIRIATO                                                                                       ","03","04","09","02","0304","000002447 - KAMANQUIRIATO                                                                                       "]
[null,null,null,null,null,null,null,null,null,null,null,null,null,null,"000002489","YUVENI                                                                                              ","03","04","09","09","0304","000002489 - YUVENI                                                                                              "]
[null,null,null,null,null,null,null,null,null,null,null,null,null,null,"000002493","SELVA ALEGRE                                                                                        ","03","04","09","09","0304","000002493 - SELVA ALEGRE                                                                                        "]
[null,null,null,null,null,null,null,null,null,null,null,null,null,null,"000006976","CHONTABAMBA                                                                                         ","03","04","09","09","0304","000006976 - CHONTABAMBA                                                                                         "]
[null,null,null,null,null,null,null,null,null,null,null,null,null,null,"000013068","TRIO RIO                                                                                            ","03","04","09","15","0304","000013068 - TRIO RIO                                                                                            "]
[null,null,null,null,null,null,null,null,null,null,null,null,null,null,"000013069","PUGUIENTIMARI                                                                                       ","03","04","09","15","0304","000013069 - PUGUIENTIMARI                                                                                       "]
[null,null,null,null,null,null,null,null,null,null,null,null,null,null,"000014531","ESSALUD-ECHARATE/KITENI","03","04","09","02","0304","000014531 - ESSALUD-ECHARATE/KITENI"]
[null,null,null,null,null,null,null,null,null,null,null,null,null,null,"000024296","EJERCITO-MIARIA 334","03","04","09","02",{"$f":"CONCATENATE(Q265,R265)","v":"0304"},"000024296 - EJERCITO-MIARIA 334"]
[null,null,null,null,null,null,null,null,null,null,null,null,null,null,"000024583","EJERCITO-KEPASHIATO 314","03","04","09","02",{"$f":"CONCATENATE(Q266,R266)","v":"0304"},{"$f":"CONCATENATE(O266,\" - \",P266)","v":"000024583 - EJERCITO-KEPASHIATO 314"}]
[null,null,null,null,null,null,null,null,null,null,null,null,null,null,"000000000","(All)","03","05",null,null,{"$f":"CONCATENATE(Q267,R267)","v":"0305"},"000000000 - (All)"]
[null,null,null,null,null,null,null,null,null,null,null,null,null,null,"000002426","KIRIGUETI                                                                                           ","03","05","09","14","0305","000002426 - KIRIGUETI                                                                                           "]
[null,null,null,null,null,null,null,null,null,null,null,null,null,null,"000002428","CHOCORIARI                                                                                          ","03","05","09","14","0305","000002428 - CHOCORIARI                                                                                          "]
[null,null,null,null,null,null,null,null,null,null,null,null,null,null,"000002435","MIARIA                                                                                              ","03","05","09","14","0305","000002435 - MIARIA                                                                                              "]
[null,null,null,null,null,null,null,null,null,null,null,null,null,null,"000002436","NUEVA LUZ                                                                                           ","03","05","09","14","0305","000002436 - NUEVA LUZ                                                                                           "]
[null,null,null,null,null,null,null,null,null,null,null,null,null,null,"000002437","NUEVO MUNDO                                                                                         ","03","05","09","14","0305","000002437 - NUEVO MUNDO                                                                                         "]
[null,null,null,null,null,null,null,null,null,null,null,null,null,null,"000002441","PUERTO HUALLANA                                                                                     ","03","05","09","14","0305","000002441 - PUERTO HUALLANA                                                                                     "]
[null,null,null,null,null,null,null,null,null,null,null,null,null,null,"000002442","PUERTO RICO                                                                                         ","03","05","09","14","0305","000002442 - PUERTO RICO                                                                                         "]
[null,null,null,null,null,null,null,null,null,null,null,null,null,null,"000002444","SENSA                                                                                               ","03","05","09","14","0305","000002444 - SENSA                                                                                               "]
[null,null,null,null,null,null,null,null,null,null,null,null,null,null,"000002445","TIMPIA                                                                                              ","03","05","09","14","0305","000002445 - TIMPIA                                                                                              "]
[null,null,null,null,null,null,null,null,null,null,null,null,null,null,"000002448","KAMISEA                                                                                             ","03","05","09","14","0305","000002448 - KAMISEA                                                                                             "]
[null,null,null,null,null,null,null,null,null,null,null,null,null,null,"000002452","SHIVANKORENI                                                                                        ","03","05","09","14","0305","000002452 - SHIVANKORENI                                                                                        "]
[null,null,null,null,null,null,null,null,null,null,null,null,null,null,"000013066","MONTETONI                                                                                           ","03","05","09","14","0305","000013066 - MONTETONI                                                                                           "]
[null,null,null,null,null,null,null,null,null,null,null,null,null,null,"000013067","TANGOSHIARI                                                                                         ","03","05","09","14","0305","000013067 - TANGOSHIARI                                                                                         "]
[null,null,null,null,null,null,null,null,null,null,null,null,null,null,"000015235","NUEVA VIDA                                                                                          ","03","05","09","14","0305","000015235 - NUEVA VIDA                                                                                          "]
[null,null,null,null,null,null,null,null,null,null,null,null,null,null,"000015843","CASHIRIARI                                                                                          ","03","05","09","14","0305","000015843 - CASHIRIARI                                                                                          "]
[null,null,null,null,null,null,null,null,null,null,null,null,null,null,"000015844","CAMANA                                                                                              ","03","05","09","14","0305","000015844 - CAMANA                                                                                              "]
[null,null,null,null,null,null,null,null,null,null,null,null,null,null,"000000000","(All)","03","06",null,null,"0306","000000000 - (All)"]
[null,null,null,null,null,null,null,null,null,null,null,null,null,null,"000002480","PUCYURA                                                                                             ","03","06","09","09","0306","000002480 - PUCYURA                                                                                             "]
[null,null,null,null,null,null,null,null,null,null,null,null,null,null,"000002481","CCARCCO                                                                                             ","03","06","09",11,"0306","000002481 - CCARCCO                                                                                             "]
[null,null,null,null,null,null,null,null,null,null,null,null,null,null,"000002482","INCAHUASI                                                                                           ","03","06","09",11,"0306","000002482 - INCAHUASI                                                                                           "]
[null,null,null,null,null,null,null,null,null,null,null,null,null,null,"000002484","OYARA                                                                                               ","03","06","09","09","0306","000002484 - OYARA                                                                                               "]
[null,null,null,null,null,null,null,null,null,null,null,null,null,null,"000002485","PACCAYBAMBA                                                                                         ","03","06","09",11,"0306","000002485 - PACCAYBAMBA                                                                                         "]
[null,null,null,null,null,null,null,null,null,null,null,null,null,null,"000002486","PAMPACONAS                                                                                          ","03","06","09","09","0306","000002486 - PAMPACONAS                                                                                          "]
[null,null,null,null,null,null,null,null,null,null,null,null,null,null,"000002487","CHOQUETIRA                                                                                          ","03","06","09",11,"0306","000002487 - CHOQUETIRA                                                                                          "]
[null,null,null,null,null,null,null,null,null,null,null,null,null,null,"000002490","ARMA                                                                                                ","03","06","09","09","0306","000002490 - ARMA                                                                                                "]
[null,null,null,null,null,null,null,null,null,null,null,null,null,null,"000002491","LUCMAHUAYCO                                                                                         ","03","06","09",11,"0306","000002491 - LUCMAHUAYCO                                                                                         "]
[null,null,null,null,null,null,null,null,null,null,null,null,null,null,"000002492","PALTAYBAMBA                                                                                         ","03","06","09","09","0306","000002492 - PALTAYBAMBA                                                                                         "]
[null,null,null,null,null,null,null,null,null,null,null,null,null,null,"000024637","EJERCITO-INCAHUASI 331                                                                                       ","03","06","09",11,"0306","000024637 - EJERCITO-INCAHUASI 331                                                                                       "]
[null,null,null,null,null,null,null,null,null,null,null,null,null,null,"000035520","CHANCAVINE                                                                                          ","03","06","09",12,"0306","000035520 - CHANCAVINE                                                                                          "]
[null,null,null,null,null,null,null,null,null,null,null,null,null,null,"999999999","(All)","03","99",null,null,{"$f":"CONCATENATE(Q297,R297)","v":"0399"},"999999999 - (All)"]
[null,null,null,null,null,null,null,null,null,null,null,null,null,null,"000002378","HOSPITAL SICUANI","04","00","06","01","0400","000002378 - HOSPITAL SICUANI"]
[null,null,null,null,null,null,null,null,null,null,null,null,null,null,"000007135","HOSPITAL ESPINAR","04","00","08","01","0400","000007135 - HOSPITAL ESPINAR"]
[null,null,null,null,null,null,null,null,null,null,null,null,null,null,"000000000","(All)","04","01",null,null,"0401","000000000 - (All)"]
[null,null,null,null,null,null,null,null,null,null,null,null,null,null,"000002364","YANAOCA                                                                                             ","04","01","05","01","0401","000002364 - YANAOCA                                                                                             "]
[null,null,null,null,null,null,null,null,null,null,null,null,null,null,"000002365","PONGOÑA                                                                                             ","04","01","05","01","0401","000002365 - PONGOÑA                                                                                             "]
[null,null,null,null,null,null,null,null,null,null,null,null,null,null,"000002372","PAMPAMARCA                                                                                          ","04","01","05","06","0401","000002372 - PAMPAMARCA                                                                                          "]
[null,null,null,null,null,null,null,null,null,null,null,null,null,null,"000002373","QUEHUE                                                                                              ","04","01","05","07","0401","000002373 - QUEHUE                                                                                              "]
[null,null,null,null,null,null,null,null,null,null,null,null,null,null,"000002374","HUINCHIRI                                                                                           ","04","01","05","07","0401","000002374 - HUINCHIRI                                                                                           "]
[null,null,null,null,null,null,null,null,null,null,null,null,null,null,"000002375","SURIMANA                                                                                            ","04","01","05","08","0401","000002375 - SURIMANA                                                                                            "]
[null,null,null,null,null,null,null,null,null,null,null,null,null,null,"000002376","TUNGASUCA                                                                                           ","04","01","05","08","0401","000002376 - TUNGASUCA                                                                                           "]
[null,null,null,null,null,null,null,null,null,null,null,null,null,null,"000002377","TOCCOCCORI                                                                                          ","04","01","05","08","0401","000002377 - TOCCOCCORI                                                                                          "]
[null,null,null,null,null,null,null,null,null,null,null,null,null,null,"000018241","HAMPATURA                                                                                           ","04","01","05","01","0401","000018241 - HAMPATURA                                                                                           "]
[null,null,null,null,null,null,null,null,null,null,null,null,null,null,"000032339","CCOCHAPATA                                                                                     ","04","01","05","08","0401","000032339 - CCOCHAPATA                                                                                     "]
[null,null,null,null,null,null,null,null,null,null,null,null,null,null,"000034449","CHAUPIBANDA","04","01","05","08","0401","000034449 - CHAUPIBANDA"]
[null,null,null,null,null,null,null,null,null,null,null,null,null,null,"000000000","(All)","04","02",null,null,"0402","000000000 - (All)"]
[null,null,null,null,null,null,null,null,null,null,null,null,null,null,"000002366","CHECCA                                                                                              ","04","02","05","02","0402","000002366 - CHECCA                                                                                              "]
[null,null,null,null,null,null,null,null,null,null,null,null,null,null,"000002367","CHITIBAMBA                                                                                          ","04","02","05","02","0402","000002367 - CHITIBAMBA                                                                                          "]
[null,null,null,null,null,null,null,null,null,null,null,null,null,null,"000007700","EL DESCANSO                                                                                         ","04","02","05","03","0402","000007700 - EL DESCANSO                                                                                         "]
[null,null,null,null,null,null,null,null,null,null,null,null,null,null,"000000000","(All)","04","03",null,null,"0403","000000000 - (All)"]
[null,null,null,null,null,null,null,null,null,null,null,null,null,null,"000002320","MOSOCLLACTA                                                                                         ","04","03","02","04","0403","000002320 - MOSOCLLACTA                                                                                         "]
[null,null,null,null,null,null,null,null,null,null,null,null,null,null,"000002386","COMBAPATA CANCHIS                                                                                   ","04","03","06","03","0403","000002386 - COMBAPATA CANCHIS                                                                                   "]
[null,null,null,null,null,null,null,null,null,null,null,null,null,null,"000002397","TINTA                                                                                               ","04","03","06","08","0403","000002397 - TINTA                                                                                               "]
[null,null,null,null,null,null,null,null,null,null,null,null,null,null,"000034448","CHIARA                                                                                              ","04","03","06","03","0403","000034448 - CHIARA                                                                                              "]
[null,null,null,null,null,null,null,null,null,null,null,null,null,null,"000034887","PITUMARCA                                                                                           ","04","03","06","05","0403","000034887 - PITUMARCA                                                                                           "]
[null,null,null,null,null,null,null,null,null,null,null,null,null,null,"000034929","CHECACUPE                                                                                           ","04","03","06","02","0403","000034929 - CHECACUPE                                                                                           "]
[null,null,null,null,null,null,null,null,null,null,null,null,null,null,"000000000","(All)","04","04",null,null,"0404","000000000 - (All)"]
[null,null,null,null,null,null,null,null,null,null,null,null,null,null,"000002369","LANGUI                                                                                              ","04","04","05","04","0404","000002369 - LANGUI                                                                                              "]
[null,null,null,null,null,null,null,null,null,null,null,null,null,null,"000002370","CONDEVILUYO                                                                                         ","04","04","05","04","0404","000002370 - CONDEVILUYO                                                                                         "]
[null,null,null,null,null,null,null,null,null,null,null,null,null,null,"000002371","LAYO                                                                                                ","04","04","05","05","0404","000002371 - LAYO                                                                                                "]
[null,null,null,null,null,null,null,null,null,null,null,null,null,null,"000002379","HERCCA                                                                                              ","04","04","06","01","0404","000002379 - HERCCA                                                                                              "]
[null,null,null,null,null,null,null,null,null,null,null,null,null,null,"000002380","TECHO OBRERO                                                                                        ","04","04","06","01","0404","000002380 - TECHO OBRERO                                                                                        "]
[null,null,null,null,null,null,null,null,null,null,null,null,null,null,"000002388","MARANGANI                                                                                           ","04","04","06","04","0404","000002388 - MARANGANI                                                                                           "]
[null,null,null,null,null,null,null,null,null,null,null,null,null,null,"000002389","CHECTUYOC                                                                                           ","04","04","06","04","0404",{"$f":"CONCATENATE(O330,\" - \",P330)","v":"000002389 - CHECTUYOC                                                                                           "}]
[null,null,null,null,null,null,null,null,null,null,null,null,null,null,"000002390","CCUYO                                                                                               ","04","04","06","04","0404","000002390 - CCUYO                                                                                               "]
[null,null,null,null,null,null,null,null,null,null,null,null,null,null,"000002391","OCCOBAMBA MARANGANI                                                                                 ","04","04","06","04","0404","000002391 - OCCOBAMBA MARANGANI                                                                                 "]
[null,null,null,null,null,null,null,null,null,null,null,null,null,null,"000010063","ESSALUD-SICUANI","04","04","06","01","0404","000010063 - ESSALUD-SICUANI"]
[null,null,null,null,null,null,null,null,null,null,null,null,null,null,"000024663","SANIDAD-SICUANI PNP","04","04","06","01","0404","000024663 - SANIDAD-SICUANI PNP"]
[null,null,null,null,null,null,null,null,null,null,null,null,null,null,"000000000","(All)","04","05",null,null,"0405","000000000 - (All)"]
[null,null,null,null,null,null,null,null,null,null,null,null,null,null,"000002381","QUEHUAR                                                                                             ","04","05","06","01","0405","000002381 - QUEHUAR                                                                                             "]
[null,null,null,null,null,null,null,null,null,null,null,null,null,null,"000002382","UZCUPATA                                                                                            ","04","05","06","01","0405","000002382 - UZCUPATA                                                                                            "]
[null,null,null,null,null,null,null,null,null,null,null,null,null,null,"000002383","LA FLORIDA                                                                                          ","04","05","06","01","0405","000002383 - LA FLORIDA                                                                                          "]
[null,null,null,null,null,null,null,null,null,null,null,null,null,null,"000002393","PHINAYA                                                                                             ","04","05","06","05","0405","000002393 - PHINAYA                                                                                             "]
[null,null,null,null,null,null,null,null,null,null,null,null,null,null,"000002394","SAN PABLO CANCHIS                                                                                   ","04","05","06","06","0405","000002394 - SAN PABLO CANCHIS                                                                                   "]
[null,null,null,null,null,null,null,null,null,null,null,null,null,null,"000002395","SANTA BARBARA                                                                                       ","04","05","06","06","0405","000002395 - SANTA BARBARA                                                                                       "]
[null,null,null,null,null,null,null,null,null,null,null,null,null,null,"000002396","SAN PEDRO CANCHIS                                                                                   ","04","05","06","07","0405","000002396 - SAN PEDRO CANCHIS                                                                                   "]
[null,null,null,null,null,null,null,null,null,null,null,null,null,null,"000032923","SR DE PAMPACUCHO-SICUANI","04","05","06","01","0405","000032923 - SR DE PAMPACUCHO-SICUANI"]
[null,null,null,null,null,null,null,null,null,null,null,null,null,null,"000035845","PAMPAPHALLA                                                                                         ","04","05","06","01","0405","000035845 - PAMPAPHALLA                                                                                         "]
[null,null,null,null,null,null,null,null,null,null,null,null,null,null,"000035848","MENTAL COMUNITARIO SICUANI","04","05","06","01","0405","000035848 - MENTAL COMUNITARIO SICUANI"]
[null,null,null,null,null,null,null,null,null,null,null,null,null,null,"000000000","(All)","04","06",null,null,"0406","000000000 - (All)"]
[null,null,null,null,null,null,null,null,null,null,null,null,null,null,"000002410","YAURI                                                                                               ","04","06","08","01","0406","000002410 - YAURI                                                                                               "]
[null,null,null,null,null,null,null,null,null,null,null,null,null,null,"000002411","CONDOROMA                                                                                           ","04","06","08","02","0406","000002411 - CONDOROMA                                                                                           "]
[null,null,null,null,null,null,null,null,null,null,null,null,null,null,"000002412","COPORAQUE                                                                                           ","04","06","08","03","0406","000002412 - COPORAQUE                                                                                           "]
[null,null,null,null,null,null,null,null,null,null,null,null,null,null,"000002413","URINSAYA                                                                                            ","04","06","08","03","0406","000002413 - URINSAYA                                                                                            "]
[null,null,null,null,null,null,null,null,null,null,null,null,null,null,"000002414","HUAYHUAHUASI                                                                                        ","04","06","08","03","0406","000002414 - HUAYHUAHUASI                                                                                        "]
[null,null,null,null,null,null,null,null,null,null,null,null,null,null,"000002415","OCCORURO                                                                                            ","04","06","08","04","0406","000002415 - OCCORURO                                                                                            "]
[null,null,null,null,null,null,null,null,null,null,null,null,null,null,"000002416","PALLPATA                                                                                            ","04","06","08","05","0406","000002416 - PALLPATA                                                                                            "]
[null,null,null,null,null,null,null,null,null,null,null,null,null,null,"000002418","SAN MIGUEL                                                                                          ","04","06","08","06","0406","000002418 - SAN MIGUEL                                                                                          "]
[null,null,null,null,null,null,null,null,null,null,null,null,null,null,"000002419","SUYKUTAMBO                                                                                          ","04","06","08","07","0406","000002419 - SUYKUTAMBO                                                                                          "]
[null,null,null,null,null,null,null,null,null,null,null,null,null,null,"000002420","ACCOCUNCA                                                                                           ","04","06","08","08","0406","000002420 - ACCOCUNCA                                                                                           "]
[null,null,null,null,null,null,null,null,null,null,null,null,null,null,"000006745","TINTAYA MARQUIRI                                                                                    ","04","06","08","01","0406","000006745 - TINTAYA MARQUIRI                                                                                    "]
[null,null,null,null,null,null,null,null,null,null,null,null,null,null,"000010061","ESSALUD-ESPINAR","04","06","08","01","0406","000010061 - ESSALUD-ESPINAR"]
[null,null,null,null,null,null,null,null,null,null,null,null,null,null,"000030366","MENTAL COMUNITARIO ESPINAR","04","06","08","01","0406","000030366 - MENTAL COMUNITARIO ESPINAR"]
[null,null,null,null,null,null,null,null,null,null,null,null,null,null,"000034450","PICHIGUA ESPINAR                                                                                    ","04","06","08","06","0406","000034450 - PICHIGUA ESPINAR                                                                                    "]
[null,null,null,null,null,null,null,null,null,null,null,null,null,null,"999999999","(All)","04","99",null,null,{"$f":"CONCATENATE(Q361,R361)","v":"0499"},"999999999 - (All)"]
[null,null,null,null,null,null,null,null,null,null,null,null,null,null,"000002469","SAN JUAN DE KIMBIRI-VRAEM                                                                           ","05","00","09","07","0500","000002469 - SAN JUAN DE KIMBIRI-VRAEM                                                                           "]
[null,null,null,null,null,null,null,null,null,null,null,null,null,null,"000000000","(All)","05","01",null,null,"0501","000000000 - (All)"]
[null,null,null,null,null,null,null,null,null,null,null,null,null,null,"000002470","CHIRUMPIARI                                                                                         ","05","01","09","16","0501","000002470 - CHIRUMPIARI                                                                                         "]
[null,null,null,null,null,null,null,null,null,null,null,null,null,null,"000002471","LOBO TAHUANTINSUYO                                                                                  ","05","01","09","17","0501","000002471 - LOBO TAHUANTINSUYO                                                                                  "]
[null,null,null,null,null,null,null,null,null,null,null,null,null,null,"000002472","MAPITUNARI                                                                                          ","05","01","09","07","0501","000002472 - MAPITUNARI                                                                                          "]
[null,null,null,null,null,null,null,null,null,null,null,null,null,null,"000002473","UNION ROSALES                                                                                       ","05","01","09","17","0501","000002473 - UNION ROSALES                                                                                       "]
[null,null,null,null,null,null,null,null,null,null,null,null,null,null,"000002474","SAMANIATO                                                                                           ","05","01","09","07","0501","000002474 - SAMANIATO                                                                                           "]
[null,null,null,null,null,null,null,null,null,null,null,null,null,null,"000002475","KIMBIRI ALTO                                                                                        ","05","01","09","07","0501","000002475 - KIMBIRI ALTO                                                                                        "]
[null,null,null,null,null,null,null,null,null,null,null,null,null,null,"000002479","VILLA VIRGEN                                                                                        ","05","01","09",12,"0501","000002479 - VILLA VIRGEN                                                                                        "]
[null,null,null,null,null,null,null,null,null,null,null,null,null,null,"000002488","VILLA QUINTIARINA                                                                                   ","05","01","09",13,"0501","000002488 - VILLA QUINTIARINA                                                                                   "]
[null,null,null,null,null,null,null,null,null,null,null,null,null,null,"000008283","PUEBLO LIBRE                                                                                        ","05","01","09","07","0501","000008283 - PUEBLO LIBRE                                                                                        "]
[null,null,null,null,null,null,null,null,null,null,null,null,null,null,"000008284","MANITEA ALTA                                                                                        ","05","01","09","17","0501","000008284 - MANITEA ALTA                                                                                        "]
[null,null,null,null,null,null,null,null,null,null,null,null,null,null,"000008285","ANGELES                                                                                             ","05","01","09","07","0501","000008285 - ANGELES                                                                                             "]
[null,null,null,null,null,null,null,null,null,null,null,null,null,null,"000024957","EJERCITO-LA OROYA 34                                                                                 ","05","01","09",12,"0501","000024957 - EJERCITO-LA OROYA 34                                                                                 "]
[null,null,null,null,null,null,null,null,null,null,null,null,null,null,"000000000","(All)","05","02",null,null,"0502","000000000 - (All)"]
[null,null,null,null,null,null,null,null,null,null,null,null,null,null,"000002495","MANTARO                                                                                             ","05","02","09","18","0502","000002495 - MANTARO                                                                                             "]
[null,null,null,null,null,null,null,null,null,null,null,null,null,null,"000002496","OMAYA                                                                                               ","05","02","09","10","0502","000002496 - OMAYA                                                                                               "]
[null,null,null,null,null,null,null,null,null,null,null,null,null,null,"000002497","OTARI                                                                                               ","05","02","09","10","0502","000002497 - OTARI                                                                                               "]
[null,null,null,null,null,null,null,null,null,null,null,null,null,null,"000002498","PUERTO MAYO                                                                                         ","05","02","09","10","0502","000002498 - PUERTO MAYO                                                                                         "]
[null,null,null,null,null,null,null,null,null,null,null,null,null,null,"000007113","NATIVIDAD                                                                                           ","05","02","09","10","0502","000007113 - NATIVIDAD                                                                                           "]
[null,null,null,null,null,null,null,null,null,null,null,null,null,null,"000007114","QUISTO CENTRAL                                                                                      ","05","02","09","10","0502","000007114 - QUISTO CENTRAL                                                                                      "]
[null,null,null,null,null,null,null,null,null,null,null,null,null,null,"000015104","TAMBO DEL ENE                                                                                       ","05","02","09","10","0502","000015104 - TAMBO DEL ENE                                                                                       "]
[null,null,null,null,null,null,null,null,null,null,null,null,null,null,"000015169","PITIRINQUINI                                                                                        ","05","02","09","10","0502","000015169 - PITIRINQUINI                                                                                        "]
[null,null,null,null,null,null,null,null,null,null,null,null,null,null,"000015170","PICHARI BAJA                                                                                        ","05","02","09","10","0502","000015170 - PICHARI BAJA                                                                                        "]
[null,null,null,null,null,null,null,null,null,null,null,null,null,null,"000024638","EJERCITO-MILITAR PICHARI                                                                    ","05","02","09","10","0502","000024638 - EJERCITO-MILITAR PICHARI                                                                    "]
[null,null,null,null,null,null,null,null,null,null,null,null,null,null,"000027230","SANIDAD-PICHARI PNP                                                                            ","05","02","09","10","0502","000027230 - SANIDAD-PICHARI PNP                                                                            "]
[null,null,null,null,null,null,null,null,null,null,null,null,null,null,"000027948","ESSALUD-PICHARI                                                                       ","05","02","09","10","0502","000027948 - ESSALUD-PICHARI                                                                       "]
[null,null,null,null,null,null,null,null,null,null,null,null,null,null,"000032211","NUEVO PROGRESO                                                          ","05","02","09","10","0502","000032211 - NUEVO PROGRESO                                                          "]
[null,null,null,null,null,null,null,null,null,null,null,null,null,null,"000033988","MENTAL COMUNITARIO PICHARI","05","02","09","10","0502","000033988 - MENTAL COMUNITARIO PICHARI"]
[null,null,null,null,null,null,null,null,null,null,null,null,null,null,"000034418","PICHARI                                                                                             ","05","02","09","10","0502","000034418 - PICHARI                                                                                             "]
[null,null,null,null,null,null,null,null,null,null,null,null,null,null,"999999999","(All)","05","99",null,null,"0599","999999999 - (All)"]
[null,null,null,null,null,null,null,null,null,null,null,null,null,null,"000002398","HOSPITAL SANTO TOMAS","06","00","07","01","0600","000002398 - HOSPITAL SANTO TOMAS"]
[null,null,null,null,null,null,null,null,null,null,null,null,null,null,"000000000","(All)","06","09",null,null,"0609",{"$f":"CONCATENATE(O394,\" - \",P394)","v":"000000000 - (All)"}]
[null,null,null,null,null,null,null,null,null,null,null,null,null,null,"000002399","PULPERA                                                                                             ","06","09","07","01","0609","000002399 - PULPERA                                                                                             "]
[null,null,null,null,null,null,null,null,null,null,null,null,null,null,"000002400","ALHUACCHULLO                                                                                        ","06","09","07","01","0609","000002400 - ALHUACCHULLO                                                                                        "]
[null,null,null,null,null,null,null,null,null,null,null,null,null,null,"000002401","CCAPACMARCA                                                                                         ","06","09","07","02","0609","000002401 - CCAPACMARCA                                                                                         "]
[null,null,null,null,null,null,null,null,null,null,null,null,null,null,"000002404","COLQUEMARCA                                                                                         ","06","09","07","04","0609","000002404 - COLQUEMARCA                                                                                         "]
[null,null,null,null,null,null,null,null,null,null,null,null,null,null,"000002405","CHARAMURAY                                                                                          ","06","09","07","04","0609","000002405 - CHARAMURAY                                                                                          "]
[null,null,null,null,null,null,null,null,null,null,null,null,null,null,"000002407","LLUSCO                                                                                              ","06","09","07","06","0609","000002407 - LLUSCO                                                                                              "]
[null,null,null,null,null,null,null,null,null,null,null,null,null,null,"000002408","QUIÑOTA                                                                                             ","06","09","07","07","0609","000002408 - QUIÑOTA                                                                                             "]
[null,null,null,null,null,null,null,null,null,null,null,null,null,null,"000002409","VELILLE                                                                                             ","06","09","07","08","0609","000002409 - VELILLE                                                                                             "]
[null,null,null,null,null,null,null,null,null,null,null,null,null,null,"000006746","LLIQUE                                                                                              ","06","09","07","01","0609","000006746 - LLIQUE                                                                                              "]
[null,null,null,null,null,null,null,null,null,null,null,null,null,null,"000006747","LUTTO                                                                                               ","06","09","07","06","0609","000006747 - LUTTO                                                                                               "]
[null,null,null,null,null,null,null,null,null,null,null,null,null,null,"000006748","COLLPA                                                                                              ","06","09","07","06","0609","000006748 - COLLPA                                                                                              "]
[null,null,null,null,null,null,null,null,null,null,null,null,null,null,"000006981","CCOYO                                                                                               ","06","09","07","01","0609","000006981 - CCOYO                                                                                               "]
[null,null,null,null,null,null,null,null,null,null,null,null,null,null,"000006982","MELLOTOTORA                                                                                         ","06","09","07","01","0609","000006982 - MELLOTOTORA                                                                                         "]
[null,null,null,null,null,null,null,null,null,null,null,null,null,null,"000006983","ORCCOMA                                                                                             ","06","09","07","01","0609","000006983 - ORCCOMA                                                                                             "]
[null,null,null,null,null,null,null,null,null,null,null,null,null,null,"000006984","CCOLLANA                                                                                            ","06","09","07","07","0609","000006984 - CCOLLANA                                                                                            "]
[null,null,null,null,null,null,null,null,null,null,null,null,null,null,"000006985","TOTORAPALLCA                                                                                        ","06","09","07","06","0609","000006985 - TOTORAPALLCA                                                                                        "]
[null,null,null,null,null,null,null,null,null,null,null,null,null,null,"000007111","YAVINA                                                                                              ","06","09","07","01","0609","000007111 - YAVINA                                                                                              "]
[null,null,null,null,null,null,null,null,null,null,null,null,null,null,"000007112","YORENCCA                                                                                            ","06","09","07","07","0609","000007112 - YORENCCA                                                                                            "]
[null,null,null,null,null,null,null,null,null,null,null,null,null,null,"000008912","ALCCA VICTORIA                                                                                      ","06","09","07","08","0609","000008912 - ALCCA VICTORIA                                                                                      "]
[null,null,null,null,null,null,null,null,null,null,null,null,null,null,"000008913","HUARACO                                                                                             ","06","09","07","04","0609","000008913 - HUARACO                                                                                             "]
[null,null,null,null,null,null,null,null,null,null,null,null,null,null,"000008914","HUAYLLANI                                                                                           ","06","09","07","04","0609","000008914 - HUAYLLANI                                                                                           "]
[null,null,null,null,null,null,null,null,null,null,null,null,null,null,"000008915","PFULLPURI CONDEPAMPA                                                                                ","06","09","07","01","0609","000008915 - PFULLPURI CONDEPAMPA                                                                                "]
[null,null,null,null,null,null,null,null,null,null,null,null,null,null,"000009963","CANCAHUANI                                                                                          ","06","09","07","02","0609","000009963 - CANCAHUANI                                                                                          "]
[null,null,null,null,null,null,null,null,null,null,null,null,null,null,"000012932","YANQUE                                                                                              ","06","09","07","04","0609","000012932 - YANQUE                                                                                              "]
[null,null,null,null,null,null,null,null,null,null,null,null,null,null,"000013185","ESSALUD-SANTO TOMAS","06","09","07","01","0609","000013185 - ESSALUD-SANTO TOMAS"]
[null,null,null,null,null,null,null,null,null,null,null,null,null,null,"000025369","PUMALLACTA","06","09","07","07","0609","000025369 - PUMALLACTA"]
[null,null,null,null,null,null,null,null,null,null,null,null,null,null,"000025371","TUNTUMA","06","09","07","08","0609","000025371 - TUNTUMA"]
[null,null,null,null,null,null,null,null,null,null,null,null,null,null,"000027008","ANTUYO","06","09","07","06","0609","000027008 - ANTUYO"]
[null,null,null,null,null,null,null,null,null,null,null,null,null,null,"000027009","TAHUAY","06","09","07","02","0609","000027009 - TAHUAY"]
[null,null,null,null,null,null,null,null,null,null,null,null,null,null,"000027011","AYACCASI","06","09","07","08","0609","000027011 - AYACCASI"]
[null,null,null,null,null,null,null,null,null,null,null,null,null,null,"000027016","HUAYCUÑUTA - URCURUTA","06","09","07","08",{"$f":"CONCATENATE(Q425,R425)","v":"0609"},"000027016 - HUAYCUÑUTA - URCURUTA"]
[null,null,null,null,null,null,null,null,null,null,null,null,null,null,"000030940","ARCANGEL SAN MIGUEL DE ESQUINA CONGUNYA","06","09","07","01","0609","000030940 - ARCANGEL SAN MIGUEL DE ESQUINA CONGUNYA"]
[null,null,null,null,null,null,null,null,null,null,null,null,null,null,"000000000","(All)","06","01",null,null,"0601","000000000 - (All)"]
[null,null,null,null,null,null,null,null,null,null,null,null,null,null,"000002402","CHAMACA                                                                                             ","06","01","07","03","0601","000002402 - CHAMACA                                                                                             "]
[null,null,null,null,null,null,null,null,null,null,null,null,null,null,"000002403","AÑAHUICHI                                                                                           ","06","01","07","03","0601","000002403 - AÑAHUICHI                                                                                           "]
[null,null,null,null,null,null,null,null,null,null,null,null,null,null,"000002406","LIVITACA                                                                                            ","06","01","07","05","0601","000002406 - LIVITACA                                                                                            "]
[null,null,null,null,null,null,null,null,null,null,null,null,null,null,"000016325","CHILLOROYA - LIVITACA                                                                               ","06","01","07","05","0601","000016325 - CHILLOROYA - LIVITACA                                                                               "]
[null,null,null,null,null,null,null,null,null,null,null,null,null,null,"000016327","AUSANTA                                                                                             ","06","01","07","05","0601","000016327 - AUSANTA                                                                                             "]
[null,null,null,null,null,null,null,null,null,null,null,null,null,null,"000016328","UCCHUCCARCCO                                                                                        ","06","01","07","03","0601","000016328 - UCCHUCCARCCO                                                                                        "]
[null,null,null,null,null,null,null,null,null,null,null,null,null,null,"000016329","INGATA                                                                                              ","06","01","07","03","0601","000016329 - INGATA                                                                                              "]
[null,null,null,null,null,null,null,null,null,null,null,null,null,null,"000016330","CCONCHACCOLLO                                                                                       ","06","01","07","03","0601","000016330 - CCONCHACCOLLO                                                                                       "]
[null,null,null,null,null,null,null,null,null,null,null,null,null,null,"000016332","PATAQUEÑA - LIVITACA","06","01","07","05","0601","000016332 - PATAQUEÑA - LIVITACA"]
[null,null,null,null,null,null,null,null,null,null,null,null,null,null,"000016334","KISIO                                                                                               ","06","01","07","05","0601","000016334 - KISIO                                                                                               "]
[null,null,null,null,null,null,null,null,null,null,null,null,null,null,"000025739","PISQUICOCHA","06","01","07","05","0601","000025739 - PISQUICOCHA"]
[null,null,null,null,null,null,null,null,null,null,null,null,null,null,"000025740","TOTORA - REYNA DE LOS ANGELES","06","01","07","05","0601","000025740 - TOTORA - REYNA DE LOS ANGELES"]
[null,null,null,null,null,null,null,null,null,null,null,null,null,null,"000035860","KAYNO","06","01","07","05","0601","000035860 - KAYNO"]
[null,null,null,null,null,null,null,null,null,null,null,null,null,null,"000035861","CCACHO","06","01","07","03","0601","000035861 - CCACHO"]
[null,null,null,null,null,null,null,null,null,null,null,null,null,null,"000035862","SANTA ISABEL JALCCO","06","01","07","05","0601","000035862 - SANTA ISABEL JALCCO"]
[null,null,null,null,null,null,null,null,null,null,null,null,null,null,"000035863","TINCURCA","06","01","07","03","0601","000035863 - TINCURCA"]
[null,null,null,null,null,null,null,null,null,null,null,null,null,null,"000035864","CANGALLE","06","01","07","01","0601","000035864 - CANGALLE"]
[null,null,null,null,null,null,null,null,null,null,null,null,null,null,"999999999","(All)","06","99",null,null,{"$f":"CONCATENATE(Q445,R445)","v":"0699"},{"$f":"CONCATENATE(O445,\" - \",P445)","v":"999999999 - (All)"}]
[null,null,null,null,null,null,null,null,null,null,null,null,null,null,"999999999","(All)","99","99",null,null,{"$f":"CONCATENATE(Q446,R446)","v":"9999"},{"$f":"CONCATENATE(O446,\" - \",P446)","v":"999999999 - (All)"}]

{"sheet":"TD","index":1,"n_rows":120,"n_cols":239,"rows_kept":120,"cut":false,"hidden":true,"merged":[[1,1,1,3]]}
[]
[null,"Datos",null,null,null,"Tabla",{"$f":"IF(F3=\"(Todas)\",\"CUSCO \",\"\")","v":""}]
[null,"RED","03 - LA CONVENCION",null,null,{"$f":"TRIM(MID(C3,5,90))","v":"LA CONVENCION"},{"$f":"IF(F3=\"(All)\",\" \",F3)","v":"LA CONVENCION"}]
[null,"Micro Red","0399 - (All)",null,null,{"$f":"TRIM(MID(C4,7,90))","v":"(All)"}," "]
[null,"Establecimiento","999999999 - (All)",null,null,{"$f":"TRIM(MID(C5,12,90))","v":"(All)"}," "]
[null,"Provincia","00 - (All)",null,null,{"$f":"TRIM(MID(C6,6,90))","v":"(All)"}," "]
[null,"Distrito","0000 - (All)",null,null,{"$f":"TRIM(MID(C7,8,90))","v":"(All)"}," "]
[null,"UE","7777 - (All)",null,null,{"$f":"TRIM(MID(C8,8,90))","v":"(All)"}," "]
[]
[null,"AÑO",{"$f":"Datos!B10","v":2025}]
[null,"MESES",1,2,3,0,0,0,0,0,0,0,0,0]
[null,"Mes_desc",{"$f":"IF(C11=1,\"ENERO\",\"\")","v":"ENERO"},{"$f":"IF(D11=2,\"FEBRERO\",\"\")","v":"FEBRERO"},{"$f":"IF(E11=3,\"MARZO\",\"\")","v":"MARZO"},{"$f":"IF(F11=4,\"ABRIL\",\"\")","v":""},{"$f":"IF(G11=5,\"MAYO\",\"\")","v":""},{"$f":"IF(H11=6,\"JUNIO\",\"\")","v":""},{"$f":"IF(I11=7,\"JULIO\",\"\")","v":""},{"$f":"IF(J11=8,\"AGOSTO\",\"\")","v":""},{"$f":"IF(K11=9,\"SETIEMBRE\",\"\")","v":""},{"$f":"IF(L11=10,\"OCTUBRE\",\"\")","v":""},{"$f":"IF(M11=11,\"NOVIEMBRE\",\"\")","v":""},{"$f":"IF(N11=12,\"DICIEMBRE\",\"\")","v":""},{"$f":"IF(C11=1,C12,IF(D11=2,D12,IF(E11=3,E12,IF(F11=4,F12,IF(G11=5,G12,IF(H11=6,H12,IF(I11=7,I12,IF(J11=8,J12,IF(K11=9,K12,IF(L11=10,L12,IF(M11=11,M12,IF(N11=12,N12,\"\"))))))))))))","v":"ENERO"}]
[]
[null,"ACUMULADO",20,22,24,null,null,null,null,null,null,null,null,null,{"$f":"MIN(C14:N14)","v":20},{"$f":"MAX(C14:N14)","v":24}]
[null,"Mes_desc_Acu",{"$f":"IF(C14=20,\"ENERO\",\"\")","v":"ENERO"},{"$f":"IF(D14=22,\"FEBRERO\",\"\")","v":"FEBRERO"},{"$f":"IF(E14=24,\"MARZO\",\"\")","v":"MARZO"},{"$f":"IF(F14=26,\"ABRIL\",\"\")","v":""},{"$f":"IF(G14=28,\"MAYO\",\"\")","v":""},{"$f":"IF(H14=30,\"JUNIO\",\"\")","v":""},{"$f":"IF(I14=32,\"JULIO\",\"\")","v":""},{"$f":"IF(J14=34,\"AGOSTO\",\"\")","v":""},{"$f":"IF(K14=36,\"SETIEMBRE\",\"\")","v":""},{"$f":"IF(L14=38,\"OCTUBRE\",\"\")","v":""},{"$f":"IF(M14=40,\"NOVIEMBRE\",\"\")","v":""},{"$f":"IF(N14=42,\"DICIEMBRE\",\"\")","v":""},{"$f":"IF(O14=C14,C15,IF(O14=D14,D15,IF(O14=E14,E15,IF(O14=F14,F15,IF(O14=G14,G15,IF(O14=H14,H15,IF(O14=I14,I15,IF(O14=J14,J15,IF(O14=K14,K15,IF(O14=L14,L15,IF(O14=M14,M15,IF(O14=N14,N15,\"\"))))))))))))","v":"ENERO"},{"$f":"IF(P14=D14,D15,IF(P14=E14,E15,IF(P14=F14,F15,IF(P14=G14,G15,IF(P14=H14,H15,IF(P14=I14,I15,IF(P14=J14,J15,IF(P14=K14,K15,IF(P14=L14,L15,IF(P14=M14,M15,IF(P14=N14,N15,IF(P14=O14,O15,\"\"))))))))))))","v":"MARZO"}]
[null,null,null,null,null,null,null,null,null,null,null,null,null,null,{"$f":"CONCATENATE(O15,\" - \",P15)","v":"ENERO - MARZO"}]
[null,null,null,null,null,null,null,null,null,null,null,null,null,null,{"$f":"IF(O14=P14,O12,O16)","v":"ENERO - MARZO"}]
[]
[]
[]
[]
[]
[]
[]
[]
[]
[]
["METALES PESADOS 1"]
[]
["Anio",2025]
["UE","(Todas)"]
["Red","LA CONVENCION"]
["MicroRed","(Todas)"]
["EESS","(Todas)"]
["Provincia","(Todas)"]
["Distrito","(Todas)"]
[]
["Etiquetas de fila","Suma de DArs_n","Suma de DArs_Ad","Suma de DArs_J","Suma de DArs_A","Suma de DArs_AM","Suma de DPlo_n","Suma de DPlo_Ad","Suma de DPlo_J","Suma de DPlo_A","Suma de DPlo_AM","Suma de DCad_n","Suma de DCad_Ad","Suma de DCad_J","Suma de DCad_A","Suma de DCad_AM","Suma de DMer_n","Suma de DMer_Ad","Suma de DMer_J","Suma de DMer_A","Suma de DMer_AM","Suma de DMPe_n","Suma de DMPe_Ad","Suma de DMPe_J","Suma de DMPe_A","Suma de DMPe_AM","Suma de HSan_n","Suma de HSan_Ad","Suma de HSan_J","Suma de HSan_A","Suma de HSan_AM","Suma de HEnt_n","Suma de HEnt_Ad","Suma de HEnt_J","Suma de HEnt_A","Suma de HEnt_AM","Suma de HCon_n","Suma de HCon_Ad","Suma de HCon_J","Suma de HCon_A","Suma de HCon_AM","Suma de EMed_Ars_n","Suma de EMed_Ars_Ad","Suma de EMed_Ars_J","Suma de EMed_Ars_A","Suma de EMed_Ars_AM","Suma de EMed_Cad_n","Suma de EMed_Cad_Ad","Suma de EMed_Cad_J","Suma de EMed_Cad_A","Suma de EMed_Cad_AM","Suma de EMed_Mer_n","Suma de EMed_Mer_Ad","Suma de EMed_Mer_J","Suma de EMed_Mer_A","Suma de EMed_Mer_AM","Suma de EMed_Plo_n","Suma de EMed_Plo_Ad","Suma de EMed_Plo_J","Suma de EMed_Plo_A","Suma de EMed_Plo_AM","Suma de IrasC_n","Suma de IrasC_Ad","Suma de IrasC_J","Suma de IrasC_A","Suma de IrasC_AM","Suma de IrasNC_n","Suma de IrasNC_Ad","Suma de IrasNC_J","Suma de IrasNC_A","Suma de IrasNC_AM","Suma de Anemia_n","Suma de Amenia_Ad","Suma de Anemia_J","Suma de Anemia_A","Suma de Anemia_AM","Suma de Visita1_n","Suma de Visita1_Ad","Suma de Visita1_J","Suma de Visita1_A","Suma de Visita1_AM","Suma de Visita2_n","Suma de Visita2_Ad","Suma de Visita2_J","Suma de Visita2_A","Suma de Visita2_AM","Suma de Visita3_n","Suma de Visita3_Ad","Suma de Visita3_J","Suma de Visita3_A","Suma de Visita3_AM","Suma de EXODON_0_6m","Suma de EXODON_7_11m","Suma de EXODON_1_2a","Suma de EXODON_3_5a","Suma de EXODON_6_11a","Suma de EXODONN_Ad","Suma de EXODON_J","Suma de EXODON_A","Suma de EXODON_AM","Suma de EXODON_g","Suma de ConsultaE_0_6m","Suma de ConsultaE_7_11m","Suma de ConsultaE_1_2a","Suma de ConsultaE_3_5a","Suma de ConsultaE_6_11a","Suma de ConsultaE_Ad","Suma de ConsultaE_J","Suma de ConsultaE_A","Suma de ConsultaE_AM","Suma de ConsultaE_g","Suma de ExMed_Ad","Suma de PeNor_Ad","Suma de TaNor_Ad","Suma de Supl_Ad","Suma de HvB1_n","Suma de HvB1_Ad","Suma de HvB1_J","Suma de HvB1_A","Suma de HvB1_AM","Suma de HvB2_n","Suma de HvB2_Ad","Suma de HvB2_J","Suma de HvB2_A","Suma de HvB2_AM","Suma de HvB3_n","Suma de HvB3_Ad","Suma de HvB3_J","Suma de HvB3_A","Suma de HvB3_AM","Suma de Infl_n","Suma de Infl_Ad","Suma de Infl_J","Suma de Infl_A","Suma de Infl_AM","Suma de DT1_n","Suma de DT1_Ad","Suma de DT1_J","Suma de DT1_A","Suma de DT1_AM","Suma de DT2_n","Suma de DT2_Ad","Suma de DT2_J","Suma de DT2_A","Suma de DT2_AM","Suma de DT3_n","Suma de DT3_Ad","Suma de DT3_J","Suma de DT3_A","Suma de DT3_AM","Suma de PaHu1_n","Suma de PaHu1_Ad","Suma de PaHu1_J","Suma de PaHu1_A","Suma de PaHu1_AM","Suma de PaHu2_n","Suma de PaHu2_Ad","Suma de PaHu2_J","Suma de PaHu2_A","Suma de PaHu2_AM","Suma de Amar_n","Suma de Amar_Ad","Suma de Amar_J","Suma de Amar_A","Suma de Amar_AM","Suma de ADeH_n","Suma de ADeH_Ad","Suma de ADeH_J","Suma de ADeH_A","Suma de ADeH_AM","Suma de ADeH_g_n","Suma de ADeH_g_Ad","Suma de ADeH_g_J","Suma de ADeH_g_A","Suma de ADeH_g_AM","Suma de ttoA_n","Suma de ttoA_Ad","Suma de ttoA_J","Suma de ttoA_A","Suma de ttoA_AM","Suma de Asma_n","Suma de Asma_Ad","Suma de Asma_J","Suma de Asma_A","Suma de Asma_AM","Suma de Hiper_n","Suma de Hiper_Ad","Suma de Hiper_J","Suma de Hiper_A","Suma de Hiper_AM","Suma de Cefal_n","Suma de Cefal_Ad","Suma de Cefal_J","Suma de Cefal_A","Suma de Cefal_AM","Suma de MasaM_n","Suma de MasaM_Ad","Suma de MasaM_J","Suma de MasaM_A","Suma de MasaM_AM","Suma de Tami_n","Suma de Tami_Ad","Suma de Tami_J","Suma de Tami_A","Suma de Tami_AM","Suma de Ansi_n","Suma de Ansi_Ad","Suma de Ansi_J","Suma de Ansi_A","Suma de Ansi_AM","Suma de ReEs_n","Suma de ReEs_Ad","Suma de ReEs_J","Suma de ReEs_A","Suma de ReEs_AM","Suma de TamVIF_n","Suma de TamVIF_Ad","Suma de TamVIF_J","Suma de TamVIF_A","Suma de TamVIF_AM","Suma de TamTD_n","Suma de TamTD_Ad","Suma de TamTD_J","Suma de TamTD_A","Suma de TamTD_AM","Suma de TamAD_n","Suma de TamAD_Ad","Suma de TamAD_J","Suma de TamAD_A","Suma de TamAD_AM","Suma de TamEP_n","Suma de TamEP_Ad","Suma de TamEP_J","Suma de TamEP_A","Suma de TamEP_AM"]
[1,0,0,0,0,0,0,0,0,0,0,0,0,0,0,0,0,0,0,0,0,0,0,0,0,0,0,0,0,0,0,0,0,0,0,0,0,0,0,0,0,0,0,0,0,0,0,0,0,0,0,0,0,0,0,0,0,0,0,0,0,0,1,0,3,1,0,0,0,0,0,0,1,0,0,0,0,0,0,0,0,0,0,0,0,0,0,0,0,0,0,0,0,0,0,0,0,0,0,0,0,0,0,0,0,0,0,0,0,0,0,0,0,0,0,0,0,0,0,0,0,0,0,0,0,0,0,0,0,0,0,0,0,0,0,0,0,0,0,0,0,0,0,0,0,0,0,0,0,0,0,0,0,0,0,0,0,0,0,0,0,0,0,0,0,0,1,0,0,0,0,0,0,0,0,0,0,0,0,0,0,0,0,0,0,0,0,0,0,0,0,0,0,0,0,0,0,0,0,0,0,0,0,0,0,0,0,0,0,0,0,0,0,0,0,0,0,0,0,0,0,0,0,0,0,0,0,0,0,0,0,0,0,0,0]
[2,0,0,0,0,0,0,0,0,0,0,0,0,0,0,0,0,0,0,0,0,0,0,0,0,0,0,0,0,0,0,0,0,0,0,0,0,0,0,0,0,0,0,0,0,0,0,0,0,0,0,0,0,0,0,0,0,0,0,0,0,0,0,0,0,0,0,0,0,0,0,0,0,0,0,0,0,0,0,0,0,0,0,0,0,0,0,0,0,0,0,0,0,0,0,0,0,0,0,0,0,0,0,0,0,0,0,0,0,0,0,0,0,0,0,0,0,0,0,0,0,0,0,0,0,0,0,0,0,0,0,0,0,0,0,0,0,0,0,0,0,0,0,0,0,0,0,0,0,0,0,0,0,0,0,0,0,0,0,0,0,0,0,0,0,0,0,0,0,0,0,0,0,0,0,0,0,0,0,0,0,0,0,0,0,0,0,0,0,0,0,0,0,0,0,0,0,0,0,0,0,0,0,0,0,0,0,0,0,0,0,0,0,0,0,0,0,0,0,0,0,0,0,0,0,0,0,0,0,0,0,0,0,0,0]
[3,0,0,0,0,0,0,0,0,0,0,0,0,0,0,0,0,0,0,0,0,0,0,0,0,0,0,0,0,0,0,0,0,0,0,0,0,0,0,0,0,0,0,0,0,0,0,0,0,0,0,0,0,0,0,0,0,0,0,0,0,0,0,0,0,0,0,0,0,0,0,0,0,0,0,0,0,0,0,0,0,0,0,0,0,0,0,0,0,0,0,0,0,0,0,0,0,0,0,0,0,0,0,0,0,0,0,0,0,0,0,0,0,0,0,0,0,0,0,0,0,0,0,0,0,0,0,0,0,0,0,0,0,0,0,0,0,0,0,0,0,0,0,0,0,0,0,0,0,0,0,0,0,0,0,0,0,0,0,0,0,0,0,0,0,0,0,0,0,0,0,0,0,0,0,0,0,0,0,0,0,0,0,0,0,0,0,0,0,0,0,0,0,0,0,0,0,0,0,0,0,0,0,0,0,0,0,0,0,0,0,0,0,0,0,0,0,0,0,0,0,0,0,0,0,0,0,0,0,0,0,0,0,0,0]
["Total general",0,0,0,0,0,0,0,0,0,0,0,0,0,0,0,0,0,0,0,0,0,0,0,0,0,0,0,0,0,0,0,0,0,0,0,0,0,0,0,0,0,0,0,0,0,0,0,0,0,0,0,0,0,0,0,0,0,0,0,0,0,1,0,3,1,0,0,0,0,0,0,1,0,0,0,0,0,0,0,0,0,0,0,0,0,0,0,0,0,0,0,0,0,0,0,0,0,0,0,0,0,0,0,0,0,0,0,0,0,0,0,0,0,0,0,0,0,0,0,0,0,0,0,0,0,0,0,0,0,0,0,0,0,0,0,0,0,0,0,0,0,0,0,0,0,0,0,0,0,0,0,0,0,0,0,0,0,0,0,0,0,0,0,0,0,1,0,0,0,0,0,0,0,0,0,0,0,0,0,0,0,0,0,0,0,0,0,0,0,0,0,0,0,0,0,0,0,0,0,0,0,0,0,0,0,0,0,0,0,0,0,0,0,0,0,0,0,0,0,0,0,0,0,0,0,0,0,0,0,0,0,0,0,0]
[]
[]
[]
[]
[]
[]
[]
[]
[]
[]
[]
["METALES PESADOS 2"]
[]
["Anio",2025]
["UE","(Todas)"]
["Red","LA CONVENCION"]
["MicroRed","(Todas)"]
["EESS","(Todas)"]
["Provincia","(Todas)"]
["Distrito","(Todas)"]
[]
["Etiquetas de fila","Suma de TamPND_n","Suma de TamMC_n","Suma de TamMC_Ad","Suma de VIFPOS_n","Suma de VIFPOS_Ad","Suma de VIFPOS_J","Suma de VIFPOS_A","Suma de VIFPOS_AM","Suma de TDPOS_n","Suma de TDPOS_Ad","Suma de TDPOS_J","Suma de TDPOS_A","Suma de TDPOS_AM","Suma de ADPOS_n","Suma de ADPOS_Ad","Suma de ADPOS_J","Suma de ADPOS_A","Suma de ADPOS_AM","Suma de EPPOS_n","Suma de EPPOS_Ad","Suma de EPPOS_J","Suma de EPPOS_A","Suma de EPPOS_AM","Suma de PNDPOS_n","Suma de MCPOS_n","Suma de MCPOS_Ad","Suma de PEmo1_M_n","Suma de PEmo1_F_n","Suma de PEmo2_M_n","Suma de PEmo2_F_n","Suma de Patc1_M_n","Suma de Patc1_F_n","Suma de Patc2_M_n","Suma de Patc2_F_n","Suma de Pcon1_M_n","Suma de Pcon1_F_n","Suma de Pcon2_M_n","Suma de Pcon2_F_n","Suma de EAut_M_n","Suma de EAut_F_n","Suma de EAut_M_Ad","Suma de EAut_F_Ad","Suma de EAut_M_J","Suma de EAut_F_J","Suma de EAut_M_A","Suma de EAut_F_A","Suma de EAut_M_AM","Suma de EAut_F_AM","Suma de TMC_M_n","Suma de TMC_F_n","Suma de TMC_M_Ad","Suma de TMC_F_Ad","Suma de Tdep_M_n","Suma de Tdep_F_n","Suma de Tdep_M_Ad","Suma de Tdep_F_Ad","Suma de Tdep_M_J","Suma de Tdep_F_J","Suma de Tdep_M_A","Suma de Tdep_F_A","Suma de Tdep_M_AM","Suma de Tdep_F_AM","Suma de Dcog_M_n","Suma de Dcog_F_n","Suma de Dcog_M_Ad","Suma de Dcog_F_Ad","Suma de Dcog_M_J","Suma de Dcog_F_J","Suma de Dcog_M_A","Suma de Dcog_F_A","Suma de Dcog_M_AM","Suma de Dcog_F_AM","Suma de EI_DC_M_n","Suma de EI_DC_F_n","Suma de EI_DC_M_Ad","Suma de EI_DC_F_Ad","Suma de EI_DC_M_J","Suma de EI_DC_F_J","Suma de EI_DC_M_A","Suma de EI_DC_F_A","Suma de EI_DC_M_AM","Suma de EI_DC_F_AM","Suma de Cred_7d_1","Suma de Cred_7d_2","Suma de Cred_ed_1","Suma de Cred_ed_2","Suma de Cred_ed_3","Suma de Cred_ld_1","Suma de Cred_ld_2","Suma de Cred_ld_3","Suma de Cred_ld_4","Suma de Cred_sd_1","Suma de Cred_sd_2","Suma de Cred_sd_3","Suma de Cred_sd_4","Suma de Cred_bm_1","Suma de Cred_bm_2","Suma de Cred_bm_3","Suma de Cred_bm_4","Suma de Cred_bm_5","Suma de Cred_bm_6","Suma de Cred_bm_7","Suma de Cred_bm_8","Suma de Cred_bm_9","Suma de Cred_bm_a","Suma de Cred_bm_b","Suma de Cred_1a_1","Suma de Cred_1a_2","Suma de Cred_1a_3","Suma de Cred_1a_4","Suma de Cred_1a_5","Suma de Cred_1a_6","Suma de Cred_2a_1","Suma de Cred_2a_2","Suma de Cred_2a_3","Suma de Cred_2a_4","Suma de Cred_3a_1","Suma de Cred_3a_2","Suma de Cred_3a_3","Suma de Cred_3a_4","Suma de Cred_4a_1","Suma de Cred_4a_2","Suma de Cred_4a_3","Suma de Cred_4a_4","Suma de Cred_5a","Suma de Cred_6a","Suma de Cred_7a","Suma de Cred_8a","Suma de Cred_9a","Suma de Cred_aa","Suma de Cred_ba","Suma de Nutr_7d_1","Suma de Nutr_7d_2","Suma de Nutr_ed_1","Suma de Nutr_ed_2","Suma de Nutr_ed_3","Suma de Nutr_ld_1","Suma de Nutr_ld_2","Suma de Nutr_ld_3","Suma de Nutr_ld_4","Suma de Nutr_sd_1","Suma de Nutr_sd_2","Suma de Nutr_sd_3","Suma de Nutr_sd_4","Suma de Nutr_bm_1","Suma de Nutr_bm_2","Suma de Nutr_bm_3","Suma de Nutr_bm_4","Suma de Nutr_bm_5","Suma de Nutr_bm_6","Suma de Nutr_bm_7","Suma de Nutr_bm_8","Suma de Nutr_bm_9","Suma de Nutr_bm_a","Suma de Nutr_bm_b","Suma de Nutr_1a_1","Suma de Nutr_1a_2","Suma de Nutr_1a_3","Suma de Nutr_1a_4","Suma de Nutr_1a_5","Suma de Nutr_1a_6","Suma de Nutr_2a_1","Suma de Nutr_2a_2","Suma de Nutr_2a_3","Suma de Nutr_2a_4","Suma de Nutr_3a_1","Suma de Nutr_3a_2","Suma de Nutr_3a_3","Suma de Nutr_3a_4","Suma de Nutr_4a_1","Suma de Nutr_4a_2","Suma de Nutr_4a_3","Suma de Nutr_4a_4","Suma de Nutr_11a","Suma de Pdx_sd","Suma de Pdx_bm","Suma de Pdx_1a","Suma de Pdx_2a","Suma de Pdx_3a","Suma de Pdx_4a","Suma de Tdx_sd","Suma de Tdx_bm","Suma de Tdx_1a","Suma de Tdx_2a","Suma de Tdx_3a","Suma de Tdx_4a","Suma de PRe_sd","Suma de PRe_bm","Suma de PRe_1a","Suma de PRe_2a","Suma de PRe_3a","Suma de PRe_4a","Suma de TRe_sd","Suma de TRe_bm","Suma de TRe_1a","Suma de TRe_2a","Suma de TRe_3a","Suma de TRe_4a","Suma de DGdx_bm","Suma de DGdx_1a","Suma de DGdx_2a","Suma de DGdx_3a","Suma de DGdx_4a","Suma de DAdx_bm","Suma de DAdx_1a","Suma de DAdx_2a","Suma de DAdx_3a","Suma de DAdx_4a","Suma de DGr_1a","Suma de DGr_2a","Suma de DGr_3a","Suma de DGr_4a","Suma de DAr_bm","Suma de DAr_1a","Suma de DAr_2a","Suma de DAr_3a","Suma de DAr_4a","Suma de Odx_bm","Suma de Odx_1a","Suma de Odx_2a","Suma de Odx_3a","Suma de Odx_4a","Suma de Ore_bm","Suma de Ore_1a","Suma de Ore_2a","Suma de Ore_3a","Suma de Ore_4a","Suma de Sdx_bm","Suma de Sdx_1a","Suma de Sdx_2a","Suma de Sdx_3a","Suma de Sdx_4a","Suma de Sre_bm","Suma de Sre_1a","Suma de Sre_2a","Suma de Sre_3a","Suma de Sre_4a","Suma de DGr_bm"]
[1,0,0,0,0,0,0,0,0,0,0,0,0,0,0,0,0,0,0,0,0,0,0,0,0,0,0,0,0,0,0,0,0,0,0,0,0,0,0,0,0,0,0,0,0,0,0,0,0,0,0,0,0,0,0,0,0,0,0,0,0,0,0,0,0,0,0,0,0,0,0,0,0,0,0,0,0,0,0,0,0,0,0,0,0,0,0,0,0,0,0,0,0,0,0,0,0,0,0,0,0,0,0,0,0,0,0,0,0,0,0,0,0,0,0,0,0,0,0,0,0,0,0,0,0,0,0,0,0,0,0,0,0,0,0,0,0,0,0,0,0,0,0,0,0,0,0,0,0,0,0,0,0,0,0,0,0,0,0,0,0,0,0,0,0,0,0,0,0,0,0,0,0,0,0,0,0,0,0,0,0,0,0,0,0,0,0,0,0,0,0,0,0,0,0,0,0,0,0,0,0,0,0,0,0,0,0,0,0,0,0,0,0,0,0,0,0,0,0,0,0,0,0,0,0,0,0,0,0,0,0,0,0,0,0,0,0,0,0]
[2,0,0,0,0,0,0,0,0,0,0,0,0,0,0,0,0,0,0,0,0,0,0,0,0,0,0,0,0,0,0,0,0,0,0,0,0,0,0,0,0,0,0,0,0,0,0,0,0,0,0,0,0,0,0,0,0,0,0,0,0,0,0,0,0,0,0,0,0,0,0,0,0,0,0,0,0,0,0,0,0,0,0,0,0,0,0,0,0,0,0,0,0,0,0,0,0,0,0,0,0,0,0,0,0,0,0,0,0,0,0,0,0,0,0,0,0,0,0,0,0,0,0,0,0,0,0,0,0,0,0,0,0,0,0,0,0,0,0,0,0,0,0,0,0,0,0,0,0,0,0,0,0,0,0,0,0,0,0,0,0,0,0,0,0,0,0,0,0,0,0,0,0,0,0,0,0,0,0,0,0,0,0,0,0,0,0,0,0,0,0,0,0,0,0,0,0,0,0,0,0,0,0,0,0,0,0,0,0,0,0,0,0,0,0,0,0,0,0,0,0,0,0,0,0,0,0,0,0,0,0,0,0,0,0,0,0,0,0]
[3,0,0,0,0,0,0,0,0,0,0,0,0,0,0,0,0,0,0,0,0,0,0,0,0,0,0,0,0,0,0,0,0,0,0,0,0,0,0,0,0,0,0,0,0,0,0,0,0,0,0,0,0,0,0,0,0,0,0,0,0,0,0,0,0,0,0,0,0,0,0,0,0,0,0,0,0,0,0,0,0,0,0,0,0,0,0,0,0,0,0,0,0,0,0,0,0,0,0,0,0,0,0,0,0,0,0,0,0,0,0,0,0,0,0,0,0,0,0,0,0,0,0,0,0,0,0,0,0,0,0,0,0,0,0,0,0,0,0,0,0,0,0,0,0,0,0,0,0,0,0,0,0,0,0,0,0,0,0,0,0,0,0,0,0,0,0,0,0,0,0,0,0,0,0,0,0,0,0,0,0,0,0,0,0,0,0,0,0,0,0,0,0,0,0,0,0,0,0,0,0,0,0,0,0,0,0,0,0,0,0,0,0,0,0,0,0,0,0,0,0,0,0,0,0,0,0,0,0,0,0,0,0,0,0,0,0,0,0]
["Total general",0,0,0,0,0,0,0,0,0,0,0,0,0,0,0,0,0,0,0,0,0,0,0,0,0,0,0,0,0,0,0,0,0,0,0,0,0,0,0,0,0,0,0,0,0,0,0,0,0,0,0,0,0,0,0,0,0,0,0,0,0,0,0,0,0,0,0,0,0,0,0,0,0,0,0,0,0,0,0,0,0,0,0,0,0,0,0,0,0,0,0,0,0,0,0,0,0,0,0,0,0,0,0,0,0,0,0,0,0,0,0,0,0,0,0,0,0,0,0,0,0,0,0,0,0,0,0,0,0,0,0,0,0,0,0,0,0,0,0,0,0,0,0,0,0,0,0,0,0,0,0,0,0,0,0,0,0,0,0,0,0,0,0,0,0,0,0,0,0,0,0,0,0,0,0,0,0,0,0,0,0,0,0,0,0,0,0,0,0,0,0,0,0,0,0,0,0,0,0,0,0,0,0,0,0,0,0,0,0,0,0,0,0,0,0,0,0,0,0,0,0,0,0,0,0,0,0,0,0,0,0,0,0,0,0,0,0,0]
[]
[]
[]
[]
[]
[]
[]
[]
[]
[]
[]
["METALES PESADOS 3"]
[]
["Anio",2025]
["UE","(Todas)"]
["Red","LA CONVENCION"]
["MicroRed","(Todas)"]
["EESS","(Todas)"]
["Provincia","(Todas)"]
["Distrito","(Todas)"]
[]
["Etiquetas de fila","Suma de Dcdx_bm","Suma de Dcdx_1a","Suma de Dcdx_2a","Suma de Dcdx_3a","Suma de Dcdx_4a","Suma de Odx_ba","Suma de ORe_ba","Suma de Sdx_ba","Suma de SRe_ba","Suma de TEdx_ba","Suma de TERe_ba","Suma de Ledx_bm","Suma de Ledx_1a","Suma de Ledx_2a","Suma de Modx_bm","Suma de Modx_1a","Suma de Modx_2a","Suma de Sodx_bm","Suma de Sodx_1a","Suma de Sodx_2a","Suma de Codx_bm","Suma de Codx_1a","Suma de Codx_2a","Suma de Cgdx_bm","Suma de Cgdx_1a","Suma de Cgdx_2a","Suma de LeRe_bm","Suma de LeRe_1a","Suma de LeRe_2a","Suma de MoRe_bm","Suma de MoRe_1a","Suma de MoRe_2a","Suma de SoRe_bm","Suma de SoRe_1a","Suma de SoRe_2a","Suma de CoRe_bm","Suma de CoRe_1a","Suma de CoRe_2a","Suma de CgRe_bm","Suma de CgRe_1a","Suma de CgRe_2a","Suma de Norm_bm","Suma de Norm_1a","Suma de Norm_2a","Suma de Pai_i_ea","Suma de Pai_i_ha","Suma de Pai_c_ea","Suma de Pai_c_ha","Suma de Eeda_ea","Suma de Eeda_ha","Suma de Eia1_ea","Suma de Eia1_ha","Suma de Eia2_ea","Suma de Eia2_ha","Suma de Eia3_ea","Suma de Eia3_ha","Suma de APN1_bm","Suma de APN1_ha","Suma de APN1_ta","Suma de APN1_ua","Suma de APN2_bm","Suma de APN2_ha","Suma de APN2_ta","Suma de APN2_ua","Suma de APN3_bm","Suma de APN3_ha","Suma de APN3_ta","Suma de APN3_ua","Suma de APN_bm","Suma de APN_ha","Suma de APN_ta","Suma de APN_ua","Suma de APNc_bm","Suma de APNc_ha","Suma de APNc_ta","Suma de APNc_ua","Suma de Bat1_bm","Suma de Bat1_ha","Suma de Bat1_ta","Suma de Bat1_ua","Suma de Bat2_bm","Suma de Bat2_ha","Suma de Bat2_ta","Suma de Bat2_ua","Suma de Tamg_bm","Suma de Tamg_ha","Suma de Tamg_ta","Suma de Tamg_ua","Suma de APNr_bm","Suma de APNr_ha","Suma de APNr_ta","Suma de APNr_ua","Suma de APNo_bm","Suma de APNo_ha","Suma de APNo_ta","Suma de APNo_ua","Suma de AMS_xa","Suma de AMS_ya","Suma de AMS_za","Suma de AME_xa","Suma de AME_ya","Suma de AME_za","Suma de CIi_n","Suma de CIi_Ad","Suma de CIi_J","Suma de CIi_A","Suma de CIi_AM","Suma de CIf_n","Suma de CIf_Ad","Suma de CIf_J","Suma de CIf_A","Suma de CIf_AM","Suma de Cnu_n","Suma de Cnu_Ad","Suma de Cnu_J","Suma de Cnu_A","Suma de Cnu_AM","Suma de Cpnt_n","Suma de Cpnt_Ad","Suma de Cpnt_J","Suma de Cpnt_A","Suma de Cpnt_AM","Suma de NTfr_n","Suma de NTfr_Ad","Suma de NTfr_J","Suma de NTfr_A","Suma de NTfr_AM","Suma de NTsf_n","Suma de NTsf_Ad","Suma de NTsf_J","Suma de NTsf_A","Suma de NTsf_AM","Suma de NTcf_n","Suma de NTcf_Ad","Suma de NTcf_J","Suma de NTcf_A","Suma de NTcf_AM","Suma de NTtb_n","Suma de NTtb_Ad","Suma de NTtb_J","Suma de NTtb_A","Suma de NTtb_AM","Suma de NThp_n","Suma de NThp_Ad","Suma de NThp_J","Suma de NThp_A","Suma de NThp_AM","Suma de NTne_n","Suma de NTne_Ad","Suma de NTne_J","Suma de NTne_A","Suma de NTne_AM","Suma de NTd1_n","Suma de NTd1_Ad","Suma de NTd1_J","Suma de NTd1_A","Suma de NTd1_AM","Suma de NTd2_n","Suma de NTd2_Ad","Suma de NTd2_J","Suma de NTd2_A","Suma de NTd2_AM","Suma de NTnd_n","Suma de NTnd_Ad","Suma de NTnd_J","Suma de NTnd_A","Suma de NTnd_AM","Suma de NTrd_n","Suma de NTrd_Ad","Suma de NTrd_J","Suma de NTrd_A","Suma de NTrd_AM","Suma de TBsr_n","Suma de TBsr_Ad","Suma de TBsr_J","Suma de TBsr_A","Suma de TBsr_AM","Suma de SocN_n","Suma de SocN_Ad","Suma de SocN_J","Suma de SocN_A","Suma de SocN_AM","Suma de SocA_n","Suma de SocA_Ad","Suma de SocA_J","Suma de SocA_A","Suma de SocA_AM","Suma de VFI1_n","Suma de VFI1_Ad","Suma de VFI1_J","Suma de VFI1_A","Suma de VFI1_AM","Suma de VFI2_n","Suma de VFI2_Ad","Suma de VFI2_J","Suma de VFI2_A","Suma de VFI2_AM","Suma de VFI3_n","Suma de VFI3_Ad","Suma de VFI3_J","Suma de VFI3_A","Suma de VFI3_AM","Suma de Dcre_bm","Suma de Dcre_1a","Suma de Dcre_2a","Suma de Dcre_3a","Suma de Dcre_4a","Suma de TAPOS_n","Suma de TAPOS_Ad","Suma de TAPOS_J","Suma de TAPOS_A","Suma de TAPOS_AM","Suma de CDPOS_n","Suma de CDPOS_Ad","Suma de CDPOS_J","Suma de CDPOS_A","Suma de CDPOS_AM","Suma de Expo_n","Suma de Expo_Ad","Suma de Expo_J","Suma de Expo_A","Suma de Expo_AM"]
[1,0,0,0,0,0,0,0,0,0,0,0,0,0,0,0,0,0,0,0,0,0,0,0,0,0,0,0,0,0,0,0,0,0,0,0,0,0,0,0,0,0,0,0,0,0,0,0,0,0,0,0,0,0,0,0,0,0,0,0,0,0,0,0,0,0,0,0,0,0,0,0,0,0,0,0,0,0,0,0,0,0,0,0,0,0,0,0,0,0,0,0,0,0,0,0,0,0,0,0,0,0,0,0,0,0,0,0,0,0,0,0,0,0,0,0,0,0,0,0,0,0,0,0,0,0,0,0,0,0,0,0,0,0,0,0,0,0,0,0,0,0,0,0,0,0,0,0,0,0,0,0,0,0,0,0,0,0,0,0,0,0,0,0,0,0,0,0,0,0,0,0,0,0,0,0,0,0,0,0,0,0,0,0,0,0,0,0,0,0,0,0,0,0,0,0,0,0,0,0,0,0,0,0,0,0,0,0,0,0,0,0,0,0,0,0,0,0,18,5,7,27,22]
[2,0,0,0,0,0,0,0,0,0,0,0,0,0,0,0,0,0,0,0,0,0,0,0,0,0,0,0,0,0,0,0,0,0,0,0,0,0,0,0,0,0,0,0,0,0,0,0,0,0,0,0,0,0,0,0,0,0,0,0,0,0,0,0,0,0,0,0,0,0,0,0,0,0,0,0,0,0,0,0,0,0,0,0,0,0,0,0,0,0,0,0,0,0,0,0,0,0,0,0,0,0,0,0,0,0,0,0,0,0,0,0,0,0,0,0,0,0,0,0,0,0,0,0,0,0,0,0,0,0,0,0,0,0,0,0,0,0,0,0,0,0,0,0,0,0,0,0,0,0,0,0,0,0,0,0,0,0,0,0,0,0,0,0,0,0,0,0,0,0,0,0,0,0,0,0,0,0,0,0,0,0,0,0,0,0,0,0,0,0,0,1,4,0,0,0,0,0,0,0,0,0,0,0,0,0,0,0,0,0,0,0,0,0,0,0,0,0,2,0,1,1,4]
[3,0,0,0,0,0,0,0,0,0,0,0,0,0,0,0,0,0,0,0,0,0,0,0,0,0,0,0,0,0,0,0,0,0,0,0,0,0,0,0,0,0,0,0,0,0,0,0,0,0,0,0,0,0,0,0,0,0,0,0,0,0,0,0,0,0,0,0,0,0,0,0,0,0,0,0,0,0,0,0,0,0,0,0,0,0,0,0,0,0,0,0,0,0,0,0,0,0,0,0,0,0,0,0,0,0,0,0,0,0,0,0,0,0,0,0,0,0,0,0,0,0,0,0,0,0,0,0,0,0,0,0,0,0,0,0,0,0,0,0,0,0,0,0,0,0,0,0,0,0,0,0,0,0,0,0,0,0,0,0,0,0,0,0,0,0,0,0,0,0,0,0,0,0,0,0,0,0,0,0,0,0,0,0,0,0,0,0,0,0,0,0,0,0,0,0,0,0,0,0,0,0,0,0,0,0,0,0,0,0,0,0,0,0,0,0,0,0,5,0,0,2,0]
["Total general",0,0,0,0,0,0,0,0,0,0,0,0,0,0,0,0,0,0,0,0,0,0,0,0,0,0,0,0,0,0,0,0,0,0,0,0,0,0,0,0,0,0,0,0,0,0,0,0,0,0,0,0,0,0,0,0,0,0,0,0,0,0,0,0,0,0,0,0,0,0,0,0,0,0,0,0,0,0,0,0,0,0,0,0,0,0,0,0,0,0,0,0,0,0,0,0,0,0,0,0,0,0,0,0,0,0,0,0,0,0,0,0,0,0,0,0,0,0,0,0,0,0,0,0,0,0,0,0,0,0,0,0,0,0,0,0,0,0,0,0,0,0,0,0,0,0,0,0,0,0,0,0,0,0,0,0,0,0,0,0,0,0,0,0,0,0,0,0,0,0,0,0,0,0,0,0,0,0,0,0,0,0,0,0,0,0,0,0,0,0,1,4,0,0,0,0,0,0,0,0,0,0,0,0,0,0,0,0,0,0,0,0,0,0,0,0,0,25,5,8,30,26]
[]
[]
[]
[]
[]
[]
[]
[]
[]
[]
[]
["METALES PESADOS 4","ADICIONALES"]
[]
["Anio",2025]
["UE","(Todas)"]
["Red","LA CONVENCION"]
["MicroRed","(Todas)"]
["EESS","(Todas)"]
["Provincia","(Todas)"]
["Distrito","(Todas)"]
[]
["Etiquetas de fila","Suma de ExpoG_n","Suma de ExpoG_Ad","Suma de ExpoG_J","Suma de ExpoG_A","Suma de MerOri_n","Suma de MerOri_Ad","Suma de MerOri_J","Suma de MerOri_A","Suma de MerOri_AM","Suma de ArsOri_n","Suma de ArsOri_Ad","Suma de ArsOri_J","Suma de ArsOri_A","Suma de ArsOri_AM","Suma de CadOri_n","Suma de CadOri_Ad","Suma de CadOri_J","Suma de CadOri_A","Suma de CadOri_AM","Suma de TtoMed_n","Suma de TtoMed_Ad","Suma de TtoMed_J","Suma de TtoMed_A","Suma de TtoMed_AM","Suma de CepvI_n","Suma de CepvI_Ad","Suma de CepvI_J","Suma de CepvI_A","Suma de CepvI_AM","Suma de CepvII_n","Suma de CepvII_Ad","Suma de CepvII_J","Suma de CepvII_A","Suma de CepvII_AM","Suma de CepvIII_n","Suma de CepvIII_Ad","Suma de CepvIII_J","Suma de CepvIII_A","Suma de CepvIII_AM","Suma de MP_Ref_n","Suma de MP_Ref_Ad","Suma de MP_Ref_J","Suma de MP_Ref_A","Suma de MP_Ref_AM","Suma de MP_CRef_n","Suma de MP_CRef_Ad","Suma de MP_CRef_A","Suma de MP_CRef_AM","Suma de MP_CRef_J"]
[1,0,0,0,0,0,0,0,0,0,0,0,0,0,0,0,0,0,0,0,0,0,0,0,0,0,0,0,0,0,0,0,0,0,0,0,0,0,0,0,0,0,0,0,0,0,0,0,0,0]
[2,0,0,0,0,0,0,0,0,0,0,0,0,0,0,0,0,0,0,0,0,0,0,0,0,0,0,0,0,0,0,0,0,0,0,0,0,0,0,0,0,0,0,0,0,0,0,0,0,0]
[3,0,0,0,0,0,0,0,0,0,0,0,0,0,0,0,0,0,0,0,0,0,0,0,0,0,0,0,0,0,0,0,0,0,0,0,0,0,0,0,0,0,0,0,0,0,0,0,0,0]
["Total general",0,0,0,0,0,0,0,0,0,0,0,0,0,0,0,0,0,0,0,0,0,0,0,0,0,0,0,0,0,0,0,0,0,0,0,0,0,0,0,0,0,0,0,0,0,0,0,0,0]

{"sheet":"Menu","index":2,"n_rows":31,"n_cols":9,"rows_kept":31,"cut":false,"hidden":false,"merged":[[30,8,30,9],[30,5,30,7],[1,7,1,16],[2,7,2,16],[3,7,3,16]]}
[]
[null,null,null,null,null,null,null,"GERESA CUSCO"]
[null,null,null,null,null,null,null,"REPORTE HISMINSA 2025"]
[null,null,null,null,null,null,null,"METALES PESADOS"]
[]
[]
[]
[]
[]
[]
[]
[]
[]
[]
[]
[]
[]
[]
[]
[]
[]
[]
[]
[]
[]
[]
[]
[]
[]
[]
[null,null,null,null,null,"Fecha Actualización DATA",null,null,"31/03/2025"]

{"sheet":"INFORME","index":3,"n_rows":299,"n_cols":40,"rows_kept":299,"cut":false,"hidden":false,"merged":[[148,38,148,40],[157,27,157,28],[157,30,157,31],[157,33,157,34],[157,36,157,37],[157,39,157,40],[158,27,158,28],[158,30,158,31],[158,33,158,34],[158,36,158,37],[158,39,158,40],[152,27,152,28],[152,30,152,31],[152,33,152,34],[152,36,152,37],[152,39,152,40],[153,27,153,28],[153,30,153,31],[153,33,153,34],[153,36,153,37],[153,39,153,40],[155,26,155,40],[156,26,156,28],[156,29,156,31],[156,32,156,34],[156,35,156,37],[156,38,156,40],[116,38,116,40],[140,1,142,25],[142,26,142,27],[142,28,142,29],[141,26,141,29],[142,30,142,31],[142,32,142,33],[141,30,141,33],[117,38,117,40],[115,26,115,28],[116,26,116,28],[115,29,115,31],[116,29,116,31],[115,32,115,34],[116,32,116,34],[115,35,115,37],[116,35,116,37],[115,38,115,40],[116,1,116,25],[117,1,117,25],[117,26,117,28],[117,29,117,31],[117,32,117,34],[117,35,117,37],[141,35,141,37],[141,38,141,40],[140,26,140,33],[138,26,138,28],[138,29,138,31],[138,32,138,34],[138,35,138,37],[138,38,138,40],[113,38,113,40],[114,1,114,25],[114,26,114,28],[114,29,114,31],[114,32,114,34],[114,35,114,37],[114,38,114,40],[112,26,112,28],[112,29,112,31],[112,32,112,34],[112,35,112,37],[112,38,112,40],[113,1,113,25],[113,26,113,28],[113,29,113,31],[113,32,113,34],[113,35,113,37],[110,35,110,37],[110,38,110,40],[111,1,111,25],[111,26,111,28],[111,29,111,31],[111,32,111,34],[111,35,111,37],[111,38,111,40],[3,1,3,40],[4,1,4,40],[0,1,0,40],[1,1,1,40],[2,1,2,40],[109,1,110,25],[109,26,109,40],[110,26,110,28],[110,29,110,31],[110,32,110,34],[105,32,105,34],[105,35,105,37],[105,38,105,40],[106,26,106,28],[106,29,106,31],[106,32,106,34],[106,35,106,37],[106,38,106,40],[103,32,103,34],[103,35,103,37],[103,38,103,40],[104,26,104,28],[104,29,104,31],[104,32,104,34],[297,38,297,40],[296,21,296,25],[297,21,297,25],[298,21,298,25],[296,1,298,20],[298,26,298,28],[298,29,298,31],[298,32,298,34],[298,35,298,37],[298,38,298,40],[296,26,296,28],[296,29,296,31],[296,32,296,34],[296,35,296,37],[296,38,296,40],[297,26,297,28],[297,29,297,31],[297,32,297,34],[297,35,297,37],[292,38,292,40],[289,1,290,25],[294,1,295,25],[294,26,294,40],[295,26,295,28],[295,29,295,31],[295,32,295,34],[295,35,295,37],[295,38,295,40],[291,26,291,28],[291,29,291,31],[291,32,291,34],[291,35,291,37],[291,38,291,40],[292,1,292,25],[292,26,292,28],[292,29,292,31],[292,32,292,34],[292,35,292,37],[289,26,289,40],[290,26,290,28],[290,29,290,31],[290,32,290,34],[290,35,290,37],[290,38,290,40],[291,1,291,25],[287,1,287,25],[287,26,287,28],[287,29,287,31],[287,32,287,34],[287,35,287,37],[287,38,287,40],[283,38,283,40],[285,1,285,25],[285,26,285,40],[286,1,286,25],[286,26,286,28],[286,29,286,31],[286,32,286,34],[286,35,286,37],[286,38,286,40],[282,26,282,28],[282,29,282,31],[282,32,282,34],[282,35,282,37],[282,38,282,40],[283,1,283,25],[283,26,283,28],[283,29,283,31],[283,32,283,34],[283,35,283,37],[282,1,282,25],[281,1,281,25],[281,26,281,28],[281,29,281,31],[281,32,281,34],[281,35,281,37],[281,38,281,40],[280,1,280,25],[280,26,280,28],[280,29,280,31],[280,32,280,34],[280,35,280,37],[280,38,280,40],[278,1,278,25],[278,26,278,40],[279,1,279,25],[279,26,279,28],[279,29,279,31],[279,32,279,34],[279,35,279,37],[279,38,279,40],[276,1,276,25],[276,26,276,28],[276,29,276,31],[276,32,276,34],[276,35,276,37],[276,38,276,40],[275,1,275,25],[275,26,275,28],[275,29,275,31],[275,32,275,34],[275,35,275,37],[275,38,275,40],[273,26,273,40],[274,1,274,25],[274,26,274,28],[274,29,274,31],[274,32,274,34],[274,35,274,37],[274,38,274,40],[273,1,273,25],[272,26,272,28],[272,29,272,31],[272,32,272,34],[272,35,272,37],[272,38,272,40],[267,1,267,25],[268,1,268,25],[270,38,270,40],[271,1,271,25],[271,26,271,28],[271,29,271,31],[271,32,271,34],[271,35,271,37],[271,38,271,40],[269,26,269,28],[269,29,269,31],[269,32,269,34],[269,35,269,37],[269,38,269,40],[270,1,270,25],[270,26,270,28],[270,29,270,31],[270,32,270,34],[270,35,270,37],[267,26,267,40],[268,26,268,28],[268,29,268,31],[268,32,268,34],[268,35,268,37],[268,38,268,40],[272,1,272,25],[269,1,269,25],[265,1,265,25],[265,26,265,28],[265,29,265,31],[265,32,265,34],[265,35,265,37],[265,38,265,40],[264,1,264,25],[264,26,264,28],[264,29,264,31],[264,32,264,34],[264,35,264,37],[264,38,264,40],[263,1,263,25],[263,26,263,28],[263,29,263,31],[263,32,263,34],[263,35,263,37],[263,38,263,40],[262,1,262,25],[262,26,262,28],[262,29,262,31],[262,32,262,34],[262,35,262,37],[262,38,262,40],[260,1,261,25],[260,26,260,40],[261,26,261,28],[261,29,261,31],[261,32,261,34],[261,35,261,37],[261,38,261,40],[258,1,258,25],[258,26,258,28],[258,29,258,31],[258,32,258,34],[258,35,258,37],[258,38,258,40],[257,1,257,25],[257,26,257,28],[257,29,257,31],[257,32,257,34],[257,35,257,37],[257,38,257,40],[256,26,256,28],[256,29,256,31],[256,32,256,34],[256,35,256,37],[256,38,256,40],[255,26,255,34],[253,29,253,30],[253,31,253,32],[253,33,253,35],[253,36,253,38],[253,39,253,40],[255,1,256,25],[250,1,250,16],[251,1,251,16],[252,1,252,16],[253,1,253,16],[253,17,253,18],[253,19,253,20],[253,21,253,22],[253,23,253,24],[253,25,253,26],[253,27,253,28],[252,27,252,28],[252,29,252,30],[252,31,252,32],[252,33,252,35],[252,36,252,38],[252,39,252,40],[251,29,251,30],[251,31,251,32],[251,33,251,35],[251,36,251,38],[251,39,251,40],[252,17,252,18],[252,19,252,20],[252,21,252,22],[252,23,252,24],[252,25,252,26],[251,17,251,18],[251,19,251,20],[251,21,251,22],[251,23,251,24],[251,25,251,26],[251,27,251,28],[250,27,250,28],[250,29,250,30],[250,31,250,32],[250,33,250,35],[250,36,250,38],[250,39,250,40],[250,17,250,18],[250,19,250,20],[250,21,250,22],[250,23,250,24],[250,25,250,26],[249,33,249,35],[249,36,249,38],[249,39,249,40],[247,39,248,40],[249,17,249,28],[249,29,249,32],[246,36,248,38],[246,39,246,40],[247,29,248,30],[247,31,248,32],[246,29,246,32],[246,33,246,35],[247,33,248,35],[248,23,248,24],[247,17,247,24],[247,25,248,26],[247,27,248,28],[249,1,249,16],[246,1,247,16],[248,17,248,18],[248,19,248,20],[248,21,248,22],[246,17,246,28],[243,26,243,28],[243,29,243,31],[243,32,243,34],[244,26,244,28],[244,29,244,31],[244,32,244,34],[241,26,241,28],[241,29,241,31],[241,32,241,34],[242,26,242,28],[242,29,242,31],[242,32,242,34],[239,26,239,28],[239,29,239,31],[239,32,239,34],[240,26,240,28],[240,29,240,31],[240,32,240,34],[241,1,241,21],[242,1,244,21],[241,22,241,25],[242,22,242,25],[243,22,243,25],[244,22,244,25],[239,22,239,25],[240,22,240,25],[239,1,240,21],[237,1,238,25],[238,26,238,28],[238,29,238,31],[238,32,238,34],[237,26,237,34],[235,31,235,32],[235,33,235,34],[235,35,235,36],[232,37,232,38],[233,37,233,38],[234,37,234,38],[235,37,235,38],[234,27,234,28],[234,29,234,30],[234,31,234,32],[234,33,234,34],[234,35,234,36],[235,21,235,22],[235,23,235,24],[235,25,235,26],[235,27,235,28],[235,29,235,30],[232,35,232,36],[233,21,233,22],[233,23,233,24],[233,25,233,26],[233,27,233,28],[233,29,233,30],[233,31,233,32],[233,33,233,34],[233,35,233,36],[234,21,234,22],[234,23,234,24],[234,25,234,26],[229,37,231,38],[229,17,229,36],[232,17,232,18],[232,19,232,20],[233,17,233,18],[233,19,233,20],[232,27,232,28],[232,29,232,30],[232,31,232,32],[232,33,232,34],[231,31,231,32],[231,33,231,34],[231,35,231,36],[230,17,230,20],[230,21,230,24],[230,25,230,28],[230,29,230,32],[230,33,230,36],[231,19,231,20],[231,21,231,22],[231,23,231,24],[231,25,231,26],[231,27,231,28],[215,23,215,24],[215,25,215,26],[215,27,215,28],[231,29,231,30],[229,1,230,16],[232,1,232,16],[233,1,233,16],[234,1,234,16],[235,1,235,16],[231,17,231,18],[234,17,234,18],[219,29,221,30],[223,17,223,18],[223,19,223,20],[223,21,223,22],[223,23,223,24],[223,25,223,26],[223,27,223,28],[223,29,223,30],[221,21,221,22],[221,23,221,24],[219,17,219,24],[219,25,219,28],[220,25,220,28],[221,25,221,26],[221,27,221,28],[234,19,234,20],[235,17,235,18],[235,19,235,20],[232,21,232,22],[232,23,232,24],[232,25,232,26],[215,19,215,20],[216,17,216,18],[216,19,216,20],[217,33,217,34],[217,35,217,36],[210,1,211,16],[219,1,220,16],[222,1,222,16],[223,1,223,16],[220,17,220,20],[220,21,220,24],[221,17,221,18],[221,19,221,20],[217,21,217,22],[217,23,217,24],[217,25,217,26],[217,27,217,28],[217,29,217,30],[217,31,217,32],[215,35,215,36],[216,21,216,22],[216,23,216,24],[216,25,216,26],[216,27,216,28],[216,29,216,30],[216,31,216,32],[216,33,216,34],[216,35,216,36],[214,31,214,32],[214,33,214,34],[214,35,214,36],[215,21,215,22],[217,17,217,18],[217,19,217,20],[212,35,212,36],[211,33,211,36],[210,33,210,36],[213,17,213,18],[213,19,213,20],[214,17,214,18],[214,19,214,20],[213,21,213,22],[213,23,213,24],[213,25,213,26],[212,31,212,32],[211,21,211,24],[211,25,211,28],[211,29,211,32],[210,21,210,32],[212,33,212,34],[215,29,215,30],[215,31,215,32],[215,33,215,34],[213,27,213,28],[213,29,213,30],[213,31,213,32],[213,33,213,34],[213,35,213,36],[214,21,214,22],[214,23,214,24],[214,25,214,26],[214,27,214,28],[214,29,214,30],[215,17,215,18],[215,1,215,16],[216,1,216,16],[217,1,217,16],[199,1,200,16],[210,17,210,20],[211,17,211,20],[212,17,212,18],[212,19,212,20],[212,21,212,22],[74,19,74,40],[76,19,76,40],[60,26,60,40],[213,1,213,16],[212,23,212,24],[212,25,212,26],[212,27,212,28],[212,29,212,30],[207,21,207,22],[207,23,207,24],[208,17,208,18],[208,19,208,20],[208,21,208,22],[208,23,208,24],[205,21,205,22],[205,23,205,24],[206,17,206,18],[206,19,206,20],[206,21,206,22],[206,23,206,24],[199,17,199,24],[203,17,203,18],[203,19,203,20],[203,21,203,22],[203,23,203,24],[204,17,204,18],[204,19,204,20],[204,21,204,22],[204,23,204,24],[201,21,201,22],[201,23,201,24],[200,17,200,20],[200,21,200,24],[206,1,206,16],[207,1,207,16],[208,1,208,16],[201,17,201,18],[201,19,201,20],[205,17,205,18],[205,19,205,20],[207,17,207,18],[207,19,207,20],[202,1,202,16],[203,1,203,16],[204,1,204,16],[205,1,205,16],[197,39,197,40],[197,27,197,28],[197,29,197,30],[197,31,197,32],[197,33,197,34],[197,35,197,36],[197,37,197,38],[196,33,196,34],[196,35,196,36],[196,37,196,38],[196,39,196,40],[197,1,197,16],[197,17,197,18],[197,19,197,20],[197,21,197,22],[197,23,197,24],[197,25,197,26],[195,39,195,40],[196,1,196,16],[196,17,196,18],[196,19,196,20],[196,21,196,22],[196,23,196,24],[196,25,196,26],[196,27,196,28],[196,29,196,30],[196,31,196,32],[195,27,195,28],[195,29,195,30],[195,31,195,32],[195,33,195,34],[195,35,195,36],[195,37,195,38],[194,33,194,34],[194,35,194,36],[194,37,194,38],[194,39,194,40],[195,1,195,16],[195,17,195,18],[195,19,195,20],[195,21,195,22],[195,23,195,24],[195,25,195,26],[193,39,193,40],[194,1,194,16],[194,17,194,18],[194,19,194,20],[194,21,194,22],[194,23,194,24],[194,25,194,26],[194,27,194,28],[194,29,194,30],[194,31,194,32],[193,27,193,28],[193,29,193,30],[193,31,193,32],[193,33,193,34],[193,35,193,36],[193,37,193,38],[192,33,192,34],[192,35,192,36],[192,37,192,38],[192,39,192,40],[193,1,193,16],[193,17,193,18],[193,19,193,20],[193,21,193,22],[193,23,193,24],[193,25,193,26],[191,39,191,40],[192,1,192,16],[192,17,192,18],[192,19,192,20],[192,21,192,22],[192,23,192,24],[192,25,192,26],[192,27,192,28],[192,29,192,30],[192,31,192,32],[191,27,191,28],[191,29,191,30],[191,31,191,32],[191,33,191,34],[191,35,191,36],[191,37,191,38],[190,33,190,34],[190,35,190,36],[190,37,190,38],[190,39,190,40],[191,1,191,16],[191,17,191,18],[191,19,191,20],[191,21,191,22],[191,23,191,24],[191,25,191,26],[189,39,189,40],[190,1,190,16],[190,17,190,18],[190,19,190,20],[190,21,190,22],[190,23,190,24],[190,25,190,26],[190,27,190,28],[190,29,190,30],[190,31,190,32],[189,27,189,28],[189,29,189,30],[189,31,189,32],[189,33,189,34],[189,35,189,36],[189,37,189,38],[188,33,188,34],[188,35,188,36],[188,37,188,38],[188,39,188,40],[189,1,189,16],[189,17,189,18],[189,19,189,20],[189,21,189,22],[189,23,189,24],[189,25,189,26],[187,39,187,40],[188,1,188,16],[188,17,188,18],[188,19,188,20],[188,21,188,22],[188,23,188,24],[188,25,188,26],[188,27,188,28],[188,29,188,30],[188,31,188,32],[186,29,186,30],[186,31,186,32],[186,33,186,34],[186,35,186,36],[186,37,186,38],[186,39,186,40],[186,17,186,18],[186,19,186,20],[186,21,186,22],[186,23,186,24],[186,25,186,26],[186,27,186,28],[177,35,177,36],[177,37,177,38],[177,39,177,40],[159,1,159,16],[185,1,185,16],[185,17,185,40],[176,39,176,40],[177,17,177,18],[177,19,177,20],[177,21,177,22],[177,23,177,24],[177,25,177,26],[177,27,177,28],[177,29,177,30],[177,31,177,32],[177,33,177,34],[176,27,176,28],[176,29,176,30],[176,31,176,32],[176,33,176,34],[176,35,176,36],[176,37,176,38],[175,31,175,32],[175,33,175,34],[175,35,175,36],[175,37,175,38],[175,39,175,40],[176,17,176,18],[176,19,176,20],[176,21,176,22],[176,23,176,24],[176,25,176,26],[175,17,175,18],[175,19,175,20],[175,21,175,22],[175,23,175,24],[175,25,175,26],[175,27,175,28],[175,29,175,30],[173,39,173,40],[174,17,174,18],[174,19,174,20],[174,21,174,22],[174,23,174,24],[174,25,174,26],[174,27,174,28],[174,29,174,30],[174,31,174,32],[174,33,174,34],[173,27,173,28],[173,29,173,30],[173,31,173,32],[173,33,173,34],[173,35,173,36],[173,37,173,38],[172,39,172,40],[173,17,173,18],[173,19,173,20],[173,21,173,22],[173,23,173,24],[173,25,173,26],[171,35,171,36],[171,37,171,38],[171,39,171,40],[172,17,172,18],[172,19,172,20],[172,21,172,22],[172,23,172,24],[172,25,172,26],[172,27,172,28],[172,29,172,30],[174,35,174,36],[174,37,174,38],[174,39,174,40],[170,39,170,40],[171,17,171,18],[171,19,171,20],[171,21,171,22],[171,23,171,24],[171,25,171,26],[171,27,171,28],[171,29,171,30],[171,31,171,32],[171,33,171,34],[170,27,170,28],[170,29,170,30],[170,31,170,32],[170,33,170,34],[170,35,170,36],[170,37,170,38],[169,31,169,32],[169,33,169,34],[169,35,169,36],[169,37,169,38],[169,39,169,40],[170,17,170,18],[170,19,170,20],[170,21,170,22],[170,23,170,24],[170,25,170,26],[169,19,169,20],[169,21,169,22],[169,23,169,24],[169,25,169,26],[169,27,169,28],[169,29,169,30],[168,39,168,40],[167,33,167,34],[167,35,167,36],[167,37,167,38],[167,39,167,40],[168,17,168,18],[168,19,168,20],[168,21,168,22],[168,23,168,24],[168,25,168,26],[168,27,168,28],[167,21,167,22],[167,23,167,24],[167,25,167,26],[167,27,167,28],[167,29,167,30],[167,31,167,32],[166,39,166,40],[165,33,165,34],[165,35,165,36],[165,37,165,38],[165,39,165,40],[166,17,166,18],[166,19,166,20],[166,21,166,22],[166,23,166,24],[166,25,166,26],[166,27,166,28],[165,21,165,22],[165,23,165,24],[165,25,165,26],[165,27,165,28],[165,29,165,30],[165,31,165,32],[164,39,164,40],[163,33,163,34],[163,35,163,36],[163,37,163,38],[163,39,163,40],[164,17,164,18],[164,19,164,20],[164,21,164,22],[164,23,164,24],[164,25,164,26],[164,27,164,28],[163,21,163,22],[163,23,163,24],[163,25,163,26],[163,27,163,28],[163,29,163,30],[163,31,163,32],[163,1,163,16],[164,1,164,16],[165,1,165,16],[166,1,166,16],[167,1,167,16],[168,1,168,16],[160,31,160,32],[164,29,164,30],[164,31,164,32],[166,29,166,30],[166,31,166,32],[168,29,168,30],[168,31,168,32],[172,31,172,32],[164,33,164,34],[164,35,164,36],[164,37,164,38],[166,33,166,34],[166,35,166,36],[166,37,166,38],[168,33,168,34],[168,35,168,36],[168,37,168,38],[172,33,172,34],[172,35,172,36],[172,37,172,38],[160,33,160,34],[160,35,160,36],[160,37,160,38],[160,39,160,40],[162,1,162,16],[159,17,159,40],[160,17,160,18],[160,19,160,20],[160,21,160,22],[160,23,160,24],[160,25,160,26],[160,27,160,28],[160,29,160,30],[162,25,162,26],[162,23,162,24],[162,21,162,22],[162,19,162,20],[162,17,162,18],[161,1,161,16],[161,39,161,40],[162,39,162,40],[162,37,162,38],[162,35,162,36],[162,33,162,34],[162,31,162,32],[162,29,162,30],[162,27,162,28],[143,26,143,27],[143,28,143,29],[143,30,143,31],[149,39,149,40],[150,30,150,31],[150,33,150,34],[150,36,150,37],[150,39,150,40],[151,27,151,28],[151,30,151,31],[151,33,151,34],[151,36,151,37],[151,39,151,40],[149,27,149,28],[150,27,150,28],[149,30,149,31],[149,33,149,34],[149,36,149,37],[143,32,143,33],[144,26,144,27],[144,28,144,29],[144,30,144,31],[144,32,144,33],[145,26,145,27],[145,28,145,29],[145,30,145,31],[145,32,145,33],[147,26,147,40],[148,26,148,28],[148,29,148,31],[148,32,148,34],[148,35,148,37],[123,26,123,40],[130,26,130,40],[136,26,136,28],[136,29,136,31],[136,32,136,34],[136,35,136,37],[136,38,136,40],[137,26,137,28]],"merged_total":1497,"flags":["merged_cut"]}
[null,"DIRECCION REGIONAL DE SALUD CUSCO"]
[null,"DIRECCION EJECUTIVA DE INTELIGENCIA SANITARIA"]
[null,"DIRECCION DE ESTADISTICA Y TELECOMUNICACIONES"]
[null,"REPORTE DE ACTIVIDADES MENSUALES DE ESTRATEGIA DE METALES PESADOS Y OTRAS SUSTANCIAS QUIMICAS"]
[null,"INFORME OPERACIONAL MENSUAL"]
[]
[]
[null,null,null,null,null,"RED DE SALUD",null,null,null,null,{"$f":"TD!F3","v":"LA CONVENCION"},null,null,null,null,null,null,null,null,null,null,null,"PROVINCIA",null,null,null,{"$f":"TD!F6","v":"(All)"},null,null,null,null,null,null,null,"AÑO",null,{"$f":"TD!C10","v":2025}]
[]
[null,null,null,null,null,"MICRO RED",null,null,null,null,{"$f":"TD!F4","v":"(All)"},null,null,null,null,null,null,null,null,null,null,null,"DISTRITO",null,null,null,{"$f":"TD!F7","v":"(All)"},null,null,null,null,null,null,null,"MES",null,{"$f":"TD!O17","v":"ENERO - MARZO"}]
[]
[null,null,null,null,null,"ESTABLECIMIENTO",null,null,null,null,{"$f":"TD!F5","v":"(All)"},null,null,null,null,null,null,null,null,null,null,null,"U.E.",null,null,null,{"$f":"TD!F8","v":"(All)"}]
[]
[]
[null,"ACTIVIDAD",null,null,null,null,null,null,null,null,null,null,null,null,null,null,null,null,null,null,null,null,null,null,null,null,"CURSO DE VIDA"]
[null,null,null,null,null,null,null,null,null,null,null,null,null,null,null,null,null,null,null,null,null,null,null,null,null,null,"00a-11a",null,null,"12a-17a",null,null,"18a-29a",null,null,"30a-59a",null,null,"60a+"]
[null,null,"Evaluación Integral a Personas Expuestas a Metales Pesados, Metaloides y otras Sustancias Químicas"]
[null,null,"Población en Genreal",null,null,null,null,null,null,null,null,null,null,null,null,null,null,null,null,null,null,null,null,null,null,null,{"$f":"SUM(GETPIVOTDATA(\"Suma de Expo_n\",TD!$A$90))","v":25},null,null,{"$f":"SUM(GETPIVOTDATA(\"Suma de Expo_ad\",TD!$A$90))","v":5},null,null,{"$f":"SUM(GETPIVOTDATA(\"Suma de Expo_j\",TD!$A$90))","v":8},null,null,{"$f":"SUM(GETPIVOTDATA(\"Suma de Expo_a\",TD!$A$90))","v":30},null,null,{"$f":"SUM(GETPIVOTDATA(\"Suma de Expo_am\",TD!$A$90))","v":26}]
[]
[null,null,"Evaluación Integral a Personas Expuestas a Metales Pesados, Metaloides y otras Sustancias Químicas",null,null,null,null,null,null,null,null,null,null,null,null,null,null,null,null,null,null,null,null,null,null,null,"GESTANTES"]
[null,null,null,null,null,null,null,null,null,null,null,null,null,null,null,null,null,null,null,null,null,null,null,null,null,null,"06a-11a",null,null,"12a-17a",null,null,"18a-29a",null,null,"30a-59a",null,null,"Total"]
[null,null,"Gestantes",null,null,null,null,null,null,null,null,null,null,null,null,null,null,null,null,null,null,null,null,null,null,null,{"$f":"SUM(GETPIVOTDATA(\"Suma de ExpoG_n\",TD!$A$116))","v":0},null,null,{"$f":"SUM(GETPIVOTDATA(\"Suma de ExpoG_ad\",TD!$A$116))","v":0},null,null,{"$f":"SUM(GETPIVOTDATA(\"Suma de ExpoG_j\",TD!$A$116))","v":0},null,null,{"$f":"SUM(GETPIVOTDATA(\"Suma de ExpoG_a\",TD!$A$116))","v":0},null,null,{"$f":"+AA22+AD22+AG22+AJ22","v":0}]
[]
[null,"ACTIVIDADES",null,null,null,null,null,null,null,null,null,null,null,null,null,null,null,null,null,null,null,null,null,null,null,null,"CURSO DE VIDA"]
[null,null,null,null,null,null,null,null,null,null,null,null,null,null,null,null,null,null,null,null,null,null,null,null,null,null,"00a-11a",null,null,"12a-17a",null,null,"18a-29a",null,null,"30a-59a",null,null,"60a+"]
[null,"A","TOMA DE MUESTRAS BIOLOGICAS"]
[null,null,"Dosaje de Arsénico",null,null,null,null,null,null,null,null,null,null,null,null,null,null,null,null,null,null,null,null,null,null,null,{"$f":"SUM(GETPIVOTDATA(\"Suma de DArs_n\",TD!$A$38))","v":0},null,null,{"$f":"SUM(GETPIVOTDATA(\"Suma de DArs_ad\",TD!$A$38))","v":0},null,null,{"$f":"SUM(GETPIVOTDATA(\"Suma de DArs_j\",TD!$A$38))","v":0},null,null,{"$f":"SUM(GETPIVOTDATA(\"Suma de DArs_a\",TD!$A$38))","v":0},null,null,{"$f":"SUM(GETPIVOTDATA(\"Suma de DArs_am\",TD!$A$38))","v":0}]
[null,null,"Dosaje de Plomo",null,null,null,null,null,null,null,null,null,null,null,null,null,null,null,null,null,null,null,null,null,null,null,{"$f":"SUM(GETPIVOTDATA(\"Suma de DPlo_n\",TD!$A$38))","v":0},null,null,{"$f":"SUM(GETPIVOTDATA(\"Suma de DPlo_ad\",TD!$A$38))","v":0},null,null,{"$f":"SUM(GETPIVOTDATA(\"Suma de DPlo_j\",TD!$A$38))","v":0},null,null,{"$f":"SUM(GETPIVOTDATA(\"Suma de DPlo_a\",TD!$A$38))","v":0},null,null,{"$f":"SUM(GETPIVOTDATA(\"Suma de DPlo_am\",TD!$A$38))","v":0}]
[null,null,"Dosaje de Cadmio",null,null,null,null,null,null,null,null,null,null,null,null,null,null,null,null,null,null,null,null,null,null,null,{"$f":"SUM(GETPIVOTDATA(\"Suma de DCad_n\",TD!$A$38))","v":0},null,null,{"$f":"SUM(GETPIVOTDATA(\"Suma de DCad_ad\",TD!$A$38))","v":0},null,null,{"$f":"SUM(GETPIVOTDATA(\"Suma de DCad_j\",TD!$A$38))","v":0},null,null,{"$f":"SUM(GETPIVOTDATA(\"Suma de DCad_a\",TD!$A$38))","v":0},null,null,{"$f":"SUM(GETPIVOTDATA(\"Suma de DCad_am\",TD!$A$38))","v":0}]
[null,null,"Dosaje de Mercurio",null,null,null,null,null,null,null,null,null,null,null,null,null,null,null,null,null,null,null,null,null,null,null,{"$f":"SUM(GETPIVOTDATA(\"Suma de DMer_n\",TD!$A$38))","v":0},null,null,{"$f":"SUM(GETPIVOTDATA(\"Suma de DMer_ad\",TD!$A$38))","v":0},null,null,{"$f":"SUM(GETPIVOTDATA(\"Suma de DMer_j\",TD!$A$38))","v":0},null,null,{"$f":"SUM(GETPIVOTDATA(\"Suma de DMer_a\",TD!$A$38))","v":0},null,null,{"$f":"SUM(GETPIVOTDATA(\"Suma de DMer_am\",TD!$A$38))","v":0}]
[null,null,"Dosaje de Metales Pesados (arsénico, bario, berilio, bismuto, antimonio,  mercurio)",null,null,null,null,null,null,null,null,null,null,null,null,null,null,null,null,null,null,null,null,null,null,null,{"$f":"SUM(GETPIVOTDATA(\"Suma de DMpe_n\",TD!$A$38))","v":0},null,null,{"$f":"SUM(GETPIVOTDATA(\"Suma de DMpe_ad\",TD!$A$38))","v":0},null,null,{"$f":"SUM(GETPIVOTDATA(\"Suma de DMpe_j\",TD!$A$38))","v":0},null,null,{"$f":"SUM(GETPIVOTDATA(\"Suma de DMpe_a\",TD!$A$38))","v":0},null,null,{"$f":"SUM(GETPIVOTDATA(\"Suma de DMpe_am\",TD!$A$38))","v":0}]
[null,"B","HALLAZGO DE METALES PESADOS EN MUESTRAS BIOLÓGICAS"]
[null,null,"Hallazgos de niveles anormales de metales pesados en la sangre",null,null,null,null,null,null,null,null,null,null,null,null,null,null,null,null,null,null,null,null,null,null,null,{"$f":"SUM(GETPIVOTDATA(\"Suma de HSan_n\",TD!$A$38))","v":0},null,null,{"$f":"SUM(GETPIVOTDATA(\"Suma de HSan_ad\",TD!$A$38))","v":0},null,null,{"$f":"SUM(GETPIVOTDATA(\"Suma de HSan_j\",TD!$A$38))","v":0},null,null,{"$f":"SUM(GETPIVOTDATA(\"Suma de HSan_a\",TD!$A$38))","v":0},null,null,{"$f":"SUM(GETPIVOTDATA(\"Suma de HSan_am\",TD!$A$38))","v":0}]
[null,null,"Niveles anormales en la orina de sustancias de origen principalmente no medicinal en Mercurio",null,null,null,null,null,null,null,null,null,null,null,null,null,null,null,null,null,null,null,null,null,null,null,{"$f":"SUM(GETPIVOTDATA(\"Suma de MerOri_n\",TD!$A$116))","v":0},null,null,{"$f":"SUM(GETPIVOTDATA(\"Suma de MerOri_ad\",TD!$A$116))","v":0},null,null,{"$f":"SUM(GETPIVOTDATA(\"Suma de MerOri_j\",TD!$A$116))","v":0},null,null,{"$f":"SUM(GETPIVOTDATA(\"Suma de MerOri_a\",TD!$A$116))","v":0},null,null,{"$f":"SUM(GETPIVOTDATA(\"Suma de MerOri_am\",TD!$A$116))","v":0}]
[null,null,"Niveles anormales en la orina de sustancias de origen principalmente no medicinal en Arsénico",null,null,null,null,null,null,null,null,null,null,null,null,null,null,null,null,null,null,null,null,null,null,null,{"$f":"SUM(GETPIVOTDATA(\"Suma de ArsOri_n\",TD!$A$116))","v":0},null,null,{"$f":"SUM(GETPIVOTDATA(\"Suma de ArsOri_ad\",TD!$A$116))","v":0},null,null,{"$f":"SUM(GETPIVOTDATA(\"Suma de ArsOri_j\",TD!$A$116))","v":0},null,null,{"$f":"SUM(GETPIVOTDATA(\"Suma de ArsOri_a\",TD!$A$116))","v":0},null,null,{"$f":"SUM(GETPIVOTDATA(\"Suma de ArsOri_am\",TD!$A$116))","v":0}]
[null,null,"Niveles anormales en la orina de sustancias de origen principalmente no medicinal en Cadmio",null,null,null,null,null,null,null,null,null,null,null,null,null,null,null,null,null,null,null,null,null,null,null,{"$f":"SUM(GETPIVOTDATA(\"Suma de CadOri_n\",TD!$A$116))","v":0},null,null,{"$f":"SUM(GETPIVOTDATA(\"Suma de CadOri_ad\",TD!$A$116))","v":0},null,null,{"$f":"SUM(GETPIVOTDATA(\"Suma de CadOri_j\",TD!$A$116))","v":0},null,null,{"$f":"SUM(GETPIVOTDATA(\"Suma de CadOri_a\",TD!$A$116))","v":0},null,null,{"$f":"SUM(GETPIVOTDATA(\"Suma de CadOri_am\",TD!$A$116))","v":0}]
[null,null,"TOTAL de Niveles anormales en la orina de sustancias de origen principalmente no medicinal (para el caso de resultados de dosaje de metales pesados en orina, por encima del valor de la referencia).",null,null,null,null,null,null,null,null,null,null,null,null,null,null,null,null,null,null,null,null,null,null,null,{"$f":"+AA34+AA35+AA36","v":0},null,null,{"$f":"+AD34+AD35+AD36","v":0},null,null,{"$f":"+AG34+AG35+AG36","v":0},null,null,{"$f":"+AJ34+AJ35+AJ36","v":0},null,null,{"$f":"+AM34+AM35+AM36","v":0}]
[null,"C","ENTREGA DE RESULTADOS"]
[null,null,"Evaluación y Entrega de Resultados de Diagnósitco",null,null,null,null,null,null,null,null,null,null,null,null,null,null,null,null,null,null,null,null,null,null,null,{"$f":"SUM(GETPIVOTDATA(\"Suma de HEnt_n\",TD!$A$38))","v":0},null,null,{"$f":"SUM(GETPIVOTDATA(\"Suma de HEnt_ad\",TD!$A$38))","v":0},null,null,{"$f":"SUM(GETPIVOTDATA(\"Suma de HEnt_j\",TD!$A$38))","v":0},null,null,{"$f":"SUM(GETPIVOTDATA(\"Suma de HEnt_a\",TD!$A$38))","v":0},null,null,{"$f":"SUM(GETPIVOTDATA(\"Suma de HEnt_am\",TD!$A$38))","v":0}]
[null,"D","CONSEJERIAS"]
[null,null,"Consejería preventiva en factores de riesgo por exposición a metales pesados y otras sustancias químicas",null,null,null,null,null,null,null,null,null,null,null,null,null,null,null,null,null,null,null,null,null,null,null,{"$f":"SUM(GETPIVOTDATA(\"Suma de HCon_n\",TD!$A$38))","v":0},null,null,{"$f":"SUM(GETPIVOTDATA(\"Suma de HCon_ad\",TD!$A$38))","v":0},null,null,{"$f":"SUM(GETPIVOTDATA(\"Suma de HCon_j\",TD!$A$38))","v":0},null,null,{"$f":"SUM(GETPIVOTDATA(\"Suma de HCon_a\",TD!$A$38))","v":0},null,null,{"$f":"SUM(GETPIVOTDATA(\"Suma de HCon_am\",TD!$A$38))","v":0}]
[null,"E","EVALUACION MEDICA POR EFECTOS TOXICO DE METALES PESADOS"]
[null,null,"Evaluación Médica + Efecto Tóxico de metales: Arsenico y sus compuestos ",null,null,null,null,null,null,null,null,null,null,null,null,null,null,null,null,null,null,null,null,null,null,null,{"$f":"SUM(GETPIVOTDATA(\"Suma de EMed_Ars_n\",TD!$A$38))","v":0},null,null,{"$f":"SUM(GETPIVOTDATA(\"Suma de EMed_Ars_ad\",TD!$A$38))","v":0},null,null,{"$f":"SUM(GETPIVOTDATA(\"Suma de EMed_Ars_j\",TD!$A$38))","v":0},null,null,{"$f":"SUM(GETPIVOTDATA(\"Suma de EMed_Ars_a\",TD!$A$38))","v":0},null,null,{"$f":"SUM(GETPIVOTDATA(\"Suma de EMed_Ars_am\",TD!$A$38))","v":0}]
[null,null,"Evaluación Médica + Efecto Tóxico de metales: Cadmio y sus compuestos ",null,null,null,null,null,null,null,null,null,null,null,null,null,null,null,null,null,null,null,null,null,null,null,{"$f":"SUM(GETPIVOTDATA(\"Suma de EMed_Cad_n\",TD!$A$38))","v":0},null,null,{"$f":"SUM(GETPIVOTDATA(\"Suma de EMed_Cad_ad\",TD!$A$38))","v":0},null,null,{"$f":"SUM(GETPIVOTDATA(\"Suma de EMed_Cad_j\",TD!$A$38))","v":0},null,null,{"$f":"SUM(GETPIVOTDATA(\"Suma de EMed_Cad_a\",TD!$A$38))","v":0},null,null,{"$f":"SUM(GETPIVOTDATA(\"Suma de EMed_Cad_am\",TD!$A$38))","v":0}]
[null,null,"Evaluación Médica + Efecto Tóxico de metales: Mercurio y sus compuestos ",null,null,null,null,null,null,null,null,null,null,null,null,null,null,null,null,null,null,null,null,null,null,null,{"$f":"SUM(GETPIVOTDATA(\"Suma de EMed_Mer_n\",TD!$A$38))","v":0},null,null,{"$f":"SUM(GETPIVOTDATA(\"Suma de EMed_Mer_ad\",TD!$A$38))","v":0},null,null,{"$f":"SUM(GETPIVOTDATA(\"Suma de EMed_Mer_j\",TD!$A$38))","v":0},null,null,{"$f":"SUM(GETPIVOTDATA(\"Suma de EMed_Mer_a\",TD!$A$38))","v":0},null,null,{"$f":"SUM(GETPIVOTDATA(\"Suma de EMed_Mer_ad\",TD!$A$38))","v":0}]
[null,null,"Evaluación Médica + Efecto Tóxico de metales: Plomo y sus compuestos ",null,null,null,null,null,null,null,null,null,null,null,null,null,null,null,null,null,null,null,null,null,null,null,{"$f":"SUM(GETPIVOTDATA(\"Suma de EMed_Plo_n\",TD!$A$38))","v":0},null,null,{"$f":"SUM(GETPIVOTDATA(\"Suma de EMed_Plo_ad\",TD!$A$38))","v":0},null,null,{"$f":"SUM(GETPIVOTDATA(\"Suma de EMed_Plo_j\",TD!$A$38))","v":0},null,null,{"$f":"SUM(GETPIVOTDATA(\"Suma de EMed_Plo_a\",TD!$A$38))","v":0},null,null,{"$f":"SUM(GETPIVOTDATA(\"Suma de EMed_Plo_ad\",TD!$A$38))","v":0}]
[]
[]
[null,"F","ATENCIÓN MEDICA ESPECIALIZADA"]
[null,null,"Administración de Tratamiento a criterio médico",null,null,null,null,null,null,null,null,null,null,null,null,null,null,null,null,null,null,null,null,null,null,null,{"$f":"SUM(GETPIVOTDATA(\"Suma de TtoMed_n\",TD!$A$116))","v":0},null,null,{"$f":"SUM(GETPIVOTDATA(\"Suma de TtoMed_ad\",TD!$A$116))","v":0},null,null,{"$f":"SUM(GETPIVOTDATA(\"Suma de TtoMed_j\",TD!$A$116))","v":0},null,null,{"$f":"SUM(GETPIVOTDATA(\"Suma de TtoMed_a\",TD!$A$116))","v":0},null,null,{"$f":"SUM(GETPIVOTDATA(\"Suma de TtoMed_am\",TD!$A$116))","v":0}]
[null,"G","CONSULTA AMBULATORIA PARA LA EVALUACIÓN DE PACIEN NUEVO",null,null,null,null,null,null,null,null,null,null,null,null,null,null,null,null,null,null,null,null,null,null,null,"."]
[null,null,"Consulta Ambulatoria - Evalaución Paciente Nuevo en el Nive de Atención I",null,null,null,null,null,null,null,null,null,null,null,null,null,null,null,null,null,null,null,null,null,null,null,{"$f":"SUM(GETPIVOTDATA(\"Suma de CepvI_n\",TD!$A$116))","v":0},null,null,{"$f":"SUM(GETPIVOTDATA(\"Suma de CepvI_ad\",TD!$A$116))","v":0},null,null,{"$f":"SUM(GETPIVOTDATA(\"Suma de CepvI_j\",TD!$A$116))","v":0},null,null,{"$f":"SUM(GETPIVOTDATA(\"Suma de CepvI_a\",TD!$A$116))","v":0},null,null,{"$f":"SUM(GETPIVOTDATA(\"Suma de CepvI_am\",TD!$A$116))","v":0}]
[null,null,"Consulta Ambulatoria - Evalaución Paciente Nuevo en el Nive de Atención II",null,null,null,null,null,null,null,null,null,null,null,null,null,null,null,null,null,null,null,null,null,null,null,{"$f":"SUM(GETPIVOTDATA(\"Suma de CepvII_n\",TD!$A$116))","v":0},null,null,{"$f":"SUM(GETPIVOTDATA(\"Suma de CepvII_ad\",TD!$A$116))","v":0},null,null,{"$f":"SUM(GETPIVOTDATA(\"Suma de CepvII_j\",TD!$A$116))","v":0},null,null,{"$f":"SUM(GETPIVOTDATA(\"Suma de CepvII_a\",TD!$A$116))","v":0},null,null,{"$f":"SUM(GETPIVOTDATA(\"Suma de CepvII_am\",TD!$A$116))","v":0}]
[null,null,"Consulta Ambulatoria - Evalaución Paciente Nuevo en el Nive de Atención III",null,null,null,null,null,null,null,null,null,null,null,null,null,null,null,null,null,null,null,null,null,null,null,{"$f":"SUM(GETPIVOTDATA(\"Suma de CepvIII_n\",TD!$A$116))","v":0},null,null,{"$f":"SUM(GETPIVOTDATA(\"Suma de CepvIII_ad\",TD!$A$116))","v":0},null,null,{"$f":"SUM(GETPIVOTDATA(\"Suma de CepvIII_j\",TD!$A$116))","v":0},null,null,{"$f":"SUM(GETPIVOTDATA(\"Suma de CepvIII_a\",TD!$A$116))","v":0},null,null,{"$f":"SUM(GETPIVOTDATA(\"Suma de CepvIII_am\",TD!$A$116))","v":0}]
[null,"H","REFERENCIAS / CONTRAREFERENCIAS"]
[null,null,"Referencias",null,null,null,null,null,null,null,null,null,null,null,null,null,null,null,null,null,null,null,null,null,null,null,{"$f":"SUM(GETPIVOTDATA(\"Suma de MP_Ref_n\",TD!$A$116))","v":0},null,null,{"$f":"SUM(GETPIVOTDATA(\"Suma de MP_Ref_ad\",TD!$A$116))","v":0},null,null,{"$f":"SUM(GETPIVOTDATA(\"Suma de MP_Ref_j\",TD!$A$116))","v":0},null,null,{"$f":"SUM(GETPIVOTDATA(\"Suma de MP_Ref_a\",TD!$A$116))","v":0},null,null,{"$f":"SUM(GETPIVOTDATA(\"Suma de MP_Ref_am\",TD!$A$116))","v":0}]
[null,null,"Contrareferencias",null,null,null,null,null,null,null,null,null,null,null,null,null,null,null,null,null,null,null,null,null,null,null,{"$f":"SUM(GETPIVOTDATA(\"Suma de MP_CRef_n\",TD!$A$116))","v":0},null,null,{"$f":"SUM(GETPIVOTDATA(\"Suma de MP_CRef_ad\",TD!$A$116))","v":0},null,null,{"$f":"SUM(GETPIVOTDATA(\"Suma de MP_CRef_j\",TD!$A$116))","v":0},null,null,{"$f":"SUM(GETPIVOTDATA(\"Suma de MP_CRef_a\",TD!$A$116))","v":0},null,null,{"$f":"SUM(GETPIVOTDATA(\"Suma de MP_CRef_am\",TD!$A$116))","v":0}]
[]
[null,"MORBILIDAD",null,null,null,null,null,null,null,null,null,null,null,null,null,null,null,null,null,null,null,null,null,null,null,null,"CURSO DE VIDA"]
[null,null,null,null,null,null,null,null,null,null,null,null,null,null,null,null,null,null,null,null,null,null,null,null,null,null,"00a-11a",null,null,"12a-17a",null,null,"18a-29a",null,null,"30a-59a",null,null,"60a+"]
[null,"DIAGNIOTICOS"]
[null,"Infecciones Respiratorias Agudas Complicadas",null,null,null,null,null,null,null,null,null,null,null,null,null,null,null,null,null,null,null,null,null,null,null,null,{"$f":"SUM(GETPIVOTDATA(\"Suma de IrasC_n\",TD!$A$38))","v":0},null,null,{"$f":"SUM(GETPIVOTDATA(\"Suma de IrasC_ad\",TD!$A$38))","v":1},null,null,{"$f":"SUM(GETPIVOTDATA(\"Suma de IrasC_j\",TD!$A$38))","v":0},null,null,{"$f":"SUM(GETPIVOTDATA(\"Suma de IrasC_a\",TD!$A$38))","v":3},null,null,{"$f":"SUM(GETPIVOTDATA(\"Suma de IrasC_am\",TD!$A$38))","v":1}]
[null,"Infecciones Respiratorias Agudas No Complicadas",null,null,null,null,null,null,null,null,null,null,null,null,null,null,null,null,null,null,null,null,null,null,null,null,{"$f":"SUM(GETPIVOTDATA(\"Suma de IrasNC_n\",TD!$A$38))","v":0},null,null,{"$f":"SUM(GETPIVOTDATA(\"Suma de IrasNC_ad\",TD!$A$38))","v":0},null,null,{"$f":"SUM(GETPIVOTDATA(\"Suma de IrasNC_j\",TD!$A$38))","v":0},null,null,{"$f":"SUM(GETPIVOTDATA(\"Suma de IrasNC_a\",TD!$A$38))","v":0},null,null,{"$f":"SUM(GETPIVOTDATA(\"Suma de IrasNC_am\",TD!$A$38))","v":0}]
[null,"Anemia Nutricional",null,null,null,null,null,null,null,null,null,null,null,null,null,null,null,null,null,null,null,null,null,null,null,null,{"$f":"SUM(GETPIVOTDATA(\"Suma de Anemia_n\",TD!$A$38))","v":0},null,null,{"$f":"SUM(GETPIVOTDATA(\"Suma de Amenia_Ad\",TD!$A$38))","v":1},null,null,{"$f":"SUM(GETPIVOTDATA(\"Suma de Anemia_j\",TD!$A$38))","v":0},null,null,{"$f":"SUM(GETPIVOTDATA(\"Suma de Anemia_a\",TD!$A$38))","v":0},null,null,{"$f":"SUM(GETPIVOTDATA(\"Suma de Anemia_AM\",TD!$A$38))","v":0}]
[]
[null,"VISITAS DOMICILIARIAS",null,null,null,null,null,null,null,null,null,null,null,null,null,null,null,null,null,null,null,null,null,null,null,null,"CURSO DE VIDA"]
[null,null,null,null,null,null,null,null,null,null,null,null,null,null,null,null,null,null,null,null,null,null,null,null,null,null,"00a-11a",null,null,"12a-17a",null,null,"18a-29a",null,null,"30a-59a",null,null,"60a+"]
[null,"Visita Domiciliaria",null,null,null,null,null,null,null,null,null,null,null,null,null,null,null,null,null,null,null,"1º visita",null,null,null,null,{"$f":"SUM(GETPIVOTDATA(\"Suma de Visita1_n\",TD!$A$38))","v":0},null,null,{"$f":"SUM(GETPIVOTDATA(\"Suma de Visita1_ad\",TD!$A$38))","v":0},null,null,{"$f":"SUM(GETPIVOTDATA(\"Suma de Visita1_j\",TD!$A$38))","v":0},null,null,{"$f":"SUM(GETPIVOTDATA(\"Suma de Visita1_a\",TD!$A$38))","v":0},null,null,{"$f":"SUM(GETPIVOTDATA(\"Suma de Visita1_am\",TD!$A$38))","v":0}]
[null,null,null,null,null,null,null,null,null,null,null,null,null,null,null,null,null,null,null,null,null,"2º visita",null,null,null,null,{"$f":"SUM(GETPIVOTDATA(\"Suma de Visita2_n\",TD!$A$38))","v":0},null,null,{"$f":"SUM(GETPIVOTDATA(\"Suma de Visita2_ad\",TD!$A$38))","v":0},null,null,{"$f":"SUM(GETPIVOTDATA(\"Suma de Visita2_j\",TD!$A$38))","v":0},null,null,{"$f":"SUM(GETPIVOTDATA(\"Suma de Visita2_a\",TD!$A$38))","v":0},null,null,{"$f":"SUM(GETPIVOTDATA(\"Suma de Visita2_am\",TD!$A$38))","v":0}]
[null,null,null,null,null,null,null,null,null,null,null,null,null,null,null,null,null,null,null,null,null,"Con 3 a + visitas",null,null,null,null,{"$f":"SUM(GETPIVOTDATA(\"Suma de Visita3_n\",TD!$A$38))","v":0},null,null,{"$f":"SUM(GETPIVOTDATA(\"Suma de Visita3_ad\",TD!$A$38))","v":0},null,null,{"$f":"SUM(GETPIVOTDATA(\"Suma de Visita3_j\",TD!$A$38))","v":0},null,null,{"$f":"SUM(GETPIVOTDATA(\"Suma de Visita3_a\",TD!$A$38))","v":0},null,null,{"$f":"SUM(GETPIVOTDATA(\"Suma de Visita3_am\",TD!$A$38))","v":0}]
[]
[null,"SALUD BUCAL",null,null,null,null,null,null,null,null,null,null,null,null,null,null,null,null,null,"CURSO DE VIDA"]
[null,null,null,null,null,null,null,null,null,null,null,null,null,null,null,null,null,null,null,"TOTAL",null,"Niño",null,null,null,null,null,null,null,null,null,"Adolesc.",null,"Joven",null,"Adulto",null,"Adulto M",null,"Gestante"]
[null,null,null,null,null,null,null,null,null,null,null,null,null,null,null,null,null,null,null,null,null,"0-6m",null,"7-11m",null,"1-2a",null,"3-5a",null,"6-11a"]
[null,"Atención Estomatológica Preventiva (3000680)"]
[null,"Examen Estomatológico",null,null,null,null,null,null,null,null,null,null,null,null,null,null,null,null,null,{"$f":"SUM(V76:AO76)","v":0},null,{"$f":"SUM(GETPIVOTDATA(\"Suma de EXODON_0_6m\",TD!$A$38))","v":0},null,{"$f":"SUM(GETPIVOTDATA(\"Suma de EXODON_7_11m\",TD!$A$38))","v":0},null,{"$f":"SUM(GETPIVOTDATA(\"Suma de EXODON_1_2a\",TD!$A$38))","v":0},null,{"$f":"SUM(GETPIVOTDATA(\"Suma de EXODON_3_5a\",TD!$A$38))","v":0},null,{"$f":"SUM(GETPIVOTDATA(\"Suma de EXODON_6_11a\",TD!$A$38))","v":0},null,{"$f":"SUM(GETPIVOTDATA(\"Suma de EXODONN_ad\",TD!$A$38))","v":0},null,{"$f":"SUM(GETPIVOTDATA(\"Suma de EXODON_j\",TD!$A$38))","v":0},null,{"$f":"SUM(GETPIVOTDATA(\"Suma de EXODON_a\",TD!$A$38))","v":0},null,{"$f":"SUM(GETPIVOTDATA(\"Suma de EXODON_am\",TD!$A$38))","v":0},null,{"$f":"SUM(GETPIVOTDATA(\"Suma de EXODON_g\",TD!$A$38))","v":0}]
[null,"Atención Estomatológica Recuperativa  (3000681)"]
[null,"Consulta Estomatológica",null,null,null,null,null,null,null,null,null,null,null,null,null,null,null,null,null,{"$f":"SUM(V78:AO78)","v":0},null,{"$f":"SUM(GETPIVOTDATA(\"Suma de ConsultaE_0_6m\",TD!$A$38))","v":0},null,{"$f":"SUM(GETPIVOTDATA(\"Suma de ConsultaE_7_11m\",TD!$A$38))","v":0},null,{"$f":"SUM(GETPIVOTDATA(\"Suma de ConsultaE_1_2a\",TD!$A$38))","v":0},null,{"$f":"SUM(GETPIVOTDATA(\"Suma de ConsultaE_3_5a\",TD!$A$38))","v":0},null,{"$f":"SUM(GETPIVOTDATA(\"Suma de ConsultaE_6_11a\",TD!$A$38))","v":0},null,{"$f":"SUM(GETPIVOTDATA(\"Suma de ConsultaE_ad\",TD!$A$38))","v":0},null,{"$f":"SUM(GETPIVOTDATA(\"Suma de ConsultaE_j\",TD!$A$38))","v":0},null,{"$f":"SUM(GETPIVOTDATA(\"Suma de ConsultaE_a\",TD!$A$38))","v":0},null,{"$f":"SUM(GETPIVOTDATA(\"Suma de ConsultaE_am\",TD!$A$38))","v":0},null,{"$f":"SUM(GETPIVOTDATA(\"Suma de ConsultaE_g\",TD!$A$38))","v":0}]
[]
[null,"EVALUACION FISICA NUTRICIONAL ",null,null,null,null,null,null,null,null,null,null,null,null,null,null,null,null,null,null,null,null,null,null,null,null,"CURSO DE VIDA"]
[null,null,null,null,null,null,null,null,null,null,null,null,null,null,null,null,null,null,null,null,null,null,null,null,null,null,"00a-11a",null,null,"12a-17a",null,null,"18a-29a",null,null,"30a-59a",null,null,"60a+"]
[null,"Examen médico general (Z000)",null,null,null,null,null,null,null,null,null,null,null,null,null,null,null,null,null,null,null,null,null,null,null,null,null,null,null,{"$f":"SUM(GETPIVOTDATA(\"Suma de ExMed_Ad\",TD!$A$38))","v":0}]
[null,"Peso Normal (Z006)",null,null,null,null,null,null,null,null,null,null,null,null,null,null,null,null,null,null,null,null,null,null,null,null,null,null,null,{"$f":"SUM(GETPIVOTDATA(\"Suma de PeNor_ad\",TD!$A$38))","v":0}]
[null,"Talla Normal (Z006)",null,null,null,null,null,null,null,null,null,null,null,null,null,null,null,null,null,null,null,null,null,null,null,null,null,null,null,{"$f":"SUM(GETPIVOTDATA(\"Suma de taNor_ad\",TD!$A$38))","v":0}]
[null,"Suplementación de sulfato ferroso y ácido fólico (99199.26)",null,null,null,null,null,null,null,null,null,null,null,null,null,null,null,null,null,null,null,null,null,null,null,null,null,null,null,{"$f":"SUM(GETPIVOTDATA(\"Suma de Supl_ad\",TD!$A$38))","v":0}]
[]
[]
[]
[]
[]
[]
[]
[]
[]
[]
[]
[null,"INMUNIZACIONES",null,null,null,null,null,null,null,null,null,null,null,null,null,null,null,null,null,null,null,null,null,null,null,null,"CURSO DE VIDA"]
[null,null,null,null,null,null,null,null,null,null,null,null,null,null,null,null,null,null,null,null,null,null,null,null,null,null,"00a-11a",null,null,"12a-17a",null,null,"18a-29a",null,null,"30a-59a",null,null,"60a+"]
[null,"Vacunación Antihepatitis Viral B (HvB) 90746",null,null,null,null,null,null,null,null,null,null,null,null,null,null,null,null,null,null,null,"1º Dosis",null,null,null,null,{"$f":"SUM(GETPIVOTDATA(\"Suma de HvB1_n\",TD!$A$38))","v":0},null,null,{"$f":"SUM(GETPIVOTDATA(\"Suma de HvB1_ad\",TD!$A$38))","v":0},null,null,{"$f":"SUM(GETPIVOTDATA(\"Suma de HvB1_j\",TD!$A$38))","v":0},null,null,{"$f":"SUM(GETPIVOTDATA(\"Suma de HvB1_a\",TD!$A$38))","v":0},null,null,{"$f":"SUM(GETPIVOTDATA(\"Suma de HvB1_am\",TD!$A$38))","v":0}]
[null,null,null,null,null,null,null,null,null,null,null,null,null,null,null,null,null,null,null,null,null,"2º Dosis",null,null,null,null,{"$f":"SUM(GETPIVOTDATA(\"Suma de HvB2_n\",TD!$A$38))","v":0},null,null,{"$f":"SUM(GETPIVOTDATA(\"Suma de HvB2_ad\",TD!$A$38))","v":0},null,null,{"$f":"SUM(GETPIVOTDATA(\"Suma de HvB2_j\",TD!$A$38))","v":0},null,null,{"$f":"SUM(GETPIVOTDATA(\"Suma de HvB2_a\",TD!$A$38))","v":0},null,null,{"$f":"SUM(GETPIVOTDATA(\"Suma de HvB2_am\",TD!$A$38))","v":0}]
[null,null,null,null,null,null,null,null,null,null,null,null,null,null,null,null,null,null,null,null,null,"3º Dosis",null,null,null,null,{"$f":"SUM(GETPIVOTDATA(\"Suma de HvB3_n\",TD!$A$38))","v":0},null,null,{"$f":"SUM(GETPIVOTDATA(\"Suma de HvB3_ad\",TD!$A$38))","v":0},null,null,{"$f":"SUM(GETPIVOTDATA(\"Suma de HvB3_j\",TD!$A$38))","v":0},null,null,{"$f":"SUM(GETPIVOTDATA(\"Suma de HvB3_a\",TD!$A$38))","v":0},null,null,{"$f":"SUM(GETPIVOTDATA(\"Suma de HvB3_am\",TD!$A$38))","v":0}]
[null,"Vacuna contra la Influenza  (Estacional) 90658",null,null,null,null,null,null,null,null,null,null,null,null,null,null,null,null,null,null,null,null,null,null,null,null,{"$f":"SUM(GETPIVOTDATA(\"Suma de Infl_n\",TD!$A$38))","v":0},null,null,{"$f":"SUM(GETPIVOTDATA(\"Suma de Infl_ad\",TD!$A$38))","v":0},null,null,{"$f":"SUM(GETPIVOTDATA(\"Suma de Infl_j\",TD!$A$38))","v":0},null,null,{"$f":"SUM(GETPIVOTDATA(\"Suma de Infl_a\",TD!$A$38))","v":0},null,null,{"$f":"SUM(GETPIVOTDATA(\"Suma de Infl_am\",TD!$A$38))","v":0}]
[null,"Vacunación Diftotetánica (dT) (Incluye varones y gestantes) 90714",null,null,null,null,null,null,null,null,null,null,null,null,null,null,null,null,null,null,null,"1º Dosis",null,null,null,null,{"$f":"SUM(GETPIVOTDATA(\"Suma de DT1_n\",TD!$A$38))","v":0},null,null,{"$f":"SUM(GETPIVOTDATA(\"Suma de DT1_ad\",TD!$A$38))","v":0},null,null,{"$f":"SUM(GETPIVOTDATA(\"Suma de DT1_j\",TD!$A$38))","v":0},null,null,{"$f":"SUM(GETPIVOTDATA(\"Suma de DT1_a\",TD!$A$38))","v":0},null,null,{"$f":"SUM(GETPIVOTDATA(\"Suma de DT1_am\",TD!$A$38))","v":0}]
[null,null,null,null,null,null,null,null,null,null,null,null,null,null,null,null,null,null,null,null,null,"2º Dosis",null,null,null,null,{"$f":"SUM(GETPIVOTDATA(\"Suma de DT2_n\",TD!$A$38))","v":0},null,null,{"$f":"SUM(GETPIVOTDATA(\"Suma de DT2_ad\",TD!$A$38))","v":0},null,null,{"$f":"SUM(GETPIVOTDATA(\"Suma de DT2_j\",TD!$A$38))","v":0},null,null,{"$f":"SUM(GETPIVOTDATA(\"Suma de DT2_a\",TD!$A$38))","v":0},null,null,{"$f":"SUM(GETPIVOTDATA(\"Suma de DT2_am\",TD!$A$38))","v":0}]
[null,null,null,null,null,null,null,null,null,null,null,null,null,null,null,null,null,null,null,null,null,"3º Dosis",null,null,null,null,{"$f":"SUM(GETPIVOTDATA(\"Suma de DT3_n\",TD!$A$38))","v":0},null,null,{"$f":"SUM(GETPIVOTDATA(\"Suma de DT3_ad\",TD!$A$38))","v":0},null,null,{"$f":"SUM(GETPIVOTDATA(\"Suma de DT3_j\",TD!$A$38))","v":0},null,null,{"$f":"SUM(GETPIVOTDATA(\"Suma de DT3_a\",TD!$A$38))","v":0},null,null,{"$f":"SUM(GETPIVOTDATA(\"Suma de DT3_am\",TD!$A$38))","v":0}]
[null,"Vacuna contra Virus de Papiloma Humano",null,null,null,null,null,null,null,null,null,null,null,null,null,null,null,null,null,null,null,"1º Dosis",null,null,null,null,{"$f":"SUM(GETPIVOTDATA(\"Suma de PaHu1_n\",TD!$A$38))","v":0},null,null,{"$f":"SUM(GETPIVOTDATA(\"Suma de PaHu1_ad\",TD!$A$38))","v":0},null,null,{"$f":"SUM(GETPIVOTDATA(\"Suma de PaHu1_j\",TD!$A$38))","v":0},null,null,{"$f":"SUM(GETPIVOTDATA(\"Suma de PaHu1_a\",TD!$A$38))","v":0},null,null,{"$f":"SUM(GETPIVOTDATA(\"Suma de PaHu1_am\",TD!$A$38))","v":0}]
[null,null,null,null,null,null,null,null,null,null,null,null,null,null,null,null,null,null,null,null,null,"2º Dosis",null,null,null,null,{"$f":"SUM(GETPIVOTDATA(\"Suma de PaHu2_n\",TD!$A$38))","v":0},null,null,{"$f":"SUM(GETPIVOTDATA(\"Suma de PaHu2_ad\",TD!$A$38))","v":0},null,null,{"$f":"SUM(GETPIVOTDATA(\"Suma de PaHu2_j\",TD!$A$38))","v":0},null,null,{"$f":"SUM(GETPIVOTDATA(\"Suma de PaHu2_a\",TD!$A$38))","v":0},null,null,{"$f":"SUM(GETPIVOTDATA(\"Suma de PaHu2_am\",TD!$A$38))","v":0}]
[null,"Vacuna Antiamarilica 90717",null,null,null,null,null,null,null,null,null,null,null,null,null,null,null,null,null,null,null,null,null,null,null,null,{"$f":"SUM(GETPIVOTDATA(\"Suma de Amar_n\",TD!$A$38))","v":0},null,null,{"$f":"SUM(GETPIVOTDATA(\"Suma de Amar_ad\",TD!$A$38))","v":0},null,null,{"$f":"SUM(GETPIVOTDATA(\"Suma de Amar_j\",TD!$A$38))","v":0},null,null,{"$f":"SUM(GETPIVOTDATA(\"Suma de Amar_a\",TD!$A$38))","v":0},null,null,{"$f":"SUM(GETPIVOTDATA(\"Suma de Amar_am\",TD!$A$38))","v":0}]
[]
[null,"EVALUACION CLINICA",null,null,null,null,null,null,null,null,null,null,null,null,null,null,null,null,null,null,null,null,null,null,null,null,"CURSO DE VIDA"]
[null,null,null,null,null,null,null,null,null,null,null,null,null,null,null,null,null,null,null,null,null,null,null,null,null,null,"00a-11a",null,null,"12a-17a",null,null,"18a-29a",null,null,"30a-59a",null,null,"60a+"]
[null,"Anemia por Deficiencia de Hierro sin Especificación",null,null,null,null,null,null,null,null,null,null,null,null,null,null,null,null,null,null,null,null,null,null,null,null,{"$f":"SUM(GETPIVOTDATA(\"Suma de ADeH_n\",TD!$A$38))","v":0},null,null,{"$f":"SUM(GETPIVOTDATA(\"Suma de ADeH_ad\",TD!$A$38))","v":1},null,null,{"$f":"SUM(GETPIVOTDATA(\"Suma de ADeH_j\",TD!$A$38))","v":0},null,null,{"$f":"SUM(GETPIVOTDATA(\"Suma de ADeH_a\",TD!$A$38))","v":0},null,null,{"$f":"SUM(GETPIVOTDATA(\"Suma de ADeH_am\",TD!$A$38))","v":0}]
[null,"Anemia que afecta al Embarazo, Parto o Puerperio",null,null,null,null,null,null,null,null,null,null,null,null,null,null,null,null,null,null,null,null,null,null,null,null,{"$f":"SUM(GETPIVOTDATA(\"Suma de ADeH_g_n\",TD!$A$38))","v":0},null,null,{"$f":"SUM(GETPIVOTDATA(\"Suma de ADeH_g_ad\",TD!$A$38))","v":0},null,null,{"$f":"SUM(GETPIVOTDATA(\"Suma de ADeH_g_j\",TD!$A$38))","v":0},null,null,{"$f":"SUM(GETPIVOTDATA(\"Suma de ADeH_g_a\",TD!$A$38))","v":0},null,null,{"$f":"SUM(GETPIVOTDATA(\"Suma de ADeH_g_am\",TD!$A$38))","v":0}]
[null,"Administración de Tratamiento (Anemia)",null,null,null,null,null,null,null,null,null,null,null,null,null,null,null,null,null,null,null,null,null,null,null,null,{"$f":"SUM(GETPIVOTDATA(\"Suma de ttoA_n\",TD!$A$38))","v":0},null,null,{"$f":"SUM(GETPIVOTDATA(\"Suma de ttoA_ad\",TD!$A$38))","v":0},null,null,{"$f":"SUM(GETPIVOTDATA(\"Suma de ttoA_j\",TD!$A$38))","v":0},null,null,{"$f":"SUM(GETPIVOTDATA(\"Suma de ttoA_a\",TD!$A$38))","v":0},null,null,{"$f":"SUM(GETPIVOTDATA(\"Suma de ttoA_am\",TD!$A$38))","v":0}]
[null,"Asma No Especificada",null,null,null,null,null,null,null,null,null,null,null,null,null,null,null,null,null,null,null,null,null,null,null,null,{"$f":"SUM(GETPIVOTDATA(\"Suma de Asma_n\",TD!$A$38))","v":0},null,null,{"$f":"SUM(GETPIVOTDATA(\"Suma de Asma_ad\",TD!$A$38))","v":0},null,null,{"$f":"SUM(GETPIVOTDATA(\"Suma de Asma_j\",TD!$A$38))","v":0},null,null,{"$f":"SUM(GETPIVOTDATA(\"Suma de Asma_a\",TD!$A$38))","v":0},null,null,{"$f":"SUM(GETPIVOTDATA(\"Suma de Asma_am\",TD!$A$38))","v":0}]
[null,"Hipertensión Esencial Primaria (Hipertensión Arterial)",null,null,null,null,null,null,null,null,null,null,null,null,null,null,null,null,null,null,null,null,null,null,null,null,{"$f":"SUM(GETPIVOTDATA(\"Suma de Hiper_n\",TD!$A$38))","v":0},null,null,{"$f":"SUM(GETPIVOTDATA(\"Suma de Hiper_ad\",TD!$A$38))","v":0},null,null,{"$f":"SUM(GETPIVOTDATA(\"Suma de Hiper_j\",TD!$A$38))","v":0},null,null,{"$f":"SUM(GETPIVOTDATA(\"Suma de Hiper_a\",TD!$A$38))","v":0},null,null,{"$f":"SUM(GETPIVOTDATA(\"Suma de Hiper_am\",TD!$A$38))","v":0}]
[null,"Cefalea",null,null,null,null,null,null,null,null,null,null,null,null,null,null,null,null,null,null,null,null,null,null,null,null,{"$f":"SUM(GETPIVOTDATA(\"Suma de Cefal_n\",TD!$A$38))","v":0},null,null,{"$f":"SUM(GETPIVOTDATA(\"Suma de Cefal_ad\",TD!$A$38))","v":0},null,null,{"$f":"SUM(GETPIVOTDATA(\"Suma de Cefal_j\",TD!$A$38))","v":0},null,null,{"$f":"SUM(GETPIVOTDATA(\"Suma de Cefal_a\",TD!$A$38))","v":0},null,null,{"$f":"SUM(GETPIVOTDATA(\"Suma de Cefal_am\",TD!$A$38))","v":0}]
[null," Masa No Especificada en la Mama",null,null,null,null,null,null,null,null,null,null,null,null,null,null,null,null,null,null,null,null,null,null,null,null,{"$f":"SUM(GETPIVOTDATA(\"Suma de MasaM_n\",TD!$A$38))","v":0},null,null,{"$f":"SUM(GETPIVOTDATA(\"Suma de MasaM_ad\",TD!$A$38))","v":0},null,null,{"$f":"SUM(GETPIVOTDATA(\"Suma de MasaM_j\",TD!$A$38))","v":0},null,null,{"$f":"SUM(GETPIVOTDATA(\"Suma de MasaM_a\",TD!$A$38))","v":0},null,null,{"$f":"SUM(GETPIVOTDATA(\"Suma de MasaM_am\",TD!$A$38))","v":0}]
[null,"SALUD MENTAL",null,null,null,null,null,null,null,null,null,null,null,null,null,null,null,null,null,null,null,null,null,null,null,null,"CURSO DE VIDA"]
[null,null,null,null,null,null,null,null,null,null,null,null,null,null,null,null,null,null,null,null,null,null,null,null,null,null,"00a-11a",null,null,"12a-17a",null,null,"18a-29a",null,null,"30a-59a",null,null,"60a+"]
[null,"Entrevista de Tamizaje",null,null,null,null,null,null,null,null,null,null,null,null,null,null,null,null,null,null,null,null,null,null,null,null,{"$f":"SUM(GETPIVOTDATA(\"Suma de Tami_n\",TD!$A$38))","v":0},null,null,{"$f":"SUM(GETPIVOTDATA(\"Suma de Tami_ad\",TD!$A$38))","v":0},null,null,{"$f":"SUM(GETPIVOTDATA(\"Suma de Tami_j\",TD!$A$38))","v":0},null,null,{"$f":"SUM(GETPIVOTDATA(\"Suma de Tami_a\",TD!$A$38))","v":0},null,null,{"$f":"SUM(GETPIVOTDATA(\"Suma de Tami_am\",TD!$A$38))","v":0}]
[null,"Trastorno de ansiedad, no Especificado",null,null,null,null,null,null,null,null,null,null,null,null,null,null,null,null,null,null,null,null,null,null,null,null,{"$f":"SUM(GETPIVOTDATA(\"Suma de Ansi_n\",TD!$A$38))","v":0},null,null,{"$f":"SUM(GETPIVOTDATA(\"Suma de Ansi_ad\",TD!$A$38))","v":0},null,null,{"$f":"SUM(GETPIVOTDATA(\"Suma de Ansi_j\",TD!$A$38))","v":0},null,null,{"$f":"SUM(GETPIVOTDATA(\"Suma de Ansi_a\",TD!$A$38))","v":0},null,null,{"$f":"SUM(GETPIVOTDATA(\"Suma de Ansi_am\",TD!$A$38))","v":0}]
[null,"Problemas Relacionados con el Bajo Rendimiento Escolar",null,null,null,null,null,null,null,null,null,null,null,null,null,null,null,null,null,null,null,null,null,null,null,null,{"$f":"SUM(GETPIVOTDATA(\"Suma de ReEs_n\",TD!$A$38))","v":0},null,null,{"$f":"SUM(GETPIVOTDATA(\"Suma de ReEs_ad\",TD!$A$38))","v":0},null,null,{"$f":"SUM(GETPIVOTDATA(\"Suma de ReEs_j\",TD!$A$38))","v":0},null,null,{"$f":"SUM(GETPIVOTDATA(\"Suma de ReEs_a\",TD!$A$38))","v":0},null,null,{"$f":"SUM(GETPIVOTDATA(\"Suma de ReEs_am\",TD!$A$38))","v":0}]
[null,"TOTAL TAMIZAJES"]
[null,"VIOLENCIA FAMILIAR / MALTRATO INFANTIL ",null,null,null,null,null,null,null,null,null,null,null,null,null,null,null,null,null,null,null,null,null,null,null,null,{"$f":"SUM(GETPIVOTDATA(\"Suma de TamVIF_n\",TD!$A$38))","v":0},null,null,{"$f":"SUM(GETPIVOTDATA(\"Suma de TamVIF_ad\",TD!$A$38))","v":0},null,null,{"$f":"SUM(GETPIVOTDATA(\"Suma de TamVIF_j\",TD!$A$38))","v":0},null,null,{"$f":"SUM(GETPIVOTDATA(\"Suma de TamVIF_a\",TD!$A$38))","v":0},null,null,{"$f":"SUM(GETPIVOTDATA(\"Suma de TamVIF_am\",TD!$A$38))","v":0}]
[null,"TRASTORNO DEPRESIVO",null,null,null,null,null,null,null,null,null,null,null,null,null,null,null,null,null,null,null,null,null,null,null,null,{"$f":"SUM(GETPIVOTDATA(\"Suma de TamTD_n\",TD!$A$38))","v":0},null,null,{"$f":"SUM(GETPIVOTDATA(\"Suma de TamTD_ad\",TD!$A$38))","v":0},null,null,{"$f":"SUM(GETPIVOTDATA(\"Suma de TamTD_j\",TD!$A$38))","v":0},null,null,{"$f":"SUM(GETPIVOTDATA(\"Suma de TamTD_a\",TD!$A$38))","v":0},null,null,{"$f":"SUM(GETPIVOTDATA(\"Suma de TamTD_am\",TD!$A$38))","v":0}]
[null,"ALCOHOL Y DROGAS",null,null,null,null,null,null,null,null,null,null,null,null,null,null,null,null,null,null,null,null,null,null,null,null,{"$f":"SUM(GETPIVOTDATA(\"Suma de TamAD_n\",TD!$A$38))","v":0},null,null,{"$f":"SUM(GETPIVOTDATA(\"Suma de TamAD_ad\",TD!$A$38))","v":0},null,null,{"$f":"SUM(GETPIVOTDATA(\"Suma de TamAD_j\",TD!$A$38))","v":0},null,null,{"$f":"SUM(GETPIVOTDATA(\"Suma de TamAD_a\",TD!$A$38))","v":0},null,null,{"$f":"SUM(GETPIVOTDATA(\"Suma de TamAD_am\",TD!$A$38))","v":0}]
[null,"PSICOSIS",null,null,null,null,null,null,null,null,null,null,null,null,null,null,null,null,null,null,null,null,null,null,null,null,{"$f":"SUM(GETPIVOTDATA(\"Suma de TamEP_n\",TD!$A$38))","v":0},null,null,{"$f":"SUM(GETPIVOTDATA(\"Suma de TamEP_ad\",TD!$A$38))","v":0},null,null,{"$f":"SUM(GETPIVOTDATA(\"Suma de TamEP_j\",TD!$A$38))","v":0},null,null,{"$f":"SUM(GETPIVOTDATA(\"Suma de TamEP_a\",TD!$A$38))","v":0},null,null,{"$f":"SUM(GETPIVOTDATA(\"Suma de TamEP_am\",TD!$A$38))","v":0}]
[null,"PROBLEMAS DEL NEURODESARROLLO EN NIÑAS Y NIÑOS DE 0 A 3 AÑOS",null,null,null,null,null,null,null,null,null,null,null,null,null,null,null,null,null,null,null,null,null,null,null,null,{"$f":"SUM(GETPIVOTDATA(\"Suma de TamPND_n\",TD!$A$64))","v":0}]
[null,"TRASTORNOS MENTALES Y DEL COMPORTAMIENTO DE NIÑOS, NIÑAS Y ADOLESCENTES DE 3 DE 17 AÑOS",null,null,null,null,null,null,null,null,null,null,null,null,null,null,null,null,null,null,null,null,null,null,null,null,{"$f":"SUM(GETPIVOTDATA(\"Suma de TamMC_n\",TD!$A$64))","v":0},null,null,{"$f":"SUM(GETPIVOTDATA(\"Suma de TamMC_ad\",TD!$A$64))","v":0}]
[null,"SOLO TAMIZAJES POSITIVOS"]
[null,"VIOLENCIA FAMILIAR / MALTRATO INFANTIL ",null,null,null,null,null,null,null,null,null,null,null,null,null,null,null,null,null,null,null,null,null,null,null,null,{"$f":"SUM(GETPIVOTDATA(\"Suma de VIFPOS_n\",TD!$A$64))","v":0},null,null,{"$f":"SUM(GETPIVOTDATA(\"Suma de VIFPOS_ad\",TD!$A$64))","v":0},null,null,{"$f":"SUM(GETPIVOTDATA(\"Suma de VIFPOS_j\",TD!$A$64))","v":0},null,null,{"$f":"SUM(GETPIVOTDATA(\"Suma de VIFPOS_a\",TD!$A$64))","v":0},null,null,{"$f":"SUM(GETPIVOTDATA(\"Suma de VIFPOS_am\",TD!$A$64))","v":0}]
[null,"TRASTORNO DEPRESIVO",null,null,null,null,null,null,null,null,null,null,null,null,null,null,null,null,null,null,null,null,null,null,null,null,{"$f":"SUM(GETPIVOTDATA(\"Suma de TDPOS_n\",TD!$A$64))","v":0},null,null,{"$f":"SUM(GETPIVOTDATA(\"Suma de TDPOS_ad\",TD!$A$64))","v":0},null,null,{"$f":"SUM(GETPIVOTDATA(\"Suma de TDPOS_j\",TD!$A$64))","v":0},null,null,{"$f":"SUM(GETPIVOTDATA(\"Suma de TDPOS_a\",TD!$A$64))","v":0},null,null,{"$f":"SUM(GETPIVOTDATA(\"Suma de TDPOS_am\",TD!$A$64))","v":0}]
[null,"TRASTORNO DE CONSUMO DE ALCOHOL",null,null,null,null,null,null,null,null,null,null,null,null,null,null,null,null,null,null,null,null,null,null,null,null,{"$f":"SUM(GETPIVOTDATA(\"Suma de ADPOS_n\",TD!$A$64))","v":0},null,null,{"$f":"SUM(GETPIVOTDATA(\"Suma de ADPOS_ad\",TD!$A$64))","v":0},null,null,{"$f":"SUM(GETPIVOTDATA(\"Suma de ADPOS_j\",TD!$A$64))","v":0},null,null,{"$f":"SUM(GETPIVOTDATA(\"Suma de ADPOS_a\",TD!$A$64))","v":0},null,null,{"$f":"SUM(GETPIVOTDATA(\"Suma de ADPOS_am\",TD!$A$64))","v":0}]
[null,"TRASTORNO DE CONSUMO DE TABACO",null,null,null,null,null,null,null,null,null,null,null,null,null,null,null,null,null,null,null,null,null,null,null,null,{"$f":"SUM(GETPIVOTDATA(\"Suma de TAPOS_n\",TD!$A$90))","v":0},null,null,{"$f":"SUM(GETPIVOTDATA(\"Suma de TAPOS_ad\",TD!$A$90))","v":0},null,null,{"$f":"SUM(GETPIVOTDATA(\"Suma de TAPOS_j\",TD!$A$90))","v":0},null,null,{"$f":"SUM(GETPIVOTDATA(\"Suma de TAPOS_a\",TD!$A$90))","v":0},null,null,{"$f":"SUM(GETPIVOTDATA(\"Suma de TAPOS_am\",TD!$A$90))","v":0}]
[null,"TRASTORNO DE CONSUMO DE DROGAS",null,null,null,null,null,null,null,null,null,null,null,null,null,null,null,null,null,null,null,null,null,null,null,null,{"$f":"SUM(GETPIVOTDATA(\"Suma de CDPOS_n\",TD!$A$90))","v":0},null,null,{"$f":"SUM(GETPIVOTDATA(\"Suma de CDPOS_ad\",TD!$A$90))","v":0},null,null,{"$f":"SUM(GETPIVOTDATA(\"Suma de CDPOS_j\",TD!$A$90))","v":0},null,null,{"$f":"SUM(GETPIVOTDATA(\"Suma de CDPOS_a\",TD!$A$90))","v":0},null,null,{"$f":"SUM(GETPIVOTDATA(\"Suma de CDPOS_am\",TD!$A$90))","v":0}]
[null,"SINDROME Y/O TRASTORNO PSICÓTICO ",null,null,null,null,null,null,null,null,null,null,null,null,null,null,null,null,null,null,null,null,null,null,null,null,{"$f":"SUM(GETPIVOTDATA(\"Suma de EPPOS_n\",TD!$A$64))","v":0},null,null,{"$f":"SUM(GETPIVOTDATA(\"Suma de EPPOS_ad\",TD!$A$64))","v":0},null,null,{"$f":"SUM(GETPIVOTDATA(\"Suma de EPPOS_j\",TD!$A$64))","v":0},null,null,{"$f":"SUM(GETPIVOTDATA(\"Suma de EPPOS_a\",TD!$A$64))","v":0},null,null,{"$f":"SUM(GETPIVOTDATA(\"Suma de EPPOS_am\",TD!$A$64))","v":0}]
[null,"PROBLEMAS DEL NEURODESARROLLO EN NIÑAS Y NIÑOS DE 0 A 3 AÑOS",null,null,null,null,null,null,null,null,null,null,null,null,null,null,null,null,null,null,null,null,null,null,null,null,{"$f":"SUM(GETPIVOTDATA(\"Suma de PNDPOS_n\",TD!$A$64))","v":0}]
[null,"TRASTORNOS MENTALES Y DEL COMPORTAMIENTO DE NIÑOS, NIÑAS Y ADOLESCENTES DE 3 DE 17 AÑOS",null,null,null,null,null,null,null,null,null,null,null,null,null,null,null,null,null,null,null,null,null,null,null,null,{"$f":"SUM(GETPIVOTDATA(\"Suma de MCPOS_n\",TD!$A$64))","v":0},null,null,{"$f":"SUM(GETPIVOTDATA(\"Suma de MCPOS_ad\",TD!$A$64))","v":0}]
[]
[null,"TAMIZAJE TRASTORNOS MENTALES Y DEL COMPORTAMIENTO EN NIÑAS, NIÑOS Y ADOLESCENTES",null,null,null,null,null,null,null,null,null,null,null,null,null,null,null,null,null,null,null,null,null,null,null,null,"CURSO DE VIDA"]
[null,null,null,null,null,null,null,null,null,null,null,null,null,null,null,null,null,null,null,null,null,null,null,null,null,null,"3a-11a",null,null,null,"12a-17a"]
[null,null,null,null,null,null,null,null,null,null,null,null,null,null,null,null,null,null,null,null,null,null,null,null,null,null,"F",null,"M",null,"F",null,"M"]
[null,"Problemas emocionales",null,null,null,null,null,null,null,null,null,null,null,null,null,null,null,null,null,null,null,null,null,null,null,null,{"$f":"SUM(GETPIVOTDATA(\"Suma de PEmo1_F_n\",TD!$A$64))","v":0},null,{"$f":"SUM(GETPIVOTDATA(\"Suma de PEmo1_M_n\",TD!$A$64))","v":0},null,{"$f":"SUM(GETPIVOTDATA(\"Suma de PEmo2_F_n\",TD!$A$64))","v":0},null,{"$f":"SUM(GETPIVOTDATA(\"Suma de PEmo2_M_n\",TD!$A$64))","v":0}]
[null,"Problemas de atención",null,null,null,null,null,null,null,null,null,null,null,null,null,null,null,null,null,null,null,null,null,null,null,null,{"$f":"SUM(GETPIVOTDATA(\"Suma de Patc1_F_n\",TD!$A$64))","v":0},null,{"$f":"SUM(GETPIVOTDATA(\"Suma de Patc1_M_n\",TD!$A$64))","v":0},null,{"$f":"SUM(GETPIVOTDATA(\"Suma de Patc2_F_n\",TD!$A$64))","v":0},null,{"$f":"SUM(GETPIVOTDATA(\"Suma de Patc2_M_n\",TD!$A$64))","v":0}]
[null,"Problemas de  conducta.",null,null,null,null,null,null,null,null,null,null,null,null,null,null,null,null,null,null,null,null,null,null,null,null,{"$f":"SUM(GETPIVOTDATA(\"Suma de Pcon1_F_n\",TD!$A$64))","v":0},null,{"$f":"SUM(GETPIVOTDATA(\"Suma de Pcon1_M_n\",TD!$A$64))","v":0},null,{"$f":"SUM(GETPIVOTDATA(\"Suma de Pcon2_F_n\",TD!$A$64))","v":0},null,{"$f":"SUM(GETPIVOTDATA(\"Suma de Pcon2_M_n\",TD!$A$64))","v":0}]
[]
[null,"PERSONAS CON TRASTORNOS MENTALES Y PROBLEMAS PSICOSOCIALES: ATENDIDOS Y ATENCIONES",null,null,null,null,null,null,null,null,null,null,null,null,null,null,null,null,null,null,null,null,null,null,null,null,"CURSO DE VIDA"]
[null,null,null,null,null,null,null,null,null,null,null,null,null,null,null,null,null,null,null,null,null,null,null,null,null,null,"00a-11a",null,null,"12a-17a",null,null,"18a-29a",null,null,"30a-59a",null,null,"60a+"]
[null,null,null,null,null,null,null,null,null,null,null,null,null,null,null,null,null,null,null,null,null,null,null,null,null,null,"F","M",null,"F","M",null,"F","M",null,"F","M",null,"F","M"]
[null,"TRASTORNO DEL ESPECTRO AUTISTA",null,null,null,null,null,null,null,null,null,null,null,null,null,null,null,null,null,null,null,null,null,null,null,null,{"$f":"SUM(GETPIVOTDATA(\"Suma de EAut_F_n\",TD!$A$64))","v":0},{"$f":"SUM(GETPIVOTDATA(\"Suma de EAut_M_n\",TD!$A$64))","v":0},null,{"$f":"SUM(GETPIVOTDATA(\"Suma de EAut_F_ad\",TD!$A$64))","v":0},{"$f":"SUM(GETPIVOTDATA(\"Suma de EAut_M_ad\",TD!$A$64))","v":0},null,{"$f":"SUM(GETPIVOTDATA(\"Suma de EAut_F_j\",TD!$A$64))","v":0},{"$f":"SUM(GETPIVOTDATA(\"Suma de EAut_M_j\",TD!$A$64))","v":0},null,{"$f":"SUM(GETPIVOTDATA(\"Suma de EAut_F_a\",TD!$A$64))","v":0},{"$f":"SUM(GETPIVOTDATA(\"Suma de EAut_M_a\",TD!$A$64))","v":0},null,{"$f":"SUM(GETPIVOTDATA(\"Suma de EAut_F_am\",TD!$A$64))","v":0},{"$f":"SUM(GETPIVOTDATA(\"Suma de EAut_M_am\",TD!$A$64))","v":0}]
[null,"TRASTORNOS MENTALES Y DEL COMPORTAMIENTO DE o-17 años",null,null,null,null,null,null,null,null,null,null,null,null,null,null,null,null,null,null,null,null,null,null,null,null,{"$f":"SUM(GETPIVOTDATA(\"Suma de TMC_F_n\",TD!$A$64))","v":0},{"$f":"SUM(GETPIVOTDATA(\"Suma de TMC_M_n\",TD!$A$64))","v":0},null,{"$f":"SUM(GETPIVOTDATA(\"Suma de TMC_F_ad\",TD!$A$64))","v":0},{"$f":"SUM(GETPIVOTDATA(\"Suma de TMC_M_ad\",TD!$A$64))","v":0}]
[null,"TRASTORNO DEPRESIVO",null,null,null,null,null,null,null,null,null,null,null,null,null,null,null,null,null,null,null,null,null,null,null,null,{"$f":"SUM(GETPIVOTDATA(\"Suma de Tdep_F_n\",TD!$A$64))","v":0},{"$f":"SUM(GETPIVOTDATA(\"Suma de Tdep_M_n\",TD!$A$64))","v":0},null,{"$f":"SUM(GETPIVOTDATA(\"Suma de Tdep_F_ad\",TD!$A$64))","v":0},{"$f":"SUM(GETPIVOTDATA(\"Suma de Tdep_M_ad\",TD!$A$64))","v":0},null,{"$f":"SUM(GETPIVOTDATA(\"Suma de Tdep_F_j\",TD!$A$64))","v":0},{"$f":"SUM(GETPIVOTDATA(\"Suma de Tdep_M_j\",TD!$A$64))","v":0},null,{"$f":"SUM(GETPIVOTDATA(\"Suma de Tdep_F_a\",TD!$A$64))","v":0},{"$f":"SUM(GETPIVOTDATA(\"Suma de Tdep_M_a\",TD!$A$64))","v":0},null,{"$f":"SUM(GETPIVOTDATA(\"Suma de Tdep_F_am\",TD!$A$64))","v":0},{"$f":"SUM(GETPIVOTDATA(\"Suma de Tdep_M_am\",TD!$A$64))","v":0}]
[null,"DETERIORO COGNITIVO",null,null,null,null,null,null,null,null,null,null,null,null,null,null,null,null,null,null,null,null,null,null,null,null,{"$f":"SUM(GETPIVOTDATA(\"Suma de Dcog_F_n\",TD!$A$64))","v":0},{"$f":"SUM(GETPIVOTDATA(\"Suma de Dcog_M_n\",TD!$A$64))","v":0},null,{"$f":"SUM(GETPIVOTDATA(\"Suma de Dcog_F_ad\",TD!$A$64))","v":0},{"$f":"SUM(GETPIVOTDATA(\"Suma de Dcog_M_ad\",TD!$A$64))","v":0},null,{"$f":"SUM(GETPIVOTDATA(\"Suma de Dcog_F_j\",TD!$A$64))","v":0},{"$f":"SUM(GETPIVOTDATA(\"Suma de Dcog_M_j\",TD!$A$64))","v":0},null,{"$f":"SUM(GETPIVOTDATA(\"Suma de Dcog_F_a\",TD!$A$64))","v":0},{"$f":"SUM(GETPIVOTDATA(\"Suma de Dcog_M_a\",TD!$A$64))","v":0},null,{"$f":"SUM(GETPIVOTDATA(\"Suma de Dcog_F_am\",TD!$A$64))","v":0},{"$f":"SUM(GETPIVOTDATA(\"Suma de Dcog_M_am\",TD!$A$64))","v":0}]
[]
[null,"EVALUACIÓN INTEGRAL INTERDISCIPLINARIA (CSMC Y HOSPITALES)",null,null,null,null,null,null,null,null,null,null,null,null,null,null,null,null,null,null,null,null,null,null,null,null,"CURSO DE VIDA"]
[null,null,null,null,null,null,null,null,null,null,null,null,null,null,null,null,null,null,null,null,null,null,null,null,null,null,"00a-11a",null,null,"12a-17a",null,null,"18a-29a",null,null,"30a-59a",null,null,"60a+"]
[null,null,null,null,null,null,null,null,null,null,null,null,null,null,null,null,null,null,null,null,null,null,null,null,null,null,"F","M",null,"F","M",null,"F","M",null,"F","M",null,"F","M"]
[null,"DETERIORO COGNITIVO",null,null,null,null,null,null,null,null,null,null,null,null,null,null,null,null,null,null,null,null,null,null,null,null,{"$f":"SUM(GETPIVOTDATA(\"Suma de EI_DC_F_n\",TD!$A$64))","v":0},{"$f":"SUM(GETPIVOTDATA(\"Suma de EI_DC_M_n\",TD!$A$64))","v":0},null,{"$f":"SUM(GETPIVOTDATA(\"Suma de EI_DC_F_ad\",TD!$A$64))","v":0},{"$f":"SUM(GETPIVOTDATA(\"Suma de EI_DC_M_ad\",TD!$A$64))","v":0},null,{"$f":"SUM(GETPIVOTDATA(\"Suma de EI_DC_F_j\",TD!$A$64))","v":0},{"$f":"SUM(GETPIVOTDATA(\"Suma de EI_DC_M_j\",TD!$A$64))","v":0},null,{"$f":"SUM(GETPIVOTDATA(\"Suma de EI_DC_F_a\",TD!$A$64))","v":0},{"$f":"SUM(GETPIVOTDATA(\"Suma de EI_DC_M_a\",TD!$A$64))","v":0},null,{"$f":"SUM(GETPIVOTDATA(\"Suma de EI_DC_F_am\",TD!$A$64))","v":0},{"$f":"SUM(GETPIVOTDATA(\"Suma de EI_DC_M_am\",TD!$A$64))","v":0}]
[null,"ETAPA DE VIDA NIÑO",null,null,null,null,null,null,null,null,null,null,null,null,null,null,null,"Número de Controles"]
[null,"Grupo de Edad",null,null,null,null,null,null,null,null,null,null,null,null,null,null,null,"1°",null,"2°",null,"3°",null,"4°",null,"5°",null,"6°",null,"7°",null,"8°",null,"9°",null,"10°",null,"11°",null,"Total"]
[null,"CONTROL DE CRECIMIENTO Y DESARROLLO"]
[null,"De 1d - 7d",null,null,null,null,null,null,null,null,null,null,null,null,null,null,null,{"$f":"SUM(GETPIVOTDATA(\"Suma de Cred_7d_1\",TD!$A$64))","v":0},null,{"$f":"SUM(GETPIVOTDATA(\"Suma de Cred_7d_2\",TD!$A$64))","v":0},null,null,null,null,null,null,null,null,null,null,null,null,null,null,null,null,null,null,null,{"$f":"+R163+T163","v":0}]
[null,"De 8d - 14d",null,null,null,null,null,null,null,null,null,null,null,null,null,null,null,{"$f":"SUM(GETPIVOTDATA(\"Suma de Cred_ed_1\",TD!$A$64))","v":0},null,{"$f":"SUM(GETPIVOTDATA(\"Suma de Cred_ed_2\",TD!$A$64))","v":0},null,{"$f":"SUM(GETPIVOTDATA(\"Suma de Cred_ed_3\",TD!$A$64))","v":0},null,null,null,null,null,null,null,null,null,null,null,null,null,null,null,null,null,{"$f":"+R164+T164+V164","v":0}]
[null,"De 15d - 21d",null,null,null,null,null,null,null,null,null,null,null,null,null,null,null,{"$f":"SUM(GETPIVOTDATA(\"Suma de Cred_ld_1\",TD!$A$64))","v":0},null,{"$f":"SUM(GETPIVOTDATA(\"Suma de Cred_ld_2\",TD!$A$64))","v":0},null,{"$f":"SUM(GETPIVOTDATA(\"Suma de Cred_ld_3\",TD!$A$64))","v":0},null,{"$f":"SUM(GETPIVOTDATA(\"Suma de Cred_ld_4\",TD!$A$64))","v":0},null,null,null,null,null,null,null,null,null,null,null,null,null,null,null,{"$f":"+R165+T165+V165+X165","v":0}]
[null,"De 22d - +d",null,null,null,null,null,null,null,null,null,null,null,null,null,null,null,{"$f":"SUM(GETPIVOTDATA(\"Suma de Cred_sd_1\",TD!$A$64))","v":0},null,{"$f":"SUM(GETPIVOTDATA(\"Suma de Cred_sd_2\",TD!$A$64))","v":0},null,{"$f":"SUM(GETPIVOTDATA(\"Suma de Cred_sd_3\",TD!$A$64))","v":0},null,{"$f":"SUM(GETPIVOTDATA(\"Suma de Cred_sd_4\",TD!$A$64))","v":0},null,null,null,null,null,null,null,null,null,null,null,null,null,null,null,{"$f":"+R166+T166+V166+X166","v":0}]
[null,"29 días - 11 meses",null,null,null,null,null,null,null,null,null,null,null,null,null,null,null,{"$f":"SUM(GETPIVOTDATA(\"Suma de Cred_bm_1\",TD!$A$64))","v":0},null,{"$f":"SUM(GETPIVOTDATA(\"Suma de Cred_bm_2\",TD!$A$64))","v":0},null,{"$f":"SUM(GETPIVOTDATA(\"Suma de Cred_bm_3\",TD!$A$64))","v":0},null,{"$f":"SUM(GETPIVOTDATA(\"Suma de Cred_bm_4\",TD!$A$64))","v":0},null,{"$f":"SUM(GETPIVOTDATA(\"Suma de Cred_bm_5\",TD!$A$64))","v":0},null,{"$f":"SUM(GETPIVOTDATA(\"Suma de Cred_bm_6\",TD!$A$64))","v":0},null,{"$f":"SUM(GETPIVOTDATA(\"Suma de Cred_bm_7\",TD!$A$64))","v":0},null,{"$f":"SUM(GETPIVOTDATA(\"Suma de Cred_bm_8\",TD!$A$64))","v":0},null,{"$f":"SUM(GETPIVOTDATA(\"Suma de Cred_bm_9\",TD!$A$64))","v":0},null,{"$f":"SUM(GETPIVOTDATA(\"Suma de Cred_bm_a\",TD!$A$64))","v":0},null,{"$f":"SUM(GETPIVOTDATA(\"Suma de Cred_bm_b\",TD!$A$64))","v":0},null,{"$f":"+R167+T167+V167+X167+Z167+AB167+AD167+AF167+AH167+AJ167+AL167","v":0}]
[null,"01 año",null,null,null,null,null,null,null,null,null,null,null,null,null,null,null,{"$f":"SUM(GETPIVOTDATA(\"Suma de Cred_1a_1\",TD!$A$64))","v":0},null,{"$f":"SUM(GETPIVOTDATA(\"Suma de Cred_1a_2\",TD!$A$64))","v":0},null,{"$f":"SUM(GETPIVOTDATA(\"Suma de Cred_1a_3\",TD!$A$64))","v":0},null,{"$f":"SUM(GETPIVOTDATA(\"Suma de Cred_1a_4\",TD!$A$64))","v":0},null,{"$f":"SUM(GETPIVOTDATA(\"Suma de Cred_1a_5\",TD!$A$64))","v":0},null,{"$f":"SUM(GETPIVOTDATA(\"Suma de Cred_1a_6\",TD!$A$64))","v":0},null,null,null,null,null,null,null,null,null,null,null,{"$f":"+R168+T168+V168+X168+Z168+AB168","v":0}]
[null,"02 años",null,null,null,null,null,null,null,null,null,null,null,null,null,null,null,{"$f":"SUM(GETPIVOTDATA(\"Suma de Cred_2a_1\",TD!$A$64))","v":0},null,{"$f":"SUM(GETPIVOTDATA(\"Suma de Cred_2a_2\",TD!$A$64))","v":0},null,{"$f":"SUM(GETPIVOTDATA(\"Suma de Cred_2a_3\",TD!$A$64))","v":0},null,{"$f":"SUM(GETPIVOTDATA(\"Suma de Cred_2a_4\",TD!$A$64))","v":0},null,null,null,null,null,null,null,null,null,null,null,null,null,null,null,{"$f":"+R169+T169+V169+X169","v":0}]
[null,"03 años",null,null,null,null,null,null,null,null,null,null,null,null,null,null,null,{"$f":"SUM(GETPIVOTDATA(\"Suma de Cred_3a_1\",TD!$A$64))","v":0},null,{"$f":"SUM(GETPIVOTDATA(\"Suma de Cred_3a_2\",TD!$A$64))","v":0},null,{"$f":"SUM(GETPIVOTDATA(\"Suma de Cred_3a_3\",TD!$A$64))","v":0},null,{"$f":"SUM(GETPIVOTDATA(\"Suma de Cred_3a_4\",TD!$A$64))","v":0},null,null,null,null,null,null,null,null,null,null,null,null,null,null,null,{"$f":"+R170+T170+V170+X170","v":0}]
[null,"4 años",null,null,null,null,null,null,null,null,null,null,null,null,null,null,null,{"$f":"SUM(GETPIVOTDATA(\"Suma de Cred_4a_1\",TD!$A$64))","v":0},null,{"$f":"SUM(GETPIVOTDATA(\"Suma de Cred_4a_2\",TD!$A$64))","v":0},null,{"$f":"SUM(GETPIVOTDATA(\"Suma de Cred_4a_3\",TD!$A$64))","v":0},null,{"$f":"SUM(GETPIVOTDATA(\"Suma de Cred_4a_4\",TD!$A$64))","v":0},null,null,null,null,null,null,null,null,null,null,null,null,null,null,null,{"$f":"+R171+T171+V171+X171","v":0}]
[null,"5 años",null,null,null,null,null,null,null,null,null,null,null,null,null,null,null,{"$f":"SUM(GETPIVOTDATA(\"Suma de Cred_5a\",TD!$A$64))","v":0},null,null,null,null,null,null,null,null,null,null,null,null,null,null,null,null,null,null,null,null,null,{"$f":"+R172","v":0}]
[null,"6 años",null,null,null,null,null,null,null,null,null,null,null,null,null,null,null,{"$f":"SUM(GETPIVOTDATA(\"Suma de Cred_6a\",TD!$A$64))","v":0},null,null,null,null,null,null,null,null,null,null,null,null,null,null,null,null,null,null,null,null,null,0]
[null,"7 años",null,null,null,null,null,null,null,null,null,null,null,null,null,null,null,{"$f":"SUM(GETPIVOTDATA(\"Suma de Cred_7a\",TD!$A$64))","v":0},null,null,null,null,null,null,null,null,null,null,null,null,null,null,null,null,null,null,null,null,null,0]
[null,"8 años",null,null,null,null,null,null,null,null,null,null,null,null,null,null,null,{"$f":"SUM(GETPIVOTDATA(\"Suma de Cred_8a\",TD!$A$64))","v":0},null,null,null,null,null,null,null,null,null,null,null,null,null,null,null,null,null,null,null,null,null,0]
[null,"9 años",null,null,null,null,null,null,null,null,null,null,null,null,null,null,null,{"$f":"SUM(GETPIVOTDATA(\"Suma de Cred_9a\",TD!$A$64))","v":0},null,null,null,null,null,null,null,null,null,null,null,null,null,null,null,null,null,null,null,null,null,0]
[null,"10 años",null,null,null,null,null,null,null,null,null,null,null,null,null,null,null,{"$f":"SUM(GETPIVOTDATA(\"Suma de Cred_aa\",TD!$A$64))","v":0},null,null,null,null,null,null,null,null,null,null,null,null,null,null,null,null,null,null,null,null,null,0]
[null,"11 años",null,null,null,null,null,null,null,null,null,null,null,null,null,null,null,{"$f":"SUM(GETPIVOTDATA(\"Suma de Cred_ba\",TD!$A$64))","v":0},null,null,null,null,null,null,null,null,null,null,null,null,null,null,null,null,null,null,null,null,null,0]
[]
[]
[]
[]
[]
[]
[]
[null,"ETAPA DE VIDA NIÑO",null,null,null,null,null,null,null,null,null,null,null,null,null,null,null,"Número de Evaluaciones Antropométricas"]
[null,"Grupo de Edad",null,null,null,null,null,null,null,null,null,null,null,null,null,null,null,"1°",null,"2°",null,"3°",null,"4°",null,"5°",null,"6°",null,"7°",null,"8°",null,"9°",null,"10°",null,"11°",null,"Total"]
[null,"Evaluación del Estado Nutricional  Antropométricas (Por personal técnico)"]
[null,"De 1d - 7d",null,null,null,null,null,null,null,null,null,null,null,null,null,null,null,{"$f":"SUM(GETPIVOTDATA(\"Suma de Nutr_7d_1\",TD!$A$64))","v":0},null,{"$f":"SUM(GETPIVOTDATA(\"Suma de Nutr_7d_2\",TD!$A$64))","v":0},null,null,null,null,null,null,null,null,null,null,null,null,null,null,null,null,null,null,null,{"$f":"+R189+T189","v":0}]
[null,"De 8d - 14d",null,null,null,null,null,null,null,null,null,null,null,null,null,null,null,{"$f":"SUM(GETPIVOTDATA(\"Suma de Nutr_ed_1\",TD!$A$64))","v":0},null,{"$f":"SUM(GETPIVOTDATA(\"Suma de Nutr_ed_2\",TD!$A$64))","v":0},null,{"$f":"SUM(GETPIVOTDATA(\"Suma de Nutr_ed_3\",TD!$A$64))","v":0},null,null,null,null,null,null,null,null,null,null,null,null,null,null,null,null,null,{"$f":"+R190+T190+V190","v":0}]
[null,"De 15d - 21d",null,null,null,null,null,null,null,null,null,null,null,null,null,null,null,{"$f":"SUM(GETPIVOTDATA(\"Suma de Nutr_ld_1\",TD!$A$64))","v":0},null,{"$f":"SUM(GETPIVOTDATA(\"Suma de Nutr_ld_2\",TD!$A$64))","v":0},null,{"$f":"SUM(GETPIVOTDATA(\"Suma de Nutr_ld_3\",TD!$A$64))","v":0},null,{"$f":"SUM(GETPIVOTDATA(\"Suma de Nutr_ld_4\",TD!$A$64))","v":0},null,null,null,null,null,null,null,null,null,null,null,null,null,null,null,{"$f":"+R191+T191+V191+X191","v":0}]
[null,"De 22d - +d",null,null,null,null,null,null,null,null,null,null,null,null,null,null,null,{"$f":"SUM(GETPIVOTDATA(\"Suma de Nutr_sd_1\",TD!$A$64))","v":0},null,{"$f":"SUM(GETPIVOTDATA(\"Suma de Nutr_sd_2\",TD!$A$64))","v":0},null,{"$f":"SUM(GETPIVOTDATA(\"Suma de Nutr_sd_3\",TD!$A$64))","v":0},null,{"$f":"SUM(GETPIVOTDATA(\"Suma de Nutr_sd_4\",TD!$A$64))","v":0},null,null,null,null,null,null,null,null,null,null,null,null,null,null,null,{"$f":"+R192+T192+V192+X192","v":0}]
[null,"29 días - 11 meses",null,null,null,null,null,null,null,null,null,null,null,null,null,null,null,{"$f":"SUM(GETPIVOTDATA(\"Suma de Nutr_bm_1\",TD!$A$64))","v":0},null,{"$f":"SUM(GETPIVOTDATA(\"Suma de Nutr_bm_2\",TD!$A$64))","v":0},null,{"$f":"SUM(GETPIVOTDATA(\"Suma de Nutr_bm_3\",TD!$A$64))","v":0},null,{"$f":"SUM(GETPIVOTDATA(\"Suma de Nutr_bm_4\",TD!$A$64))","v":0},null,{"$f":"SUM(GETPIVOTDATA(\"Suma de Nutr_bm_5\",TD!$A$64))","v":0},null,{"$f":"SUM(GETPIVOTDATA(\"Suma de Nutr_bm_6\",TD!$A$64))","v":0},null,{"$f":"SUM(GETPIVOTDATA(\"Suma de Nutr_bm_7\",TD!$A$64))","v":0},null,{"$f":"SUM(GETPIVOTDATA(\"Suma de Nutr_bm_8\",TD!$A$64))","v":0},null,{"$f":"SUM(GETPIVOTDATA(\"Suma de Nutr_bm_9\",TD!$A$64))","v":0},null,{"$f":"SUM(GETPIVOTDATA(\"Suma de Nutr_bm_a\",TD!$A$64))","v":0},null,{"$f":"SUM(GETPIVOTDATA(\"Suma de Nutr_bm_b\",TD!$A$64))","v":0},null,{"$f":"+R193+T193+V193+X193+Z193+AB193+AD193+AF193+AH193+AJ193+AL193","v":0}]
[null,"01 año",null,null,null,null,null,null,null,null,null,null,null,null,null,null,null,{"$f":"SUM(GETPIVOTDATA(\"Suma de Nutr_1a_1\",TD!$A$64))","v":0},null,{"$f":"SUM(GETPIVOTDATA(\"Suma de Nutr_1a_2\",TD!$A$64))","v":0},null,{"$f":"SUM(GETPIVOTDATA(\"Suma de Nutr_1a_3\",TD!$A$64))","v":0},null,{"$f":"SUM(GETPIVOTDATA(\"Suma de Nutr_1a_4\",TD!$A$64))","v":0},null,{"$f":"SUM(GETPIVOTDATA(\"Suma de Nutr_1a_5\",TD!$A$64))","v":0},null,{"$f":"SUM(GETPIVOTDATA(\"Suma de Nutr_1a_6\",TD!$A$64))","v":0},null,null,null,null,null,null,null,null,null,null,null,{"$f":"+R194+T194+V194+X194+Z194+AB194","v":0}]
[null,"02 años",null,null,null,null,null,null,null,null,null,null,null,null,null,null,null,{"$f":"SUM(GETPIVOTDATA(\"Suma de Nutr_2a_1\",TD!$A$64))","v":0},null,{"$f":"SUM(GETPIVOTDATA(\"Suma de Nutr_2a_2\",TD!$A$64))","v":0},null,{"$f":"SUM(GETPIVOTDATA(\"Suma de Nutr_2a_3\",TD!$A$64))","v":0},null,{"$f":"SUM(GETPIVOTDATA(\"Suma de Nutr_2a_4\",TD!$A$64))","v":0},null,null,null,null,null,null,null,null,null,null,null,null,null,null,null,{"$f":"+R195+T195+V195+X195","v":0}]
[null,"03 años",null,null,null,null,null,null,null,null,null,null,null,null,null,null,null,{"$f":"SUM(GETPIVOTDATA(\"Suma de Nutr_3a_1\",TD!$A$64))","v":0},null,{"$f":"SUM(GETPIVOTDATA(\"Suma de Nutr_3a_2\",TD!$A$64))","v":0},null,{"$f":"SUM(GETPIVOTDATA(\"Suma de Nutr_3a_3\",TD!$A$64))","v":0},null,{"$f":"SUM(GETPIVOTDATA(\"Suma de Nutr_3a_4\",TD!$A$64))","v":0},null,null,null,null,null,null,null,null,null,null,null,null,null,null,null,{"$f":"+R196+T196+V196+X196","v":0}]
[null,"4 años",null,null,null,null,null,null,null,null,null,null,null,null,null,null,null,{"$f":"SUM(GETPIVOTDATA(\"Suma de Nutr_4a_1\",TD!$A$64))","v":0},null,{"$f":"SUM(GETPIVOTDATA(\"Suma de Nutr_4a_2\",TD!$A$64))","v":0},null,{"$f":"SUM(GETPIVOTDATA(\"Suma de Nutr_4a_3\",TD!$A$64))","v":0},null,{"$f":"SUM(GETPIVOTDATA(\"Suma de Nutr_4a_4\",TD!$A$64))","v":0},null,null,null,null,null,null,null,null,null,null,null,null,null,null,null,{"$f":"+R197+T197+V197+X197","v":0}]
[null,"5a - 11a",null,null,null,null,null,null,null,null,null,null,null,null,null,null,null,{"$f":"SUM(GETPIVOTDATA(\"Suma de Nutr_11a\",TD!$A$64))","v":0},null,null,null,null,null,null,null,null,null,null,null,null,null,null,null,null,null,null,null,null,null,{"$f":"+R198","v":0}]
[]
[null,"ETAPA DE VIDA NIÑO",null,null,null,null,null,null,null,null,null,null,null,null,null,null,null,"Ganancia Inadecuada de Peso o Talla"]
[null,null,null,null,null,null,null,null,null,null,null,null,null,null,null,null,null,"Peso",null,null,null,"Talla"]
[null,"Grupo de Edad",null,null,null,null,null,null,null,null,null,null,null,null,null,null,null,"Dx",null,"Recup",null,"Dx",null,"Recup"]
[null,"VIII. EVALUACION DEL ESTADO NUTRICIONAL ( 0d - 5a)"]
[null,"De 1d - 28d",null,null,null,null,null,null,null,null,null,null,null,null,null,null,null,{"$f":"SUM(GETPIVOTDATA(\"Suma de Pdx_sd\",TD!$A$64))","v":0},null,{"$f":"SUM(GETPIVOTDATA(\"Suma de Pre_sd\",TD!$A$64))","v":0},null,{"$f":"SUM(GETPIVOTDATA(\"Suma de Tdx_sd\",TD!$A$64))","v":0},null,{"$f":"SUM(GETPIVOTDATA(\"Suma de Tre_sd\",TD!$A$64))","v":0}]
[null,"De 29d - 11m",null,null,null,null,null,null,null,null,null,null,null,null,null,null,null,{"$f":"SUM(GETPIVOTDATA(\"Suma de Pdx_bm\",TD!$A$64))","v":0},null,{"$f":"SUM(GETPIVOTDATA(\"Suma de Pre_bm\",TD!$A$64))","v":0},null,{"$f":"SUM(GETPIVOTDATA(\"Suma de Tdx_bm\",TD!$A$64))","v":0},null,{"$f":"SUM(GETPIVOTDATA(\"Suma de Tre_bm\",TD!$A$64))","v":0}]
[null,"01 año",null,null,null,null,null,null,null,null,null,null,null,null,null,null,null,{"$f":"SUM(GETPIVOTDATA(\"Suma de Pdx_1a\",TD!$A$64))","v":0},null,{"$f":"SUM(GETPIVOTDATA(\"Suma de Pre_1a\",TD!$A$64))","v":0},null,{"$f":"SUM(GETPIVOTDATA(\"Suma de Tdx_1a\",TD!$A$64))","v":0},null,{"$f":"SUM(GETPIVOTDATA(\"Suma de Tre_1a\",TD!$A$64))","v":0}]
[null,"02 años",null,null,null,null,null,null,null,null,null,null,null,null,null,null,null,{"$f":"SUM(GETPIVOTDATA(\"Suma de Pdx_2a\",TD!$A$64))","v":0},null,{"$f":"SUM(GETPIVOTDATA(\"Suma de Pre_2a\",TD!$A$64))","v":0},null,{"$f":"SUM(GETPIVOTDATA(\"Suma de Tdx_2a\",TD!$A$64))","v":0},null,{"$f":"SUM(GETPIVOTDATA(\"Suma de Tre_2a\",TD!$A$64))","v":0}]
[null,"03 años",null,null,null,null,null,null,null,null,null,null,null,null,null,null,null,{"$f":"SUM(GETPIVOTDATA(\"Suma de Pdx_3a\",TD!$A$64))","v":0},null,{"$f":"SUM(GETPIVOTDATA(\"Suma de Pre_3a\",TD!$A$64))","v":0},null,{"$f":"SUM(GETPIVOTDATA(\"Suma de Tdx_3a\",TD!$A$64))","v":0},null,{"$f":"SUM(GETPIVOTDATA(\"Suma de Tre_3a\",TD!$A$64))","v":0}]
[null,"04 años",null,null,null,null,null,null,null,null,null,null,null,null,null,null,null,{"$f":"SUM(GETPIVOTDATA(\"Suma de Pdx_4a\",TD!$A$64))","v":0},null,{"$f":"SUM(GETPIVOTDATA(\"Suma de Pre_4a\",TD!$A$64))","v":0},null,{"$f":"SUM(GETPIVOTDATA(\"Suma de Tdx_4a\",TD!$A$64))","v":0},null,{"$f":"SUM(GETPIVOTDATA(\"Suma de Tre_4a\",TD!$A$64))","v":0}]
[]
[null,"ETAPA DE VIDA NIÑO",null,null,null,null,null,null,null,null,null,null,null,null,null,null,null,"Peso para la Edad (PE)",null,null,null,"Peso para la Edad (TP)",null,null,null,null,null,null,null,null,null,null,null,"Talla para la Edad (TE)"]
[null,null,null,null,null,null,null,null,null,null,null,null,null,null,null,null,null,"Desnutrición Global",null,null,null,"Obesidad",null,null,null,"Sobrepeso",null,null,null,"Desnutrición Aguda",null,null,null,"Desnutrición Cronica"]
[null,"Grupo de Edad",null,null,null,null,null,null,null,null,null,null,null,null,null,null,null,"Dx",null,"Recup",null,"Dx",null,"Recup",null,"Dx",null,"Recup",null,"Dx",null,"Recup",null,"Dx",null,"Recup"]
[null,"< 1 año",null,null,null,null,null,null,null,null,null,null,null,null,null,null,null,{"$f":"SUM(GETPIVOTDATA(\"Suma de DGDx_bm\",TD!$A$64))","v":0},null,{"$f":"SUM(GETPIVOTDATA(\"Suma de DGR_bm\",TD!$A$64))","v":0},null,{"$f":"SUM(GETPIVOTDATA(\"Suma de ODx_bm\",TD!$A$64))","v":0},null,{"$f":"SUM(GETPIVOTDATA(\"Suma de ORe_bm\",TD!$A$64))","v":0},null,{"$f":"SUM(GETPIVOTDATA(\"Suma de SDx_bm\",TD!$A$64))","v":0},null,{"$f":"SUM(GETPIVOTDATA(\"Suma de SRe_bm\",TD!$A$64))","v":0},null,{"$f":"SUM(GETPIVOTDATA(\"Suma de DADx_bm\",TD!$A$64))","v":0},null,{"$f":"SUM(GETPIVOTDATA(\"Suma de DAR_bm\",TD!$A$64))","v":0},null,{"$f":"SUM(GETPIVOTDATA(\"Suma de Dcdx_bm\",TD!$A$90))","v":0},null,{"$f":"SUM(GETPIVOTDATA(\"Suma de DCRE_bm\",TD!$A$90))","v":0}]
[null,"01 año",null,null,null,null,null,null,null,null,null,null,null,null,null,null,null,{"$f":"SUM(GETPIVOTDATA(\"Suma de DGDx_1a\",TD!$A$64))","v":0},null,{"$f":"SUM(GETPIVOTDATA(\"Suma de DGR_1a\",TD!$A$64))","v":0},null,{"$f":"SUM(GETPIVOTDATA(\"Suma de ODx_1a\",TD!$A$64))","v":0},null,{"$f":"SUM(GETPIVOTDATA(\"Suma de ORe_1a\",TD!$A$64))","v":0},null,{"$f":"SUM(GETPIVOTDATA(\"Suma de SDx_1a\",TD!$A$64))","v":0},null,{"$f":"SUM(GETPIVOTDATA(\"Suma de SRe_1a\",TD!$A$64))","v":0},null,{"$f":"SUM(GETPIVOTDATA(\"Suma de DADx_1a\",TD!$A$64))","v":0},null,{"$f":"SUM(GETPIVOTDATA(\"Suma de DAR_1a\",TD!$A$64))","v":0},null,{"$f":"SUM(GETPIVOTDATA(\"Suma de Dcdx_1a\",TD!$A$90))","v":0},null,{"$f":"SUM(GETPIVOTDATA(\"Suma de DCRE_1a\",TD!$A$90))","v":0}]
[null,"02 años",null,null,null,null,null,null,null,null,null,null,null,null,null,null,null,{"$f":"SUM(GETPIVOTDATA(\"Suma de DGDx_2a\",TD!$A$64))","v":0},null,{"$f":"SUM(GETPIVOTDATA(\"Suma de DGR_2a\",TD!$A$64))","v":0},null,{"$f":"SUM(GETPIVOTDATA(\"Suma de ODx_2a\",TD!$A$64))","v":0},null,{"$f":"SUM(GETPIVOTDATA(\"Suma de ORe_2a\",TD!$A$64))","v":0},null,{"$f":"SUM(GETPIVOTDATA(\"Suma de SDx_2a\",TD!$A$64))","v":0},null,{"$f":"SUM(GETPIVOTDATA(\"Suma de SRe_2a\",TD!$A$64))","v":0},null,{"$f":"SUM(GETPIVOTDATA(\"Suma de DADx_2a\",TD!$A$64))","v":0},null,{"$f":"SUM(GETPIVOTDATA(\"Suma de DAR_2a\",TD!$A$64))","v":0},null,{"$f":"SUM(GETPIVOTDATA(\"Suma de Dcdx_2a\",TD!$A$90))","v":0},null,{"$f":"SUM(GETPIVOTDATA(\"Suma de DCRE_2a\",TD!$A$90))","v":0}]
[null,"03 años",null,null,null,null,null,null,null,null,null,null,null,null,null,null,null,{"$f":"SUM(GETPIVOTDATA(\"Suma de DGDx_3a\",TD!$A$64))","v":0},null,{"$f":"SUM(GETPIVOTDATA(\"Suma de DGR_3a\",TD!$A$64))","v":0},null,{"$f":"SUM(GETPIVOTDATA(\"Suma de ODx_3a\",TD!$A$64))","v":0},null,{"$f":"SUM(GETPIVOTDATA(\"Suma de ORe_3a\",TD!$A$64))","v":0},null,{"$f":"SUM(GETPIVOTDATA(\"Suma de SDx_3a\",TD!$A$64))","v":0},null,{"$f":"SUM(GETPIVOTDATA(\"Suma de SRe_3a\",TD!$A$64))","v":0},null,{"$f":"SUM(GETPIVOTDATA(\"Suma de DADx_3a\",TD!$A$64))","v":0},null,{"$f":"SUM(GETPIVOTDATA(\"Suma de DAR_3a\",TD!$A$64))","v":0},null,{"$f":"SUM(GETPIVOTDATA(\"Suma de Dcdx_3a\",TD!$A$90))","v":0},null,{"$f":"SUM(GETPIVOTDATA(\"Suma de DCRE_3a\",TD!$A$90))","v":0}]
[null,"04 años",null,null,null,null,null,null,null,null,null,null,null,null,null,null,null,{"$f":"SUM(GETPIVOTDATA(\"Suma de DGDx_4a\",TD!$A$64))","v":0},null,{"$f":"SUM(GETPIVOTDATA(\"Suma de DGR_4a\",TD!$A$64))","v":0},null,{"$f":"SUM(GETPIVOTDATA(\"Suma de ODx_4a\",TD!$A$64))","v":0},null,{"$f":"SUM(GETPIVOTDATA(\"Suma de ORe_4a\",TD!$A$64))","v":0},null,{"$f":"SUM(GETPIVOTDATA(\"Suma de SDx_4a\",TD!$A$64))","v":0},null,{"$f":"SUM(GETPIVOTDATA(\"Suma de SRe_4a\",TD!$A$64))","v":0},null,{"$f":"SUM(GETPIVOTDATA(\"Suma de DADx_4a\",TD!$A$64))","v":0},null,{"$f":"SUM(GETPIVOTDATA(\"Suma de DAR_4a\",TD!$A$64))","v":0},null,{"$f":"SUM(GETPIVOTDATA(\"Suma de Dcdx_4a\",TD!$A$90))","v":0},null,{"$f":"SUM(GETPIVOTDATA(\"Suma de DCRE_4a\",TD!$A$90))","v":0}]
[]
[null,"ETAPA DE VIDA NIÑO",null,null,null,null,null,null,null,null,null,null,null,null,null,null,null,"Índice de Masa Corporal (IMC)",null,null,null,null,null,null,null,"Talla para la Edad (TE)"]
[null,null,null,null,null,null,null,null,null,null,null,null,null,null,null,null,null,"Obesidad",null,null,null,"Sobrepeso",null,null,null,"Alto"]
[null,"Grupo de Edad",null,null,null,null,null,null,null,null,null,null,null,null,null,null,null,"Dx",null,"Recup",null,"Dx",null,"Recup",null,"Dx",null,"Recup"]
[null," EVALUACION DEL ESTADO NUTRICIONAL ( 05a - 11a)"]
[null,"05a - 11a",null,null,null,null,null,null,null,null,null,null,null,null,null,null,null,{"$f":"SUM(GETPIVOTDATA(\"Suma de ODx_ba\",TD!$A$90))","v":0},null,{"$f":"SUM(GETPIVOTDATA(\"Suma de ORe_ba\",TD!$A$90))","v":0},null,{"$f":"SUM(GETPIVOTDATA(\"Suma de sDx_ba\",TD!$A$90))","v":0},null,{"$f":"SUM(GETPIVOTDATA(\"Suma de sRe_ba\",TD!$A$90))","v":0},null,{"$f":"SUM(GETPIVOTDATA(\"Suma de Sdx_ba\",TD!$A$90))","v":0},null,{"$f":"SUM(GETPIVOTDATA(\"Suma de Sre_ba\",TD!$A$90))","v":0}]
[]
[]
[]
[]
[]
[null,"ETAPA DE VIDA NIÑO",null,null,null,null,null,null,null,null,null,null,null,null,null,null,null,"Retardo del Desarrollo",null,null,null,null,null,null,null,null,null,null,null,null,null,null,null,null,null,null,null,"Normal"]
[null,null,null,null,null,null,null,null,null,null,null,null,null,null,null,null,null,"Lenguaje",null,null,null,"Motora",null,null,null,"Social",null,null,null,"Coordinación",null,null,null,"Cognitiva"]
[null,"Grupo de Edad",null,null,null,null,null,null,null,null,null,null,null,null,null,null,null,"Dx",null,"Recup",null,"Dx",null,"Recup",null,"Dx",null,"Recup",null,"Dx",null,"Recup",null,"Dx",null,"Recup"]
[null,"IX. EVALUACION DEL DESARROLLO (0d - 2a)"]
[null,"< 1 año",null,null,null,null,null,null,null,null,null,null,null,null,null,null,null,{"$f":"SUM(GETPIVOTDATA(\"Suma de Ledx_bm\",TD!$A$90))","v":0},null,{"$f":"SUM(GETPIVOTDATA(\"Suma de Lere_bm\",TD!$A$90))","v":0},null,{"$f":"SUM(GETPIVOTDATA(\"Suma de Modx_bm\",TD!$A$90))","v":0},null,{"$f":"SUM(GETPIVOTDATA(\"Suma de More_bm\",TD!$A$90))","v":0},null,{"$f":"SUM(GETPIVOTDATA(\"Suma de Sodx_bm\",TD!$A$90))","v":0},null,{"$f":"SUM(GETPIVOTDATA(\"Suma de Sore_bm\",TD!$A$90))","v":0},null,{"$f":"SUM(GETPIVOTDATA(\"Suma de Codx_bm\",TD!$A$90))","v":0},null,{"$f":"SUM(GETPIVOTDATA(\"Suma de Core_bm\",TD!$A$90))","v":0},null,{"$f":"SUM(GETPIVOTDATA(\"Suma de Cgdx_bm\",TD!$A$90))","v":0},null,{"$f":"SUM(GETPIVOTDATA(\"Suma de Cgre_bm\",TD!$A$90))","v":0},null,{"$f":"SUM(GETPIVOTDATA(\"Suma de Norm_bm\",TD!$A$90))","v":0}]
[null,"01 año",null,null,null,null,null,null,null,null,null,null,null,null,null,null,null,{"$f":"SUM(GETPIVOTDATA(\"Suma de Ledx_1a\",TD!$A$90))","v":0},null,{"$f":"SUM(GETPIVOTDATA(\"Suma de Lere_1a\",TD!$A$90))","v":0},null,{"$f":"SUM(GETPIVOTDATA(\"Suma de Modx_1a\",TD!$A$90))","v":0},null,{"$f":"SUM(GETPIVOTDATA(\"Suma de More_1a\",TD!$A$90))","v":0},null,{"$f":"SUM(GETPIVOTDATA(\"Suma de Sodx_1a\",TD!$A$90))","v":0},null,{"$f":"SUM(GETPIVOTDATA(\"Suma de Sore_1a\",TD!$A$90))","v":0},null,{"$f":"SUM(GETPIVOTDATA(\"Suma de Codx_1a\",TD!$A$90))","v":0},null,{"$f":"SUM(GETPIVOTDATA(\"Suma de Core_1a\",TD!$A$90))","v":0},null,{"$f":"SUM(GETPIVOTDATA(\"Suma de Cgdx_1a\",TD!$A$90))","v":0},null,{"$f":"SUM(GETPIVOTDATA(\"Suma de Cgre_1a\",TD!$A$90))","v":0},null,{"$f":"SUM(GETPIVOTDATA(\"Suma de Norm_1a\",TD!$A$90))","v":0}]
[null,"02 años",null,null,null,null,null,null,null,null,null,null,null,null,null,null,null,{"$f":"SUM(GETPIVOTDATA(\"Suma de Ledx_2a\",TD!$A$90))","v":0},null,{"$f":"SUM(GETPIVOTDATA(\"Suma de Lere_2a\",TD!$A$90))","v":0},null,{"$f":"SUM(GETPIVOTDATA(\"Suma de Modx_2a\",TD!$A$90))","v":0},null,{"$f":"SUM(GETPIVOTDATA(\"Suma de More_2a\",TD!$A$90))","v":0},null,{"$f":"SUM(GETPIVOTDATA(\"Suma de Sodx_2a\",TD!$A$90))","v":0},null,{"$f":"SUM(GETPIVOTDATA(\"Suma de Sore_2a\",TD!$A$90))","v":0},null,{"$f":"SUM(GETPIVOTDATA(\"Suma de Codx_2a\",TD!$A$90))","v":0},null,{"$f":"SUM(GETPIVOTDATA(\"Suma de Core_2a\",TD!$A$90))","v":0},null,{"$f":"SUM(GETPIVOTDATA(\"Suma de Cgdx_2a\",TD!$A$90))","v":0},null,{"$f":"SUM(GETPIVOTDATA(\"Suma de Cgre_2a\",TD!$A$90))","v":0},null,{"$f":"SUM(GETPIVOTDATA(\"Suma de Cgdx_2a\",TD!$A$90))","v":0}]
[]
[null,"CONTROL Y SEGUIMIENTO DE ADOLESCENTES ",null,null,null,null,null,null,null,null,null,null,null,null,null,null,null,null,null,null,null,null,null,null,null,null,"CURSO DE VIDA"]
[null,null,null,null,null,null,null,null,null,null,null,null,null,null,null,null,null,null,null,null,null,null,null,null,null,null,"Total",null,null,"12a-14a",null,null,"15a-17a"]
[null,"Entrevista de Tamizaje",null,null,null,null,null,null,null,null,null,null,null,null,null,null,null,null,null,null,null,null,"Iniciado",null,null,null,{"$f":"+AD240+AG240","v":0},null,null,{"$f":"SUM(GETPIVOTDATA(\"Suma de Pai_i_ea\",TD!$A$90))","v":0},null,null,{"$f":"SUM(GETPIVOTDATA(\"Suma de Pai_i_ha\",TD!$A$90))","v":0}]
[null,null,null,null,null,null,null,null,null,null,null,null,null,null,null,null,null,null,null,null,null,null,"Concluido",null,null,null,{"$f":"+AD241+AG241","v":0},null,null,{"$f":"SUM(GETPIVOTDATA(\"Suma de Pai_c_ea\",TD!$A$90))","v":0},null,null,{"$f":"SUM(GETPIVOTDATA(\"Suma de Pai_c_ha\",TD!$A$90))","v":0}]
[null,"Examen del estado de desarrollo del adolescente",null,null,null,null,null,null,null,null,null,null,null,null,null,null,null,null,null,null,null,null,null,null,null,null,0,null,null,{"$f":"SUM(GETPIVOTDATA(\"Suma de Eeda_ea\",TD!$A$90))","v":0},null,null,{"$f":"SUM(GETPIVOTDATA(\"Suma de Eeda_ha\",TD!$A$90))","v":0}]
[null,"Evaluación Integral del Adolescente ",null,null,null,null,null,null,null,null,null,null,null,null,null,null,null,null,null,null,null,null,"1° Control",null,null,null,0,null,null,{"$f":"SUM(GETPIVOTDATA(\"Suma de Eia1_ea\",TD!$A$90))","v":0},null,null,{"$f":"SUM(GETPIVOTDATA(\"Suma de Eia1_ha\",TD!$A$90))","v":0}]
[null,null,null,null,null,null,null,null,null,null,null,null,null,null,null,null,null,null,null,null,null,null,"2° Control",null,null,null,0,null,null,{"$f":"SUM(GETPIVOTDATA(\"Suma de Eia2_ea\",TD!$A$90))","v":0},null,null,{"$f":"SUM(GETPIVOTDATA(\"Suma de Eia2_ha\",TD!$A$90))","v":0}]
[null,null,null,null,null,null,null,null,null,null,null,null,null,null,null,null,null,null,null,null,null,null,"3º Control a + controles",null,null,null,0,null,null,{"$f":"SUM(GETPIVOTDATA(\"Suma de Eia3_ea\",TD!$A$90))","v":0},null,null,{"$f":"SUM(GETPIVOTDATA(\"Suma de Eia3_ha\",TD!$A$90))","v":0}]
[]
[null,"MATERNO",null,null,null,null,null,null,null,null,null,null,null,null,null,null,null,"Gestante",null,null,null,null,null,null,null,null,null,null,null,"Gest. Bateria Completa ",null,null,null,"Violencia \nBasada en Género\n (VBG)",null,null,"Gestante Atención Prenatal\n Reenfocada",null,null,"Atencion\n odontologica"]
[null,null,null,null,null,null,null,null,null,null,null,null,null,null,null,null,null,"Atendida",null,null,null,null,null,null,null,"ATC",null,"Controlada",null,"1° Bateria",null,"2° Bateria",null,"Tamizaje",null,null,null,null,null,"Protegidas"]
[null,"Grupo de Edad",null,null,null,null,null,null,null,null,null,null,null,null,null,null,null,"Total",null,"I Trim",null,"Ii Trim",null,"III Trim"]
[null,"ATENCION PRENATAL REENFOCADA"]
[null,"< 12 años",null,null,null,null,null,null,null,null,null,null,null,null,null,null,null,{"$f":"+T251+V251+X251","v":0},null,{"$f":"SUM(GETPIVOTDATA(\"Suma de APN1_bm\",TD!$A$90))","v":0},null,{"$f":"SUM(GETPIVOTDATA(\"Suma de APN2_bm\",TD!$A$90))","v":0},null,{"$f":"SUM(GETPIVOTDATA(\"Suma de APN3_bm\",TD!$A$90))","v":0},null,{"$f":"SUM(GETPIVOTDATA(\"Suma de APN_bm\",TD!$A$90))","v":0},null,{"$f":"SUM(GETPIVOTDATA(\"Suma de APNc_bm\",TD!$A$90))","v":0},null,{"$f":"SUM(GETPIVOTDATA(\"Suma de Bat1_bm\",TD!$A$90))","v":0},null,{"$f":"SUM(GETPIVOTDATA(\"Suma de Bat2_bm\",TD!$A$90))","v":0},null,{"$f":"SUM(GETPIVOTDATA(\"Suma de Tamg_bm\",TD!$A$90))","v":0},null,null,{"$f":"SUM(GETPIVOTDATA(\"Suma de APNr_bm\",TD!$A$90))","v":0},null,null,{"$f":"SUM(GETPIVOTDATA(\"Suma de APNo_bm\",TD!$A$90))","v":0}]
[null,"12a - 17a",null,null,null,null,null,null,null,null,null,null,null,null,null,null,null,{"$f":"+T252+V252+X252","v":0},null,{"$f":"SUM(GETPIVOTDATA(\"Suma de APN1_ha\",TD!$A$90))","v":0},null,{"$f":"SUM(GETPIVOTDATA(\"Suma de APN2_ha\",TD!$A$90))","v":0},null,{"$f":"SUM(GETPIVOTDATA(\"Suma de APN3_ha\",TD!$A$90))","v":0},null,{"$f":"SUM(GETPIVOTDATA(\"Suma de APN_ha\",TD!$A$90))","v":0},null,{"$f":"SUM(GETPIVOTDATA(\"Suma de APNc_ha\",TD!$A$90))","v":0},null,{"$f":"SUM(GETPIVOTDATA(\"Suma de Bat1_ha\",TD!$A$90))","v":0},null,{"$f":"SUM(GETPIVOTDATA(\"Suma de Bat2_ha\",TD!$A$90))","v":0},null,{"$f":"SUM(GETPIVOTDATA(\"Suma de Tamg_ha\",TD!$A$90))","v":0},null,null,{"$f":"SUM(GETPIVOTDATA(\"Suma de APNr_ha\",TD!$A$90))","v":0},null,null,{"$f":"SUM(GETPIVOTDATA(\"Suma de APNo_ha\",TD!$A$90))","v":0}]
[null,"18a - 29a",null,null,null,null,null,null,null,null,null,null,null,null,null,null,null,{"$f":"+T253+V253+X253","v":0},null,{"$f":"SUM(GETPIVOTDATA(\"Suma de APN1_ta\",TD!$A$90))","v":0},null,{"$f":"SUM(GETPIVOTDATA(\"Suma de APN2_ta\",TD!$A$90))","v":0},null,{"$f":"SUM(GETPIVOTDATA(\"Suma de APN3_ta\",TD!$A$90))","v":0},null,{"$f":"SUM(GETPIVOTDATA(\"Suma de APN_ta\",TD!$A$90))","v":0},null,{"$f":"SUM(GETPIVOTDATA(\"Suma de APNc_ta\",TD!$A$90))","v":0},null,{"$f":"SUM(GETPIVOTDATA(\"Suma de Bat1_ta\",TD!$A$90))","v":0},null,{"$f":"SUM(GETPIVOTDATA(\"Suma de Bat2_ta\",TD!$A$90))","v":0},null,{"$f":"SUM(GETPIVOTDATA(\"Suma de Tamg_ta\",TD!$A$90))","v":0},null,null,{"$f":"SUM(GETPIVOTDATA(\"Suma de APNr_ta\",TD!$A$90))","v":0},null,null,{"$f":"SUM(GETPIVOTDATA(\"Suma de APNo_ta\",TD!$A$90))","v":0}]
[null,"30a - 59a",null,null,null,null,null,null,null,null,null,null,null,null,null,null,null,{"$f":"+T254+V254+X254","v":0},null,{"$f":"SUM(GETPIVOTDATA(\"Suma de APN1_ua\",TD!$A$90))","v":0},null,{"$f":"SUM(GETPIVOTDATA(\"Suma de APN2_ua\",TD!$A$90))","v":0},null,{"$f":"SUM(GETPIVOTDATA(\"Suma de APN3_ua\",TD!$A$90))","v":0},null,{"$f":"SUM(GETPIVOTDATA(\"Suma de APN_ua\",TD!$A$90))","v":0},null,{"$f":"SUM(GETPIVOTDATA(\"Suma de APNc_ua\",TD!$A$90))","v":0},null,{"$f":"SUM(GETPIVOTDATA(\"Suma de Bat1_ua\",TD!$A$90))","v":0},null,{"$f":"SUM(GETPIVOTDATA(\"Suma de Bat2_ua\",TD!$A$90))","v":0},null,{"$f":"SUM(GETPIVOTDATA(\"Suma de Tamg_ua\",TD!$A$90))","v":0},null,null,{"$f":"SUM(GETPIVOTDATA(\"Suma de APNr_ua\",TD!$A$90))","v":0},null,null,{"$f":"SUM(GETPIVOTDATA(\"Suma de APNo_ua\",TD!$A$90))","v":0}]
[]
[null,"VALORACIÓN CLÍNICA DEL ADULTO MAYOR (VACAM)",null,null,null,null,null,null,null,null,null,null,null,null,null,null,null,null,null,null,null,null,null,null,null,null,"CURSO DE VIDA"]
[null,null,null,null,null,null,null,null,null,null,null,null,null,null,null,null,null,null,null,null,null,null,null,null,null,null,"60a-69a",null,null,"70a-79a",null,null,"80a+"]
[null,"Persona Adulta Mayor Saludable",null,null,null,null,null,null,null,null,null,null,null,null,null,null,null,null,null,null,null,null,null,null,null,null,{"$f":"SUM(GETPIVOTDATA(\"Suma de AMS_xa\",TD!$A$90))","v":0},null,null,{"$f":"SUM(GETPIVOTDATA(\"Suma de AMS_ya\",TD!$A$90))","v":0},null,null,{"$f":"SUM(GETPIVOTDATA(\"Suma de AMS_za\",TD!$A$90))","v":0}]
[null,"Persona Adulta Mayor Enferma",null,null,null,null,null,null,null,null,null,null,null,null,null,null,null,null,null,null,null,null,null,null,null,null,{"$f":"SUM(GETPIVOTDATA(\"Suma de AME_xa\",TD!$A$90))","v":0},null,null,{"$f":"SUM(GETPIVOTDATA(\"Suma de AME_ya\",TD!$A$90))","v":0},null,null,{"$f":"SUM(GETPIVOTDATA(\"Suma de AME_za\",TD!$A$90))","v":0}]
[]
[null,"CONSEJERIAS",null,null,null,null,null,null,null,null,null,null,null,null,null,null,null,null,null,null,null,null,null,null,null,null,"CURSO DE VIDA"]
[null,null,null,null,null,null,null,null,null,null,null,null,null,null,null,null,null,null,null,null,null,null,null,null,null,null,"00a-11a",null,null,"12a-17a",null,null,"18a-29a",null,null,"30a-59a",null,null,"60a+"]
[null,"Consejería Integral",null,null,null,null,null,null,null,null,null,null,null,null,null,null,null,null,null,null,null,null,null,null,null,null,{"$f":"SUM(GETPIVOTDATA(\"Suma de CIi_n\",TD!$A$90))","v":0},null,null,{"$f":"SUM(GETPIVOTDATA(\"Suma de CIi_ad\",TD!$A$90))","v":0},null,null,{"$f":"SUM(GETPIVOTDATA(\"Suma de CIi_j\",TD!$A$90))","v":0},null,null,{"$f":"SUM(GETPIVOTDATA(\"Suma de CIi_a\",TD!$A$90))","v":0},null,null,{"$f":"SUM(GETPIVOTDATA(\"Suma de CIi_am\",TD!$A$90))","v":0}]
[null,"Consejería Integral (Finalizada)",null,null,null,null,null,null,null,null,null,null,null,null,null,null,null,null,null,null,null,null,null,null,null,null,{"$f":"SUM(GETPIVOTDATA(\"Suma de CIf_n\",TD!$A$90))","v":0},null,null,{"$f":"SUM(GETPIVOTDATA(\"Suma de CIf_ad\",TD!$A$90))","v":0},null,null,{"$f":"SUM(GETPIVOTDATA(\"Suma de CIf_j\",TD!$A$90))","v":0},null,null,{"$f":"SUM(GETPIVOTDATA(\"Suma de CIf_a\",TD!$A$90))","v":0},null,null,{"$f":"SUM(GETPIVOTDATA(\"Suma de CIf_am\",TD!$A$90))","v":0}]
[null,"Consejería Nutricional",null,null,null,null,null,null,null,null,null,null,null,null,null,null,null,null,null,null,null,null,null,null,null,null,{"$f":"SUM(GETPIVOTDATA(\"Suma de Cnu_n\",TD!$A$90))","v":0},null,null,{"$f":"SUM(GETPIVOTDATA(\"Suma de Cnu_ad\",TD!$A$90))","v":0},null,null,{"$f":"SUM(GETPIVOTDATA(\"Suma de Cnu_j\",TD!$A$90))","v":0},null,null,{"$f":"SUM(GETPIVOTDATA(\"Suma de Cnu_a\",TD!$A$90))","v":0},null,null,{"$f":"SUM(GETPIVOTDATA(\"Suma de Cnu_am\",TD!$A$90))","v":0}]
[null,"Consejería en Prevención de Enfermedades no transmisibles",null,null,null,null,null,null,null,null,null,null,null,null,null,null,null,null,null,null,null,null,null,null,null,null,{"$f":"SUM(GETPIVOTDATA(\"Suma de Cpnt_n\",TD!$A$90))","v":0},null,null,{"$f":"SUM(GETPIVOTDATA(\"Suma de Cpnt_ad\",TD!$A$90))","v":0},null,null,{"$f":"SUM(GETPIVOTDATA(\"Suma de Cpnt_j\",TD!$A$90))","v":0},null,null,{"$f":"SUM(GETPIVOTDATA(\"Suma de Cpnt_a\",TD!$A$90))","v":0},null,null,{"$f":"SUM(GETPIVOTDATA(\"Suma de Cpnt_am\",TD!$A$90))","v":0}]
[]
[null,"DAÑOS NO TRANSMISIBLES",null,null,null,null,null,null,null,null,null,null,null,null,null,null,null,null,null,null,null,null,null,null,null,null,"CURSO DE VIDA"]
[null,"Clasificación",null,null,null,null,null,null,null,null,null,null,null,null,null,null,null,null,null,null,null,null,null,null,null,null,"00a-11a",null,null,"12a-17a",null,null,"18a-29a",null,null,"30a-59a",null,null,"60a+"]
[null,"Valoración Clínica de Factores de Riesgo",null,null,null,null,null,null,null,null,null,null,null,null,null,null,null,null,null,null,null,null,null,null,null,null,{"$f":"SUM(GETPIVOTDATA(\"Suma de NTfr_n\",TD!$A$90))","v":0},null,null,{"$f":"SUM(GETPIVOTDATA(\"Suma de NTfr_ad\",TD!$A$90))","v":0},null,null,{"$f":"SUM(GETPIVOTDATA(\"Suma de NTfr_j\",TD!$A$90))","v":0},null,null,{"$f":"SUM(GETPIVOTDATA(\"Suma de NTfr_a\",TD!$A$90))","v":0},null,null,{"$f":"SUM(GETPIVOTDATA(\"Suma de NTfr_am\",TD!$A$90))","v":0}]
[null,"Valoración clínica sin factores de riesgo",null,null,null,null,null,null,null,null,null,null,null,null,null,null,null,null,null,null,null,null,null,null,null,null,{"$f":"SUM(GETPIVOTDATA(\"Suma de NTsf_n\",TD!$A$90))","v":0},null,null,{"$f":"SUM(GETPIVOTDATA(\"Suma de NTsf_ad\",TD!$A$90))","v":0},null,null,{"$f":"SUM(GETPIVOTDATA(\"Suma de NTsf_j\",TD!$A$90))","v":0},null,null,{"$f":"SUM(GETPIVOTDATA(\"Suma de NTsf_a\",TD!$A$90))","v":0},null,null,{"$f":"SUM(GETPIVOTDATA(\"Suma de NTsf_am\",TD!$A$90))","v":0}]
[null,"Valoración clínica con factores de riesgo",null,null,null,null,null,null,null,null,null,null,null,null,null,null,null,null,null,null,null,null,null,null,null,null,{"$f":"SUM(GETPIVOTDATA(\"Suma de NTcf_n\",TD!$A$90))","v":0},null,null,{"$f":"SUM(GETPIVOTDATA(\"Suma de NTcf_ad\",TD!$A$90))","v":0},null,null,{"$f":"SUM(GETPIVOTDATA(\"Suma de NTcf_j\",TD!$A$90))","v":0},null,null,{"$f":"SUM(GETPIVOTDATA(\"Suma de NTcf_a\",TD!$A$90))","v":0},null,null,{"$f":"SUM(GETPIVOTDATA(\"Suma de NTcf_am\",TD!$A$90))","v":0}]
[null,"Valoración Clínica y tamizaje de laboratorio",null,null,null,null,null,null,null,null,null,null,null,null,null,null,null,null,null,null,null,null,null,null,null,null,{"$f":"SUM(GETPIVOTDATA(\"Suma de NTtb_n\",TD!$A$90))","v":0},null,null,{"$f":"SUM(GETPIVOTDATA(\"Suma de NTtb_ad\",TD!$A$90))","v":0},null,null,{"$f":"SUM(GETPIVOTDATA(\"Suma de NTtb_j\",TD!$A$90))","v":0},null,null,{"$f":"SUM(GETPIVOTDATA(\"Suma de NTtb_a\",TD!$A$90))","v":0},null,null,{"$f":"SUM(GETPIVOTDATA(\"Suma de NTtb_am\",TD!$A$90))","v":0}]
[null,"DAÑOS NO TRANSMISIBLES",null,null,null,null,null,null,null,null,null,null,null,null,null,null,null,null,null,null,null,null,null,null,null,null,"CURSO DE VIDA"]
[null,"Casos diagnosticados HTA",null,null,null,null,null,null,null,null,null,null,null,null,null,null,null,null,null,null,null,null,null,null,null,null,"00a-11a",null,null,"12a-17a",null,null,"18a-29a",null,null,"30a-59a",null,null,"60a+"]
[null,"Hipertensión esencial (primaria)",null,null,null,null,null,null,null,null,null,null,null,null,null,null,null,null,null,null,null,null,null,null,null,null,{"$f":"SUM(GETPIVOTDATA(\"Suma de NThp_n\",TD!$A$90))","v":0},null,null,{"$f":"SUM(GETPIVOTDATA(\"Suma de NThp_ad\",TD!$A$90))","v":0},null,null,{"$f":"SUM(GETPIVOTDATA(\"Suma de NThp_j\",TD!$A$90))","v":0},null,null,{"$f":"SUM(GETPIVOTDATA(\"Suma de NThp_a\",TD!$A$90))","v":0},null,null,{"$f":"SUM(GETPIVOTDATA(\"Suma de NThp_am\",TD!$A$90))","v":0}]
[null,"Nefropatía hipertensiva",null,null,null,null,null,null,null,null,null,null,null,null,null,null,null,null,null,null,null,null,null,null,null,null,{"$f":"SUM(GETPIVOTDATA(\"Suma de NTne_n\",TD!$A$90))","v":0},null,null,{"$f":"SUM(GETPIVOTDATA(\"Suma de NTne_ad\",TD!$A$90))","v":0},null,null,{"$f":"SUM(GETPIVOTDATA(\"Suma de NTne_j\",TD!$A$90))","v":0},null,null,{"$f":"SUM(GETPIVOTDATA(\"Suma de NTne_a\",TD!$A$90))","v":0},null,null,{"$f":"SUM(GETPIVOTDATA(\"Suma de NTne_am\",TD!$A$90))","v":0}]
[]
[null,"DAÑOS NO TRANSMISIBLES",null,null,null,null,null,null,null,null,null,null,null,null,null,null,null,null,null,null,null,null,null,null,null,null,"CURSO DE VIDA"]
[null,"Casos diagnosticados Diabetes Mellitus",null,null,null,null,null,null,null,null,null,null,null,null,null,null,null,null,null,null,null,null,null,null,null,null,"00a-11a",null,null,"12a-17a",null,null,"18a-29a",null,null,"30a-59a",null,null,"60a+"]
[null,"Diabetes mellitus tipo 1",null,null,null,null,null,null,null,null,null,null,null,null,null,null,null,null,null,null,null,null,null,null,null,null,{"$f":"SUM(GETPIVOTDATA(\"Suma de NTd1_n\",TD!$A$90))","v":0},null,null,{"$f":"SUM(GETPIVOTDATA(\"Suma de NTd1_ad\",TD!$A$90))","v":0},null,null,{"$f":"SUM(GETPIVOTDATA(\"Suma de NTd1_j\",TD!$A$90))","v":0},null,null,{"$f":"SUM(GETPIVOTDATA(\"Suma de NTd1_a\",TD!$A$90))","v":0},null,null,{"$f":"SUM(GETPIVOTDATA(\"Suma de NTd1_am\",TD!$A$90))","v":0}]
[null,"Diabetes mellitus tipo 2",null,null,null,null,null,null,null,null,null,null,null,null,null,null,null,null,null,null,null,null,null,null,null,null,{"$f":"SUM(GETPIVOTDATA(\"Suma de NTd2_n\",TD!$A$90))","v":0},null,null,{"$f":"SUM(GETPIVOTDATA(\"Suma de NTd2_ad\",TD!$A$90))","v":0},null,null,{"$f":"SUM(GETPIVOTDATA(\"Suma de NTd2_j\",TD!$A$90))","v":0},null,null,{"$f":"SUM(GETPIVOTDATA(\"Suma de NTd2_a\",TD!$A$90))","v":0},null,null,{"$f":"SUM(GETPIVOTDATA(\"Suma de NTd2_am\",TD!$A$90))","v":0}]
[null,"Nefropatia diabética",null,null,null,null,null,null,null,null,null,null,null,null,null,null,null,null,null,null,null,null,null,null,null,null,{"$f":"SUM(GETPIVOTDATA(\"Suma de NTnd_n\",TD!$A$90))","v":0},null,null,{"$f":"SUM(GETPIVOTDATA(\"Suma de NTnd_ad\",TD!$A$90))","v":0},null,null,{"$f":"SUM(GETPIVOTDATA(\"Suma de NTnd_j\",TD!$A$90))","v":0},null,null,{"$f":"SUM(GETPIVOTDATA(\"Suma de NTnd_a\",TD!$A$90))","v":0},null,null,{"$f":"SUM(GETPIVOTDATA(\"Suma de NTnd_am\",TD!$A$90))","v":0}]
[null,"Retinopatía diabética",null,null,null,null,null,null,null,null,null,null,null,null,null,null,null,null,null,null,null,null,null,null,null,null,{"$f":"SUM(GETPIVOTDATA(\"Suma de NTrd_n\",TD!$A$90))","v":0},null,null,{"$f":"SUM(GETPIVOTDATA(\"Suma de NTrd_ad\",TD!$A$90))","v":0},null,null,{"$f":"SUM(GETPIVOTDATA(\"Suma de NTrd_j\",TD!$A$90))","v":0},null,null,{"$f":"SUM(GETPIVOTDATA(\"Suma de NTrd_a\",TD!$A$90))","v":0},null,null,{"$f":"SUM(GETPIVOTDATA(\"Suma de NTrd_am\",TD!$A$90))","v":0}]
[]
[null,"TBC",null,null,null,null,null,null,null,null,null,null,null,null,null,null,null,null,null,null,null,null,null,null,null,null,"CURSO DE VIDA"]
[null,"Detección de TBC",null,null,null,null,null,null,null,null,null,null,null,null,null,null,null,null,null,null,null,null,null,null,null,null,"00a-11a",null,null,"12a-17a",null,null,"18a-29a",null,null,"30a-59a",null,null,"60a+"]
[null,"Sintomáticos Respiratorios Examinados (TBC)",null,null,null,null,null,null,null,null,null,null,null,null,null,null,null,null,null,null,null,null,null,null,null,null,{"$f":"SUM(GETPIVOTDATA(\"Suma de TBsr_n\",TD!$A$90))","v":0},null,null,{"$f":"SUM(GETPIVOTDATA(\"Suma de TBsr_ad\",TD!$A$90))","v":0},null,null,{"$f":"SUM(GETPIVOTDATA(\"Suma de TBsr_j\",TD!$A$90))","v":0},null,null,{"$f":"SUM(GETPIVOTDATA(\"Suma de TBsr_a\",TD!$A$90))","v":0},null,null,{"$f":"SUM(GETPIVOTDATA(\"Suma de TBsr_am\",TD!$A$90))","v":0}]
[]
[null,"SALUD OCLUAR",null,null,null,null,null,null,null,null,null,null,null,null,null,null,null,null,null,null,null,null,null,null,null,null,"CURSO DE VIDA"]
[null,null,null,null,null,null,null,null,null,null,null,null,null,null,null,null,null,null,null,null,null,null,null,null,null,null,"00a-11a",null,null,"12a-17a",null,null,"18a-29a",null,null,"30a-59a",null,null,"60a+"]
[null,"Examen de los ojos y la visión (Normal)",null,null,null,null,null,null,null,null,null,null,null,null,null,null,null,null,null,null,null,null,null,null,null,null,{"$f":"SUM(GETPIVOTDATA(\"Suma de SocN_n\",TD!$A$90))","v":0},null,null,{"$f":"SUM(GETPIVOTDATA(\"Suma de SocN_ad\",TD!$A$90))","v":0},null,null,{"$f":"SUM(GETPIVOTDATA(\"Suma de SocN_j\",TD!$A$90))","v":0},null,null,{"$f":"SUM(GETPIVOTDATA(\"Suma de SocN_a\",TD!$A$90))","v":0},null,null,{"$f":"SUM(GETPIVOTDATA(\"Suma de SocN_am\",TD!$A$90))","v":0}]
[null,"Examen de los ojos y la visión (Anormal)",null,null,null,null,null,null,null,null,null,null,null,null,null,null,null,null,null,null,null,null,null,null,null,null,{"$f":"SUM(GETPIVOTDATA(\"Suma de SocA_n\",TD!$A$90))","v":0},null,null,{"$f":"SUM(GETPIVOTDATA(\"Suma de SocA_ad\",TD!$A$90))","v":0},null,null,{"$f":"SUM(GETPIVOTDATA(\"Suma de SocA_j\",TD!$A$90))","v":0},null,null,{"$f":"SUM(GETPIVOTDATA(\"Suma de SocA_a\",TD!$A$90))","v":0},null,null,{"$f":"SUM(GETPIVOTDATA(\"Suma de SocA_am\",TD!$A$90))","v":0}]
[]
[null,"VISITA FAMILIAR INTEGRAL",null,null,null,null,null,null,null,null,null,null,null,null,null,null,null,null,null,null,null,null,null,null,null,null,"CURSO DE VIDA"]
[null,null,null,null,null,null,null,null,null,null,null,null,null,null,null,null,null,null,null,null,null,null,null,null,null,null,"00a-11a",null,null,"12a-17a",null,null,"18a-29a",null,null,"30a-59a",null,null,"60a+"]
[null,"Visita Familiar Integral",null,null,null,null,null,null,null,null,null,null,null,null,null,null,null,null,null,null,null,"Con 1 Visita",null,null,null,null,{"$f":"SUM(GETPIVOTDATA(\"Suma de VFI1_n\",TD!$A$90))","v":0},null,null,{"$f":"SUM(GETPIVOTDATA(\"Suma de VFI1_ad\",TD!$A$90))","v":0},null,null,{"$f":"SUM(GETPIVOTDATA(\"Suma de VFI1_j\",TD!$A$90))","v":0},null,null,{"$f":"SUM(GETPIVOTDATA(\"Suma de VFI1_a\",TD!$A$90))","v":1},null,null,{"$f":"SUM(GETPIVOTDATA(\"Suma de VFI1_am\",TD!$A$90))","v":4}]
[null,null,null,null,null,null,null,null,null,null,null,null,null,null,null,null,null,null,null,null,null,"Con 2 Visitas",null,null,null,null,{"$f":"SUM(GETPIVOTDATA(\"Suma de VFI2_n\",TD!$A$90))","v":0},null,null,{"$f":"SUM(GETPIVOTDATA(\"Suma de VFI2_ad\",TD!$A$90))","v":0},null,null,{"$f":"SUM(GETPIVOTDATA(\"Suma de VFI2_j\",TD!$A$90))","v":0},null,null,{"$f":"SUM(GETPIVOTDATA(\"Suma de VFI2_a\",TD!$A$90))","v":0},null,null,{"$f":"SUM(GETPIVOTDATA(\"Suma de VFI2_am\",TD!$A$90))","v":0}]
[null,null,null,null,null,null,null,null,null,null,null,null,null,null,null,null,null,null,null,null,null,"Con 3 a + visitas",null,null,null,null,{"$f":"SUM(GETPIVOTDATA(\"Suma de VFI3_n\",TD!$A$90))","v":0},null,null,{"$f":"SUM(GETPIVOTDATA(\"Suma de VFI3_ad\",TD!$A$90))","v":0},null,null,{"$f":"SUM(GETPIVOTDATA(\"Suma de VFI3_j\",TD!$A$90))","v":0},null,null,{"$f":"SUM(GETPIVOTDATA(\"Suma de VFI3_a\",TD!$A$90))","v":0},null,null,{"$f":"SUM(GETPIVOTDATA(\"Suma de VFI3_am\",TD!$A$90))","v":0}]